Workbook

Sheet ГРАФИК К.П ДЕКАБРЬ
IH1: СЕГОДНЯ
IH2: =TODAY() -> 2020-05-28
IH3: =TEXT(HZ2,"дддд") -> суббота
IH4: =WEEKNUM(IH2,2)&"-ая неделя" -> 22-ая неделя
I5: =IF(OR(#REF!<D3,AND(#REF!<D2,#REF!=D3)),$CN$19,IF(OR(#REF!>D3,AND(#REF!>D2,#REF!=D3)),0,DAY(A2))) ->  | IH5: =IF(OR(#REF!<IC3,AND(#REF!<IC2,#REF!=IC3)),$CN$19,IF(OR(#REF!>IC3,AND(#REF!>IC2,#REF!=IC3)),0,DAY(HZ2))) -> 
IG6: время
HA7: 1 | IB7: количество дней месяца | IE7: =VLOOKUP(HY17,'[4]производственный календарь '!B2:F13,5,0) -> 31
HA8: 2 | IB8: месяц | IE8: =VLOOKUP(HY17,'[4]производственный календарь '!B2:F13,4,0) -> 12 | IG8: Столбец1
IB9: год | IE9: =YEAR(A17) -> 2020 | IG9: 0.3125
GI10: УТВЕРЖДАЮ | IG10: 0.3333333333
IB11: 0бед | IE11: 0.04166666667 | IG11: 0.375
GI12: ______________Л.А.Синченко | IG12: 0.4166666667
GI13: "01" | HD13: 2020 | IG13: 0.4583333333
IG14: 0.5 | IJ14: Столбец1 | IP14: 1
A15: ГРАФИК | IG15: 0.5416666667 | IJ15: Слезинский В.Е., управляющий участка | IP15: 0.5
A16: УЧЕТА ИСПОЛЬЗОВАНИЯ РАБОЧЕГО ВРЕМЕНИ ОБСЛУЖИВАЮЩЕГО ПЕРСОНАЛА | IG16: 0.5833333333 | IJ16: Медведев А.П., слесарь-ремонтник | IP16: 0.25
A17: 2020-12-01 | HY17: ДЕКАБРЬ | IG17: 0.625 | IJ17: Береговой Г.П., электрик
IG18: 0.6666666667 | IJ18: Воротынцева В.Н., кассир билетный Ч
A19: № | F19: Фамилия Инициалы | X19: Ставка | AC19: 1 | AI19: 2 | AO19: 3 | AU19: 4 | BA19: 5 | BG19: 6 | BM19: 7 | BS19: 8 | BY19: 9 | CE19: 10 | CK19: 11 | CQ19: 12 | CW19: 13 | DC19: 14 | DI19: 15 | DO19: 16 | DU19: 17 | EA19: 18 | EG19: 19 | EM19: 20 | ES19: 21 | EY19: 22 | FE19: 23 | FK19: 24 | FQ19: 25 | FW19: 26 | GC19: 27 | GI19: 28 | GO19: =IF(29<=$IE$7,29,"-") -> 29 | GU19: =IF(30<=$IE$7,30,"-") -> 30 | HA19: =IF(31<=$IE$7,31,"-") -> 31 | HG19: ВСЕГО | HZ19: по календарю | IG19: 0.7083333333 | IJ19: Окорочкова О.Т., кассир билетный НЧ
HG20: дней | HY20: часов | HZ20: дней | IA20: часов | IG20: 0.75 | IJ20: Пермякова Т.М., контролёр-посадчик аттракциона Ч
AC21: =IFERROR($A$17+AC19-1,"-") -> 2020-12-01 | AI21: =IFERROR($A$17+AI19-1,"-") -> 2020-12-02 | AO21: =IFERROR($A$17+AO19-1,"-") -> 2020-12-03 | AU21: =IFERROR($A$17+AU19-1,"-") -> 2020-12-04 | BA21: =IFERROR($A$17+BA19-1,"-") -> 2020-12-05 | BG21: =IFERROR($A$17+BG19-1,"-") -> 2020-12-06 | BM21: =IFERROR($A$17+BM19-1,"-") -> 2020-12-07 | BS21: =IFERROR($A$17+BS19-1,"-") -> 2020-12-08 | BY21: =IFERROR($A$17+BY19-1,"-") -> 2020-12-09 | CE21: =IFERROR($A$17+CE19-1,"-") -> 2020-12-10 | CK21: =IFERROR($A$17+CK19-1,"-") -> 2020-12-11 | CQ21: =IFERROR($A$17+CQ19-1,"-") -> 2020-12-12 | CW21: =IFERROR($A$17+CW19-1,"-") -> 2020-12-13 | DC21: =IFERROR($A$17+DC19-1,"-") -> 2020-12-14 | DI21: =IFERROR($A$17+DI19-1,"-") -> 2020-12-15 | DO21: =IFERROR($A$17+DO19-1,"-") -> 2020-12-16 | DU21: =IFERROR($A$17+DU19-1,"-") -> 2020-12-17 | EA21: =IFERROR($A$17+EA19-1,"-") -> 2020-12-18 | EG21: =IFERROR($A$17+EG19-1,"-") -> 2020-12-19 | EM21: =IFERROR($A$17+EM19-1,"-") -> 2020-12-20 | ES21: =IFERROR($A$17+ES19-1,"-") -> 2020-12-21 | EY21: =IFERROR($A$17+EY19-1,"-") -> 2020-12-22 | FE21: =IFERROR($A$17+FE19-1,"-") -> 2020-12-23 | FK21: =IFERROR($A$17+FK19-1,"-") -> 2020-12-24 | FQ21: =IFERROR($A$17+FQ19-1,"-") -> 2020-12-25 | FW21: =IFERROR($A$17+FW19-1,"-") -> 2020-12-26 | GC21: =IFERROR($A$17+GC19-1,"-") -> 2020-12-27 | GI21: =IFERROR($A$17+GI19-1,"-") -> 2020-12-28 | GO21: =IFERROR($A$17+GO19-1,"-") -> 2020-12-29 | GU21: =IFERROR($A$17+GU19-1,"-") -> 2020-12-30 | HA21: =IFERROR($A$17+HA19-1,"-") -> 2020-12-31 | IG21: 0.7916666667 | IJ21: Алексеева Р.И., котролёр-посадчик аттракциона Ч
A22: =IF(ISBLANK(F29),"",COUNTA($F$29:F29)) ->  | B22: 1 | AC22: 0.4166666667 | AI22: В | AO22: 0.4166666667 | AU22: 0.4166666667 | BA22: 10:00:00 | BG22: 10:00:00 | BM22: 0.4166666667 | BS22: 0.4166666667 | BY22: В | CE22: 0.4166666667 | CK22: 0.4166666667 | CQ22: 10:00:00 | CW22: 10:00:00 | DC22: 0.4166666667 | DI22: 0.4166666667 | DO22: В | DU22: 0.4166666667 | EA22: 0.4166666667 | EG22: 10:00:00 | EM22: 10:00:00 | ES22: 0.4166666667 | EY22: 0.4166666667 | FE22: В | FK22: 0.4166666667 | FQ22: 0.4166666667 | FW22: 10:00:00 | GC22: 10:00:00 | GI22: 0.4166666667 | GO22: 0.4166666667 | GU22: В | HA22: 0.4166666667 | HG22: =COUNT(AC22:HF22) -> 26 | HY22: =SUM(IFERROR(AC23:HF23-AC22:HF22-AC24:HF24,0)) -> 7.625 | HZ22: =VLOOKUP($HY$17,'[4]производственный календарь '!$B$2:$D$13,3,0) -> 23 | IA22: =VLOOKUP($HY$17,'[4]производственный календарь '!$B$2:$D$13,2,0) -> 183 | IG22: 0.8333333333
AC23: 0.6666666667 | AI23: В | AO23: 0.75 | AU23: 0.75 | BA23: 19:00:00 | BG23: 19:00:00 | BM23: 0.75 | BS23: 0.6666666667 | BY23: В | CE23: 0.75 | CK23: 0.75 | CQ23: 19:00:00 | CW23: 19:00:00 | DC23: 0.75 | DI23: 0.6666666667 | DO23: В | DU23: 0.75 | EA23: 0.75 | EG23: 19:00:00 | EM23: 19:00:00 | ES23: 0.75 | EY23: 0.6666666667 | FE23: В | FK23: 0.75 | FQ23: 0.7916666667 | FW23: 19:00:00 | GC23: 19:00:00 | GI23: 0.7916666667 | GO23: 0.6666666667 | GU23: В | HA23: 0.7916666667 | IG23: 0.875 | IJ23: Перминов К.И., дежурный зала
AC24: 01:00:00 | AI24: В | AO24: 01:00:00 | AU24: 01:00:00 | BA24: 01:00:00 | BG24: 01:00:00 | BM24: 01:00:00 | BS24: 01:00:00 | BY24: В | CE24: 01:00:00 | CK24: 01:00:00 | CQ24: 01:00:00 | CW24: 01:00:00 | DC24: 01:00:00 | DI24: 01:00:00 | DO24: В | DU24: 01:00:00 | EA24: 01:00:00 | EG24: 01:00:00 | EM24: 01:00:00 | ES24: 01:00:00 | EY24: 01:00:00 | FE24: В | FK24: 01:00:00 | FQ24: 01:00:00 | FW24: 01:00:00 | GC24: 01:00:00 | GI24: 01:00:00 | GO24: 01:00:00 | GU24: В | HA24: 01:00:00 | IG24: 0.9166666667 | IJ24: Перминов К.И., кассир
AC25: =IFERROR(AC23-AC22-AC24,0) -> 05:00:00 | AI25: =IFERROR(AI23-AI22-AI24,0) -> 00:00:00 | AO25: =IFERROR(AO23-AO22-AO24,0) -> 07:00:00 | AU25: =IFERROR(AU23-AU22-AU24,0) -> 07:00:00 | BA25: =IFERROR(BA23-BA22-BA24,0) -> 08:00:00 | BG25: =IFERROR(BG23-BG22-BG24,0) -> 08:00:00 | BM25: =IFERROR(BM23-BM22-BM24,0) -> 07:00:00 | BS25: =IFERROR(BS23-BS22-BS24,0) -> 05:00:00 | BY25: =IFERROR(BY23-BY22-BY24,0) -> 00:00:00 | CE25: =IFERROR(CE23-CE22-CE24,0) -> 07:00:00 | CK25: =IFERROR(CK23-CK22-CK24,0) -> 07:00:00 | CQ25: =IFERROR(CQ23-CQ22-CQ24,0) -> 08:00:00 | CW25: =IFERROR(CW23-CW22-CW24,0) -> 08:00:00 | DC25: =IFERROR(DC23-DC22-DC24,0) -> 07:00:00 | DI25: =IFERROR(DI23-DI22-DI24,0) -> 05:00:00 | DO25: =IFERROR(DO23-DO22-DO24,0) -> 00:00:00 | DU25: =IFERROR(DU23-DU22-DU24,0) -> 07:00:00 | EA25: =IFERROR(EA23-EA22-EA24,0) -> 07:00:00 | EG25: =IFERROR(EG23-EG22-EG24,0) -> 08:00:00 | EM25: =IFERROR(EM23-EM22-EM24,0) -> 08:00:00 | ES25: =IFERROR(ES23-ES22-ES24,0) -> 07:00:00 | EY25: =IFERROR(EY23-EY22-EY24,0) -> 05:00:00 | FE25: =IFERROR(FE23-FE22-FE24,0) -> 00:00:00 | FK25: =IFERROR(FK23-FK22-FK24,0) -> 07:00:00 | FQ25: =IFERROR(FQ23-FQ22-FQ24,0) -> 08:00:00 | FW25: =IFERROR(FW23-FW22-FW24,0) -> 08:00:00 | GC25: =IFERROR(GC23-GC22-GC24,0) -> 08:00:00 | GI25: =IFERROR(GI23-GI22-GI24,0) -> 08:00:00 | GO25: =IFERROR(GO23-GO22-GO24,0) -> 05:00:00 | GU25: =IFERROR(GU23-GU22-GU24,0) -> 00:00:00 | HA25: =IFERROR(HA23-HA22-HA24,0) -> 08:00:00 | HY25: =SUM(AC25:HF25) -> 7.625 | IG25: 0.9375 | IJ25: Бутелин Ю.Н., сторож
AC26: =CHOOSE(WEEKDAY(AC19,16),"",5,"","","","","") -> 5 | AI26: =CHOOSE(WEEKDAY(AI19,16),"",5,"","","","","") ->  | AO26: =CHOOSE(WEEKDAY(AO19,16),"",5,"","","","","") ->  | AU26: =CHOOSE(WEEKDAY(AU19,16),"",5,"","","","","") ->  | BA26: =CHOOSE(WEEKDAY(BA19,16),"",5,"","","","","") ->  | BG26: =CHOOSE(WEEKDAY(BG19,16),"",5,"","","","","") ->  | BM26: =CHOOSE(WEEKDAY(BM19,16),"",5,"","","","","") ->  | BS26: =CHOOSE(WEEKDAY(BS19,16),"",5,"","","","","") -> 5 | BY26: =CHOOSE(WEEKDAY(BY19,16),"",5,"","","","","") ->  | CE26: =CHOOSE(WEEKDAY(CE19,16),"",5,"","","","","") ->  | CK26: =CHOOSE(WEEKDAY(CK19,16),"",5,"","","","","") ->  | CQ26: =CHOOSE(WEEKDAY(CQ19,16),"",5,"","","","","") ->  | CW26: =CHOOSE(WEEKDAY(CW19,16),"",5,"","","","","") ->  | DC26: =CHOOSE(WEEKDAY(DC19,16),"",5,"","","","","") ->  | DI26: =CHOOSE(WEEKDAY(DI19,16),"",5,"","","","","") -> 5 | DO26: =CHOOSE(WEEKDAY(DO19,16),"",5,"","","","","") ->  | DU26: =CHOOSE(WEEKDAY(DU19,16),"",5,"","","","","") ->  | EA26: =CHOOSE(WEEKDAY(EA19,16),"",5,"","","","","") ->  | EG26: =CHOOSE(WEEKDAY(EG19,16),"",5,"","","","","") ->  | EM26: =CHOOSE(WEEKDAY(EM19,16),"",5,"","","","","") ->  | ES26: =CHOOSE(WEEKDAY(ES19,16),"",5,"","","","","") ->  | EY26: =CHOOSE(WEEKDAY(EY19,16),"",5,"","","","","") -> 5 | FE26: =CHOOSE(WEEKDAY(FE19,16),"",5,"","","","","") ->  | FK26: =CHOOSE(WEEKDAY(FK19,16),"",5,"","","","","") ->  | FQ26: =CHOOSE(WEEKDAY(FQ19,16),"",5,"","","","","") ->  | FW26: =CHOOSE(WEEKDAY(FW19,16),"",5,"","","","","") ->  | GC26: =CHOOSE(WEEKDAY(GC19,16),"",5,"","","","","") ->  | GI26: =CHOOSE(WEEKDAY(GI19,16),"",5,"","","","","") ->  | GO26: =CHOOSE(WEEKDAY(GO19,16),"",5,"","","","","") -> 5 | GU26: =CHOOSE(WEEKDAY(GU19,16),"",5,"","","","","") ->  | HA26: =CHOOSE(WEEKDAY(HA19,16),"",5,"","","","","") ->  | IG26: 0.9791666667 | IJ26: Бутелин Ю.Н., контролёр-посадчик
IG27: 0.9583333333 | IJ27: Медведев А.П., сторож
AC28: ОТ | AI28: ОТ | AO28: ОТ | AU28: ОТ | BA28: ОТ | BG28: ОТ | BM28: ОТ | BS28: ОТ | BY28: ОТ | CE28: ОТ | CK28: ОТ | CQ28: ОТ | CW28: ОТ | HZ28: =VLOOKUP($HY$17,'[4]производственный календарь '!$B$2:$D$13,3,0) -> 23 | IA28: =VLOOKUP($HY$17,'[4]производственный календарь '!$B$2:$D$13,2,0) -> 183 | IG28: 1 | IJ28: Пермякова Т.М., контролёр-посадчик аттракциона НЧ
B29: 2 | AC29: В | AI29: 0.3333333333 | AO29: 0.3333333333 | AU29: 0.3333333333 | BA29: 08:00:00 | BG29: 08:00:00 | BM29: В | BS29: В | BY29: 0.3333333333 | CE29: 0.3333333333 | CK29: 0.3333333333 | CQ29: 08:00:00 | CW29: 08:00:00 | DC29: В | DI29: В | DO29: 0.3333333333 | DU29: 0.3333333333 | EA29: 0.3333333333 | EG29: 08:00:00 | EM29: 08:00:00 | ES29: В | EY29: В | FE29: 0.3333333333 | FK29: 0.3333333333 | FQ29: 0.3333333333 | FW29: 08:00:00 | GC29: 08:00:00 | GI29: В | GO29: В | GU29: 0.3333333333 | HA29: 0.3333333333 | HG29: =COUNT(AC29:HF29) -> 22 | HY29: =SUM(IFERROR(AC30:HF30-AC29:HF29-AC31:HF31,0)) -> 7.625 | IG29: В | IJ29: Воротынцева В.Н., кассир билетный НЧ
AC30: В | AI30: 0.75 | AO30: 0.75 | AU30: 0.75 | BA30: 18:00:00 | BG30: 18:00:00 | BM30: В | BS30: В | BY30: 0.75 | CE30: 0.75 | CK30: 0.7083333333 | CQ30: 17:00:00 | CW30: 17:00:00 | DC30: В | DI30: В | DO30: 0.7083333333 | DU30: 0.7083333333 | EA30: 0.7083333333 | EG30: 17:00:00 | EM30: 17:00:00 | ES30: В | EY30: В | FE30: 0.7083333333 | FK30: 0.7083333333 | FQ30: 0.7083333333 | FW30: 17:00:00 | GC30: 17:00:00 | GI30: В | GO30: В | GU30: 0.7083333333 | HA30: 0.7083333333 | IG30: ОТ | IJ30: Окорочкова О.Т., кассир билетный Ч
AC31: В | AI31: 01:00:00 | AO31: 01:00:00 | AU31: 01:00:00 | BA31: 01:00:00 | BG31: 01:00:00 | BM31: В | BS31: В | BY31: 01:00:00 | CE31: 01:00:00 | CK31: 01:00:00 | CQ31: 01:00:00 | CW31: 01:00:00 | DC31: В | DI31: В | DO31: 01:00:00 | DU31: 01:00:00 | EA31: 01:00:00 | EG31: 01:00:00 | EM31: 01:00:00 | ES31: В | EY31: В | FE31: 01:00:00 | FK31: 01:00:00 | FQ31: 01:00:00 | FW31: 01:00:00 | GC31: 01:00:00 | GI31: В | GO31: В | GU31: 01:00:00 | HA31: 01:00:00 | IG31: Р | IJ31: Алексеева Р.И., котролёр-посадчик аттракциона НЧ
AC32: =IFERROR(AC30-AC29-AC31,0) -> 00:00:00 | AI32: =IFERROR(AI30-AI29-AI31,0) -> 09:00:00 | AO32: =IFERROR(AO30-AO29-AO31,0) -> 09:00:00 | AU32: =IFERROR(AU30-AU29-AU31,0) -> 09:00:00 | BA32: =IFERROR(BA30-BA29-BA31,0) -> 09:00:00 | BG32: =IFERROR(BG30-BG29-BG31,0) -> 09:00:00 | BM32: =IFERROR(BM30-BM29-BM31,0) -> 00:00:00 | BS32: =IFERROR(BS30-BS29-BS31,0) -> 00:00:00 | BY32: =IFERROR(BY30-BY29-BY31,0) -> 09:00:00 | CE32: =IFERROR(CE30-CE29-CE31,0) -> 09:00:00 | CK32: =IFERROR(CK30-CK29-CK31,0) -> 08:00:00 | CQ32: =IFERROR(CQ30-CQ29-CQ31,0) -> 08:00:00 | CW32: =IFERROR(CW30-CW29-CW31,0) -> 08:00:00 | DC32: =IFERROR(DC30-DC29-DC31,0) -> 00:00:00 | DI32: =IFERROR(DI30-DI29-DI31,0) -> 00:00:00 | DO32: =IFERROR(DO30-DO29-DO31,0) -> 08:00:00 | DU32: =IFERROR(DU30-DU29-DU31,0) -> 08:00:00 | EA32: =IFERROR(EA30-EA29-EA31,0) -> 08:00:00 | EG32: =IFERROR(EG30-EG29-EG31,0) -> 08:00:00 | EM32: =IFERROR(EM30-EM29-EM31,0) -> 08:00:00 | ES32: =IFERROR(ES30-ES29-ES31,0) -> 00:00:00 | EY32: =IFERROR(EY30-EY29-EY31,0) -> 00:00:00 | FE32: =IFERROR(FE30-FE29-FE31,0) -> 08:00:00 | FK32: =IFERROR(FK30-FK29-FK31,0) -> 08:00:00 | FQ32: =IFERROR(FQ30-FQ29-FQ31,0) -> 08:00:00 | FW32: =IFERROR(FW30-FW29-FW31,0) -> 08:00:00 | GC32: =IFERROR(GC30-GC29-GC31,0) -> 08:00:00 | GI32: =IFERROR(GI30-GI29-GI31,0) -> 00:00:00 | GO32: =IFERROR(GO30-GO29-GO31,0) -> 00:00:00 | GU32: =IFERROR(GU30-GU29-GU31,0) -> 08:00:00 | HA32: =IFERROR(HA30-HA29-HA31,0) -> 08:00:00 | HY32: =SUM(AC32:HE32) -> 7.625
AC34: ОТ | AI34: ОТ | AO34: ОТ | AU34: ОТ | BA34: ОТ | BG34: ОТ | BM34: ОТ | BS34: ОТ | BY34: ОТ | CE34: ОТ | CK34: ОТ | CQ34: ОТ | CW34: ОТ | HZ34: =VLOOKUP($HY$17,'[4]производственный календарь '!$B$2:$D$13,3,0) -> 23 | IA34: =VLOOKUP($HY$17,'[4]производственный календарь '!$B$2:$D$13,2,0) -> 183
B35: 3 | AC35: 0.3333333333 | AI35: 0.3333333333 | AO35: 0.3333333333 | AU35: 0.3333333333 | BA35: В | BG35: В | BM35: 0.3333333333 | BS35: 0.3333333333 | BY35: 0.3333333333 | CE35: 0.3333333333 | CK35: 0.3333333333 | CQ35: В | CW35: В | DC35: 0.3333333333 | DI35: 0.3333333333 | DO35: 0.3333333333 | DU35: 0.3333333333 | EA35: 0.3333333333 | EG35: В | EM35: В | ES35: 0.3333333333 | EY35: 0.3333333333 | FE35: 0.3333333333 | FK35: 0.3333333333 | FQ35: 0.3333333333 | FW35: В | GC35: В | GI35: 0.3333333333 | GO35: 0.3333333333 | GU35: 0.3333333333 | HA35: 0.3333333333 | HG35: =COUNT(AC35:HF35) -> 23 | HY35: =SUM(IFERROR(AC36:HF36-AC35:HF35-AC37:HF37,0)) -> 7.625
AC36: 0.7083333333 | AI36: 0.7083333333 | AO36: 0.7083333333 | AU36: 0.7083333333 | BA36: В | BG36: В | BM36: 0.7083333333 | BS36: 0.7083333333 | BY36: 0.7083333333 | CE36: 0.7083333333 | CK36: 0.7083333333 | CQ36: В | CW36: В | DC36: 0.7083333333 | DI36: 0.7083333333 | DO36: 0.7083333333 | DU36: 0.7083333333 | EA36: 0.7083333333 | EG36: В | EM36: В | ES36: 0.7083333333 | EY36: 0.7083333333 | FE36: 0.7083333333 | FK36: 0.7083333333 | FQ36: 0.7083333333 | FW36: В | GC36: В | GI36: 0.7083333333 | GO36: 0.7083333333 | GU36: 0.7083333333 | HA36: 0.6666666667
AC37: 01:00:00 | AI37: 01:00:00 | AO37: 01:00:00 | AU37: 01:00:00 | BA37: В | BG37: В | BM37: 01:00:00 | BS37: 01:00:00 | BY37: 01:00:00 | CE37: 01:00:00 | CK37: 01:00:00 | CQ37: В | CW37: В | DC37: 01:00:00 | DI37: 01:00:00 | DO37: 01:00:00 | DU37: 01:00:00 | EA37: 01:00:00 | EG37: В | EM37: В | ES37: 01:00:00 | EY37: 01:00:00 | FE37: 01:00:00 | FK37: 01:00:00 | FQ37: 01:00:00 | FW37: В | GC37: В | GI37: 01:00:00 | GO37: 01:00:00 | GU37: 01:00:00 | HA37: 01:00:00
AC38: =IFERROR(AC36-AC35-AC37,0) -> 08:00:00 | AI38: =IFERROR(AI36-AI35-AI37,0) -> 08:00:00 | AO38: =IFERROR(AO36-AO35-AO37,0) -> 08:00:00 | AU38: =IFERROR(AU36-AU35-AU37,0) -> 08:00:00 | BA38: =IFERROR(BA36-BA35-BA37,0) -> 00:00:00 | BG38: =IFERROR(BG36-BG35-BG37,0) -> 00:00:00 | BM38: =IFERROR(BM36-BM35-BM37,0) -> 08:00:00 | BS38: =IFERROR(BS36-BS35-BS37,0) -> 08:00:00 | BY38: =IFERROR(BY36-BY35-BY37,0) -> 08:00:00 | CE38: =IFERROR(CE36-CE35-CE37,0) -> 08:00:00 | CK38: =IFERROR(CK36-CK35-CK37,0) -> 08:00:00 | CQ38: =IFERROR(CQ36-CQ35-CQ37,0) -> 00:00:00 | CW38: =IFERROR(CW36-CW35-CW37,0) -> 00:00:00 | DC38: =IFERROR(DC36-DC35-DC37,0) -> 08:00:00 | DI38: =IFERROR(DI36-DI35-DI37,0) -> 08:00:00 | DO38: =IFERROR(DO36-DO35-DO37,0) -> 08:00:00 | DU38: =IFERROR(DU36-DU35-DU37,0) -> 08:00:00 | EA38: =IFERROR(EA36-EA35-EA37,0) -> 08:00:00 | EG38: =IFERROR(EG36-EG35-EG37,0) -> 00:00:00 | EM38: =IFERROR(EM36-EM35-EM37,0) -> 00:00:00 | ES38: =IFERROR(ES36-ES35-ES37,0) -> 08:00:00 | EY38: =IFERROR(EY36-EY35-EY37,0) -> 08:00:00 | FE38: =IFERROR(FE36-FE35-FE37,0) -> 08:00:00 | FK38: =IFERROR(FK36-FK35-FK37,0) -> 08:00:00 | FQ38: =IFERROR(FQ36-FQ35-FQ37,0) -> 08:00:00 | FW38: =IFERROR(FW36-FW35-FW37,0) -> 00:00:00 | GC38: =IFERROR(GC36-GC35-GC37,0) -> 00:00:00 | GI38: =IFERROR(GI36-GI35-GI37,0) -> 08:00:00 | GO38: =IFERROR(GO36-GO35-GO37,0) -> 08:00:00 | GU38: =IFERROR(GU36-GU35-GU37,0) -> 08:00:00 | HA38: =IFERROR(HA36-HA35-HA37,0) -> 07:00:00 | HY38: =SUM(AC38:HE38) -> 7.625
HZ40: =VLOOKUP($HY$17,'[4]производственный календарь '!$B$2:$D$13,3,0) -> 23 | IA40: =VLOOKUP($HY$17,'[4]производственный календарь '!$B$2:$D$13,2,0) -> 183
B41: 4 | AI41: 0.3333333333 | AU41: 0.3333333333 | BG41: 0.3333333333 | BS41: 0.3333333333 | CE41: 0.3333333333 | CQ41: 0.3333333333 | DC41: 0.3333333333 | DO41: 0.3333333333 | EA41: 0.3333333333 | EM41: 0.3333333333 | EY41: 0.3333333333 | FK41: 0.3333333333 | FW41: 0.3333333333 | GI41: 0.3333333333 | GU41: 0.3333333333 | HG41: =COUNT(AC41:HF41) -> 15 | HY41: =SUM(IFERROR(AC42:HF42-AC41:HF41-AC43:HF43,0)) -> 7.625
AI42: 0.875 | AU42: 0.875 | BG42: 0.875 | BS42: 0.875 | CE42: 0.875 | CQ42: 0.9166666667 | DC42: 0.875 | DO42: 0.875 | EA42: 0.875 | EM42: 0.9166666667 | EY42: 0.875 | FK42: 0.875 | FW42: 0.9166666667 | GI42: 0.875 | GU42: 0.875
AI43: 01:00:00 | AU43: 01:00:00 | BG43: 01:00:00 | BS43: 01:00:00 | CE43: 01:00:00 | CQ43: 01:00:00 | DC43: 01:00:00 | DO43: 01:00:00 | EA43: 01:00:00 | EM43: 01:00:00 | EY43: 01:00:00 | FK43: 01:00:00 | FW43: 01:00:00 | GI43: 01:00:00 | GU43: 01:00:00
AC44: =IFERROR(AC42-AC41-AC43,0) -> 00:00:00 | AI44: =IFERROR(AI42-AI41-AI43,0) -> 12:00:00 | AO44: =IFERROR(AO42-AO41-AO43,0) -> 00:00:00 | AU44: =IFERROR(AU42-AU41-AU43,0) -> 12:00:00 | BA44: =IFERROR(BA42-BA41-BA43,0) -> 00:00:00 | BG44: =IFERROR(BG42-BG41-BG43,0) -> 12:00:00 | BM44: =IFERROR(BM42-BM41-BM43,0) -> 00:00:00 | BS44: =IFERROR(BS42-BS41-BS43,0) -> 12:00:00 | BY44: =IFERROR(BY42-BY41-BY43,0) -> 00:00:00 | CE44: =IFERROR(CE42-CE41-CE43,0) -> 12:00:00 | CK44: =IFERROR(CK42-CK41-CK43,0) -> 00:00:00 | CQ44: =IFERROR(CQ42-CQ41-CQ43,0) -> 13:00:00 | CW44: =IFERROR(CW42-CW41-CW43,0) -> 00:00:00 | DC44: =IFERROR(DC42-DC41-DC43,0) -> 0.5 | DI44: =IFERROR(DI42-DI41-DI43,0) -> 00:00:00 | DO44: =IFERROR(DO42-DO41-DO43,0) -> 12:00:00 | DU44: =IFERROR(DU42-DU41-DU43,0) -> 00:00:00 | EA44: =IFERROR(EA42-EA41-EA43,0) -> 12:00:00 | EG44: =IFERROR(EG42-EG41-EG43,0) -> 00:00:00 | EM44: =IFERROR(EM42-EM41-EM43,0) -> 13:00:00 | ES44: =IFERROR(ES42-ES41-ES43,0) -> 00:00:00 | EY44: =IFERROR(EY42-EY41-EY43,0) -> 12:00:00 | FE44: =IFERROR(FE42-FE41-FE43,0) -> 00:00:00 | FK44: =IFERROR(FK42-FK41-FK43,0) -> 0.5 | FQ44: =IFERROR(FQ42-FQ41-FQ43,0) -> 00:00:00 | FW44: =IFERROR(FW42-FW41-FW43,0) -> 13:00:00 | GC44: =IFERROR(GC42-GC41-GC43,0) -> 00:00:00 | GI44: =IFERROR(GI42-GI41-GI43,0) -> 12:00:00 | GO44: =IFERROR(GO42-GO41-GO43,0) -> 00:00:00 | GU44: =IFERROR(GU42-GU41-GU43,0) -> 12:00:00 | HA44: =IFERROR(HA42-HA41-HA43,0) -> 00:00:00 | HY44: =SUM(AC44:HE44) -> 7.625
HZ46: =VLOOKUP($HY$17,'[4]производственный календарь '!$B$2:$D$13,3,0) -> 23 | IA46: =VLOOKUP($HY$17,'[4]производственный календарь '!$B$2:$D$13,2,0) -> 183
B47: 5 | AC47: 0.3333333333 | AO47: 0.3333333333 | BA47: 0.3333333333 | BM47: 0.3333333333 | BY47: 0.3333333333 | CK47: 0.3333333333 | CW47: 0.3333333333 | DI47: 0.3333333333 | DU47: 0.3333333333 | EG47: 0.3333333333 | ES47: 0.3333333333 | FE47: 0.3333333333 | FQ47: 0.3333333333 | GC47: 0.3333333333 | GO47: 0.3333333333 | HA47: 0.3333333333 | HG47: =COUNT(AC47:HF47) -> 16 | HY47: =SUM(IFERROR(AC48:HF48-AC47:HF47-AC49:HF49,0)) -> 7.625
AC48: 0.8333333333 | AO48: 0.8333333333 | BA48: 0.875 | BM48: 0.8333333333 | BY48: 0.8333333333 | CK48: 0.8333333333 | CW48: 0.875 | DI48: 0.8333333333 | DU48: 0.8333333333 | EG48: 0.875 | ES48: 0.8333333333 | FE48: 0.8333333333 | FQ48: 0.875 | GC48: 0.875 | GO48: 0.875 | HA48: 0.875
AC49: 01:00:00 | AO49: 01:00:00 | BA49: 01:00:00 | BM49: 01:00:00 | BY49: 01:00:00 | CK49: 01:00:00 | CW49: 01:00:00 | DI49: 01:00:00 | DU49: 01:00:00 | EG49: 01:00:00 | ES49: 01:00:00 | FE49: 01:00:00 | FQ49: 01:00:00 | GC49: 01:00:00 | GO49: 01:00:00 | HA49: 01:00:00 | IC49: модуль 5 | ID49: 3
AC50: =IFERROR(AC48-AC47-AC49,0) -> 11:00:00 | AI50: =IFERROR(AI48-AI47-AI49,0) -> 00:00:00 | AO50: =IFERROR(AO48-AO47-AO49,0) -> 11:00:00 | AU50: =IFERROR(AU48-AU47-AU49,0) -> 00:00:00 | BA50: =IFERROR(BA48-BA47-BA49,0) -> 12:00:00 | BG50: =IFERROR(BG48-BG47-BG49,0) -> 00:00:00 | BM50: =IFERROR(BM48-BM47-BM49,0) -> 11:00:00 | BS50: =IFERROR(BS48-BS47-BS49,0) -> 00:00:00 | BY50: =IFERROR(BY48-BY47-BY49,0) -> 11:00:00 | CE50: =IFERROR(CE48-CE47-CE49,0) -> 00:00:00 | CK50: =IFERROR(CK48-CK47-CK49,0) -> 11:00:00 | CQ50: =IFERROR(CQ48-CQ47-CQ49,0) -> 00:00:00 | CW50: =IFERROR(CW48-CW47-CW49,0) -> 12:00:00 | DC50: =IFERROR(DC48-DC47-DC49,0) -> 00:00:00 | DI50: =IFERROR(DI48-DI47-DI49,0) -> 11:00:00 | DO50: =IFERROR(DO48-DO47-DO49,0) -> 00:00:00 | DU50: =IFERROR(DU48-DU47-DU49,0) -> 11:00:00 | EA50: =IFERROR(EA48-EA47-EA49,0) -> 00:00:00 | EG50: =IFERROR(EG48-EG47-EG49,0) -> 12:00:00 | EM50: =IFERROR(EM48-EM47-EM49,0) -> 00:00:00 | ES50: =IFERROR(ES48-ES47-ES49,0) -> 11:00:00 | EY50: =IFERROR(EY48-EY47-EY49,0) -> 00:00:00 | FE50: =IFERROR(FE48-FE47-FE49,0) -> 11:00:00 | FK50: =IFERROR(FK48-FK47-FK49,0) -> 00:00:00 | FQ50: =IFERROR(FQ48-FQ47-FQ49,0) -> 12:00:00 | FW50: =IFERROR(FW48-FW47-FW49,0) -> 00:00:00 | GC50: =IFERROR(GC48-GC47-GC49,0) -> 12:00:00 | GI50: =IFERROR(GI48-GI47-GI49,0) -> 00:00:00 | GO50: =IFERROR(GO48-GO47-GO49,0) -> 12:00:00 | GU50: =IFERROR(GU48-GU47-GU49,0) -> 00:00:00 | HA50: =IFERROR(HA48-HA47-HA49,0) -> 12:00:00 | HY50: =SUM(AC50:HE50) -> 7.625
HZ52: =VLOOKUP($HY$17,'[4]производственный календарь '!$B$2:$D$13,3,0) -> 23 | IA52: =VLOOKUP($HY$17,'[4]производственный календарь '!$B$2:$D$13,2,0) -> 183
B53: 6 | AI53: 0.3333333333 | AU53: 0.3333333333 | BG53: 0.3333333333 | BS53: 0.3333333333 | CE53: 0.3333333333 | CQ53: 0.3333333333 | DC53: 0.3333333333 | DO53: 0.3333333333 | EA53: 0.3333333333 | EM53: 0.3333333333 | EY53: 0.3333333333 | FK53: 0.3333333333 | FW53: 0.3333333333 | GI53: 0.3333333333 | GU53: 0.3333333333 | HG53: =COUNT(AC53:HF53) -> 15 | HY53: =SUM(IFERROR(AC54:HF54-AC53:HF53-AC55:HF55,0)) -> 7.625
AI54: 0.875 | AU54: 0.875 | BG54: 0.875 | BS54: 0.875 | CE54: 0.875 | CQ54: 0.9166666667 | DC54: 0.875 | DO54: 0.875 | EA54: 0.875 | EM54: 0.9166666667 | EY54: 0.875 | FK54: 0.875 | FW54: 0.9166666667 | GI54: 0.875 | GU54: 0.875
AI55: 01:00:00 | AU55: 01:00:00 | BG55: 01:00:00 | BS55: 01:00:00 | CE55: 01:00:00 | CQ55: 01:00:00 | DC55: 01:00:00 | DO55: 01:00:00 | EA55: 01:00:00 | EM55: 01:00:00 | EY55: 01:00:00 | FK55: 01:00:00 | FW55: 01:00:00 | GI55: 01:00:00 | GU55: 01:00:00
AC56: =IFERROR(AC54-AC53-AC55,0) -> 00:00:00 | AI56: =IFERROR(AI54-AI53-AI55,0) -> 12:00:00 | AO56: =IFERROR(AO54-AO53-AO55,0) -> 00:00:00 | AU56: =IFERROR(AU54-AU53-AU55,0) -> 12:00:00 | BA56: =IFERROR(BA54-BA53-BA55,0) -> 00:00:00 | BG56: =IFERROR(BG54-BG53-BG55,0) -> 12:00:00 | BM56: =IFERROR(BM54-BM53-BM55,0) -> 00:00:00 | BS56: =IFERROR(BS54-BS53-BS55,0) -> 12:00:00 | BY56: =IFERROR(BY54-BY53-BY55,0) -> 00:00:00 | CE56: =IFERROR(CE54-CE53-CE55,0) -> 12:00:00 | CK56: =IFERROR(CK54-CK53-CK55,0) -> 00:00:00 | CQ56: =IFERROR(CQ54-CQ53-CQ55,0) -> 13:00:00 | CW56: =IFERROR(CW54-CW53-CW55,0) -> 00:00:00 | DC56: =IFERROR(DC54-DC53-DC55,0) -> 12:00:00 | DI56: =IFERROR(DI54-DI53-DI55,0) -> 00:00:00 | DO56: =IFERROR(DO54-DO53-DO55,0) -> 12:00:00 | DU56: =IFERROR(DU54-DU53-DU55,0) -> 00:00:00 | EA56: =IFERROR(EA54-EA53-EA55,0) -> 12:00:00 | EG56: =IFERROR(EG54-EG53-EG55,0) -> 00:00:00 | EM56: =IFERROR(EM54-EM53-EM55,0) -> 13:00:00 | ES56: =IFERROR(ES54-ES53-ES55,0) -> 00:00:00 | EY56: =IFERROR(EY54-EY53-EY55,0) -> 12:00:00 | FE56: =IFERROR(FE54-FE53-FE55,0) -> 00:00:00 | FK56: =IFERROR(FK54-FK53-FK55,0) -> 12:00:00 | FQ56: =IFERROR(FQ54-FQ53-FQ55,0) -> 00:00:00 | FW56: =IFERROR(FW54-FW53-FW55,0) -> 13:00:00 | GC56: =IFERROR(GC54-GC53-GC55,0) -> 00:00:00 | GI56: =IFERROR(GI54-GI53-GI55,0) -> 12:00:00 | GO56: =IFERROR(GO54-GO53-GO55,0) -> 00:00:00 | GU56: =IFERROR(GU54-GU53-GU55,0) -> 12:00:00 | HA56: =IFERROR(HA54-HA53-HA55,0) -> 00:00:00 | HY56: =SUM(AC56:HE56) -> 7.625
HY57: =SUM(AC57:HF57) -> 00:00:00
HZ58: =VLOOKUP($HY$17,'[4]производственный календарь '!$B$2:$D$13,3,0) -> 23 | IA58: =VLOOKUP($HY$17,'[4]производственный календарь '!$B$2:$D$13,2,0) -> 183
B59: 7 | AC59: 0.3333333333 | AO59: 0.3333333333 | BA59: 0.3333333333 | BM59: 0.3333333333 | BY59: 0.3333333333 | CK59: 0.3333333333 | CW59: 0.3333333333 | DI59: 0.3333333333 | DU59: 0.3333333333 | EG59: 0.3333333333 | ES59: 0.3333333333 | FE59: 0.3333333333 | FQ59: 0.3333333333 | GC59: 0.3333333333 | GO59: 0.3333333333 | HA59: 0.3333333333 | HG59: =COUNT(AC59:HF59) -> 16 | HY59: =SUM(IFERROR(AC60:HF60-AC59:HF59-AC61:HF61,0)) -> 7.625
AC60: 0.8333333333 | AO60: 0.8333333333 | BA60: 0.875 | BM60: 0.8333333333 | BY60: 0.8333333333 | CK60: 0.8333333333 | CW60: 0.875 | DI60: 0.8333333333 | DU60: 0.8333333333 | EG60: 0.875 | ES60: 0.8333333333 | FE60: 0.8333333333 | FQ60: 0.875 | GC60: 0.875 | GO60: 0.875 | HA60: 0.875
AC61: 01:00:00 | AO61: 01:00:00 | BA61: 01:00:00 | BM61: 01:00:00 | BY61: 01:00:00 | CK61: 01:00:00 | CW61: 01:00:00 | DI61: 01:00:00 | DU61: 01:00:00 | EG61: 01:00:00 | ES61: 01:00:00 | FE61: 01:00:00 | FQ61: 01:00:00 | GC61: 01:00:00 | GO61: 01:00:00 | HA61: 01:00:00
AC62: =IFERROR(AC60-AC59-AC61,0) -> 11:00:00 | AI62: =IFERROR(AI60-AI59-AI61,0) -> 00:00:00 | AO62: =IFERROR(AO60-AO59-AO61,0) -> 11:00:00 | AU62: =IFERROR(AU60-AU59-AU61,0) -> 00:00:00 | BA62: =IFERROR(BA60-BA59-BA61,0) -> 12:00:00 | BG62: =IFERROR(BG60-BG59-BG61,0) -> 00:00:00 | BM62: =IFERROR(BM60-BM59-BM61,0) -> 11:00:00 | BS62: =IFERROR(BS60-BS59-BS61,0) -> 00:00:00 | BY62: =IFERROR(BY60-BY59-BY61,0) -> 11:00:00 | CE62: =IFERROR(CE60-CE59-CE61,0) -> 00:00:00 | CK62: =IFERROR(CK60-CK59-CK61,0) -> 11:00:00 | CQ62: =IFERROR(CQ60-CQ59-CQ61,0) -> 00:00:00 | CW62: =IFERROR(CW60-CW59-CW61,0) -> 12:00:00 | DC62: =IFERROR(DC60-DC59-DC61,0) -> 00:00:00 | DI62: =IFERROR(DI60-DI59-DI61,0) -> 11:00:00 | DO62: =IFERROR(DO60-DO59-DO61,0) -> 00:00:00 | DU62: =IFERROR(DU60-DU59-DU61,0) -> 0.4583333333 | EA62: =IFERROR(EA60-EA59-EA61,0) -> 00:00:00 | EG62: =IFERROR(EG60-EG59-EG61,0) -> 12:00:00 | EM62: =IFERROR(EM60-EM59-EM61,0) -> 00:00:00 | ES62: =IFERROR(ES60-ES59-ES61,0) -> 11:00:00 | EY62: =IFERROR(EY60-EY59-EY61,0) -> 00:00:00 | FE62: =IFERROR(FE60-FE59-FE61,0) -> 11:00:00 | FK62: =IFERROR(FK60-FK59-FK61,0) -> 00:00:00 | FQ62: =IFERROR(FQ60-FQ59-FQ61,0) -> 12:00:00 | FW62: =IFERROR(FW60-FW59-FW61,0) -> 00:00:00 | GC62: =IFERROR(GC60-GC59-GC61,0) -> 12:00:00 | GI62: =IFERROR(GI60-GI59-GI61,0) -> 00:00:00 | GO62: =IFERROR(GO60-GO59-GO61,0) -> 12:00:00 | GU62: =IFERROR(GU60-GU59-GU61,0) -> 00:00:00 | HA62: =IFERROR(HA60-HA59-HA61,0) -> 12:00:00 | HY62: =SUM(AC62:HE62) -> 7.625
HZ64: =VLOOKUP($HY$17,'[4]производственный календарь '!$B$2:$D$13,3,0) -> 23 | IA64: =VLOOKUP($HY$17,'[4]производственный календарь '!$B$2:$D$13,2,0) -> 183
B65: 8 | AC65: В | AI65: 0.4166666667 | AO65: 0.4166666667 | AU65: 0.4166666667 | BA65: 0.4166666667 | BG65: 0.4166666667 | BM65: 0.4166666667 | BS65: В | BY65: 0.4166666667 | CE65: 0.4166666667 | CK65: 0.4166666667 | CQ65: 0.4166666667 | CW65: 0.4166666667 | DC65: 0.4166666667 | DI65: В | DO65: 0.4166666667 | DU65: 0.4166666667 | EA65: 0.4166666667 | EG65: 0.4166666667 | EM65: 0.4166666667 | ES65: 0.4166666667 | EY65: В | FE65: 0.4166666667 | FK65: 0.4166666667 | FQ65: 0.4166666667 | FW65: 0.4166666667 | GC65: 0.4166666667 | GI65: 0.4166666667 | GO65: 0.4166666667 | GU65: В | HA65: 0.4166666667 | HG65: =COUNT(AC65:HF65) -> 26 | HY65: =SUM(IFERROR(AC66:HF66-AC65:HF65-AC67:HF67,0)) -> 7.625
AC66: В | AI66: 0.75 | AO66: 0.75 | AU66: 0.75 | BA66: 0.75 | BG66: 0.75 | BM66: 0.6666666667 | BS66: В | BY66: 0.75 | CE66: 0.75 | CK66: 0.75 | CQ66: 0.75 | CW66: 0.75 | DC66: 0.6666666667 | DI66: В | DO66: 0.75 | DU66: 0.75 | EA66: 0.75 | EG66: 0.75 | EM66: 0.75 | ES66: 0.6666666667 | EY66: В | FE66: 0.75 | FK66: 0.7916666667 | FQ66: 0.7916666667 | FW66: 0.7916666667 | GC66: 0.7916666667 | GI66: 0.7916666667 | GO66: 0.7916666667 | GU66: В | HA66: 0.7916666667
AC67: В | AI67: 01:00:00 | AO67: 01:00:00 | AU67: 01:00:00 | BA67: 01:00:00 | BG67: 01:00:00 | BM67: 01:00:00 | BS67: В | BY67: 01:00:00 | CE67: 01:00:00 | CK67: 01:00:00 | CQ67: 01:00:00 | CW67: 01:00:00 | DC67: 01:00:00 | DI67: В | DO67: 01:00:00 | DU67: 01:00:00 | EA67: 01:00:00 | EG67: 01:00:00 | EM67: 01:00:00 | ES67: 01:00:00 | EY67: В | FE67: 01:00:00 | FK67: 01:00:00 | FQ67: 01:00:00 | FW67: 01:00:00 | GC67: 01:00:00 | GI67: 01:00:00 | GO67: 01:00:00 | GU67: В | HA67: 01:00:00
AC68: =IFERROR(AC66-AC65-AC67,0) -> 00:00:00 | AI68: =IFERROR(AI66-AI65-AI67,0) -> 07:00:00 | AO68: =IFERROR(AO66-AO65-AO67,0) -> 07:00:00 | AU68: =IFERROR(AU66-AU65-AU67,0) -> 07:00:00 | BA68: =IFERROR(BA66-BA65-BA67,0) -> 07:00:00 | BG68: =IFERROR(BG66-BG65-BG67,0) -> 07:00:00 | BM68: =IFERROR(BM66-BM65-BM67,0) -> 05:00:00 | BS68: =IFERROR(BS66-BS65-BS67,0) -> 00:00:00 | BY68: =IFERROR(BY66-BY65-BY67,0) -> 07:00:00 | CE68: =IFERROR(CE66-CE65-CE67,0) -> 07:00:00 | CK68: =IFERROR(CK66-CK65-CK67,0) -> 07:00:00 | CQ68: =IFERROR(CQ66-CQ65-CQ67,0) -> 07:00:00 | CW68: =IFERROR(CW66-CW65-CW67,0) -> 07:00:00 | DC68: =IFERROR(DC66-DC65-DC67,0) -> 05:00:00 | DI68: =IFERROR(DI66-DI65-DI67,0) -> 00:00:00 | DO68: =IFERROR(DO66-DO65-DO67,0) -> 07:00:00 | DU68: =IFERROR(DU66-DU65-DU67,0) -> 07:00:00 | EA68: =IFERROR(EA66-EA65-EA67,0) -> 07:00:00 | EG68: =IFERROR(EG66-EG65-EG67,0) -> 07:00:00 | EM68: =IFERROR(EM66-EM65-EM67,0) -> 07:00:00 | ES68: =IFERROR(ES66-ES65-ES67,0) -> 05:00:00 | EY68: =IFERROR(EY66-EY65-EY67,0) -> 00:00:00 | FE68: =IFERROR(FE66-FE65-FE67,0) -> 07:00:00 | FK68: =IFERROR(FK66-FK65-FK67,0) -> 08:00:00 | FQ68: =IFERROR(FQ66-FQ65-FQ67,0) -> 08:00:00 | FW68: =IFERROR(FW66-FW65-FW67,0) -> 08:00:00 | GC68: =IFERROR(GC66-GC65-GC67,0) -> 08:00:00 | GI68: =IFERROR(GI66-GI65-GI67,0) -> 08:00:00 | GO68: =IFERROR(GO66-GO65-GO67,0) -> 08:00:00 | GU68: =IFERROR(GU66-GU65-GU67,0) -> 00:00:00 | HA68: =IFERROR(HA66-HA65-HA67,0) -> 08:00:00 | HY68: =SUM(AC68:HE68) -> 7.625
HZ70: =VLOOKUP($HY$17,'[4]производственный календарь '!$B$2:$D$13,3,0) -> 23 | IA70: =VLOOKUP($HY$17,'[4]производственный календарь '!$B$2:$D$13,2,0) -> 183
B71: 9 | AI71: 01:00:00 | AO71: 01:00:00 | AU71: 01:00:00 | BA71: 0.04166666667 | BG71: 0.08333333333 | BM71: 02:00:00 | BY71: 02:00:00 | CE71: 02:00:00 | CK71: 02:00:00 | CQ71: 0.08333333333 | CW71: 0.08333333333 | DC71: 02:00:00 | DO71: 02:00:00 | DU71: 02:00:00 | EA71: 02:00:00 | EG71: 0.08333333333 | EM71: 0.08333333333 | ES71: 02:00:00 | FE71: 02:00:00 | FK71: 02:00:00 | FQ71: 02:00:00 | FW71: 0.08333333333 | GC71: 0.08333333333 | GI71: 01:00:00 | GO71: 01:00:00 | HA71: 01:45:00 | HG71: =COUNT(AC71:HF71) -> 26 | HY71: =SUM(AC71:HF71) -> 1.90625
HZ73: =VLOOKUP($HY$17,'[4]производственный календарь '!$B$2:$D$13,3,0) -> 23 | IA73: =VLOOKUP($HY$17,'[4]производственный календарь '!$B$2:$D$13,2,0) -> 183
AC74: =AC71 -> 00:00:00 | AI74: =AI71 -> 01:00:00 | AO74: 01:00:00 | AU74: 01:00:00 | BA74: 01:00:00 | BG74: 02:00:00 | BM74: 02:00:00 | BS74: 00:00:00 | BY74: 02:00:00 | CE74: 02:00:00 | CK74: 02:00:00 | CQ74: 02:00:00 | CW74: =CW71 -> 02:00:00 | DC74: 02:00:00 | DI74: 00:00:00 | DO74: 02:00:00 | DU74: 02:00:00 | EA74: 02:00:00 | EG74: 02:00:00 | EM74: 02:00:00 | ES74: 02:00:00 | EY74: 00:00:00 | FE74: 02:00:00 | FK74: =FK71 -> 02:00:00 | FQ74: 02:00:00 | FW74: 02:00:00 | GC74: 02:00:00 | GI74: 01:00:00 | GO74: 01:00:00 | GU74: 00:00:00 | HA74: 01:45:00 | HY74: =SUM(AC74:HE74) -> 1.90625
HZ76: =VLOOKUP($HY$17,'[4]производственный календарь '!$B$2:$D$13,3,0) -> 23 | IA76: =VLOOKUP($HY$17,'[4]производственный календарь '!$B$2:$D$13,2,0) -> 183
B77: 10 | AI77: 0.5833333333 | AO77: 0 | BA77: 0.5833333333 | BG77: 0 | BS77: 0.5833333333 | BY77: 0 | CK77: 0.625 | CQ77: 0 | DC77: 0.625 | DI77: 0 | DU77: 0.625 | EA77: 0 | EM77: 0.625 | ES77: 0 | FE77: 0.625 | FK77: 0 | FW77: 0.625 | GC77: 0 | GO77: 0.625 | GU77: 0 | HY77: =SUM(IF(ISNUMBER(AC77:HF77),AC78:HF78-AC77:HF77+(AC78:HF78<AC77:HF77),))*24 -> 183 | IA77: =IA76/4 -> 45.75
AI78: 1 | AO78: 0.375 | BA78: 1 | BG78: 0.375 | BS78: 1 | BY78: 0.375 | CK78: 1 | CQ78: 0.375 | DC78: 1 | DI78: 0.375 | DU78: 1 | EA78: 0.375 | EM78: 1 | ES78: 0.375 | FE78: 1 | FK78: 0.375 | FW78: 1 | GC78: 0.375 | GO78: 1 | GU78: 0.375 | HG78: =COUNT(AC78:HF78) -> 20
AC79: =IFERROR(AC78-AC77,0) -> 0 | AI79: =IFERROR(AI78-AI77,0) -> 10:00:00 | AO79: =IFERROR(AO78-AO77,0) -> 0.375 | AU79: =IFERROR(AU78-AU77,0) -> 0 | BA79: =IFERROR(BA78-BA77,0) -> 0.4166666667 | BG79: =IFERROR(BG78-BG77,0) -> 0.375 | BM79: =IFERROR(BM78-BM77,0) -> 0 | BS79: =IFERROR(BS78-BS77,0) -> 0.4166666667 | BY79: =IFERROR(BY78-BY77,0) -> 09:00:00 | CE79: =IFERROR(CE78-CE77,0) -> 0 | CK79: =IFERROR(CK78-CK77,0) -> 0.375 | CQ79: =IFERROR(CQ78-CQ77,0) -> 0.375 | CW79: =IFERROR(CW78-CW77,0) -> 0 | DC79: =IFERROR(DC78-DC77,0) -> 0.375 | DI79: =IFERROR(DI78-DI77,0) -> 0.375 | DO79: =IFERROR(DO78-DO77,0) -> 00:00:00 | DU79: =IFERROR(DU78-DU77,0) -> 0.375 | EA79: =IFERROR(EA78-EA77,0) -> 0.375 | EG79: =IFERROR(EG78-EG77,0) -> 0 | EM79: =IFERROR(EM78-EM77,0) -> 0.375 | ES79: =IFERROR(ES78-ES77,0) -> 0.375 | EY79: =IFERROR(EY78-EY77,0) -> 0 | FE79: =IFERROR(FE78-FE77,0) -> 09:00:00 | FK79: =IFERROR(FK78-FK77,0) -> 0.375 | FQ79: =IFERROR(FQ78-FQ77,0) -> 0 | FW79: =IFERROR(FW78-FW77,0) -> 0.375 | GC79: =IFERROR(GC78-GC77,0) -> 0.375 | GI79: =IFERROR(GI78-GI77,0) -> 0 | GO79: =IFERROR(GO78-GO77,0) -> 0.375 | GU79: =IFERROR(GU78-GU77,0) -> 09:00:00 | HA79: =IFERROR(HA78-HA77,0) -> 0 | HY79: =SUM(AC79:HE79) -> 7.625
HY80: =SUM(AC81:HF81) -> 0
HY81: =SUM(AC82:HF83) -> 80
AC82: =(MIN(AC78,6/24)-MIN(AC77,6/24)+MAX(AC78,22/24)-MAX(AC77,22/24))*24+(AC78<AC77)*8 -> 0 | AI82: =(MIN(AI78,6/24)-MIN(AI77,6/24)+MAX(AI78,22/24)-MAX(AI77,22/24))*24+(AI78<AI77)*8 -> 2 | AO82: =(MIN(AO78,6/24)-MIN(AO77,6/24)+MAX(AO78,22/24)-MAX(AO77,22/24))*24+(AO78<AO77)*8 -> 6 | AU82: =(MIN(AU78,6/24)-MIN(AU77,6/24)+MAX(AU78,22/24)-MAX(AU77,22/24))*24+(AU78<AU77)*8 -> 0 | BA82: =(MIN(BA78,6/24)-MIN(BA77,6/24)+MAX(BA78,22/24)-MAX(BA77,22/24))*24+(BA78<BA77)*8 -> 2 | BG82: =(MIN(BG78,6/24)-MIN(BG77,6/24)+MAX(BG78,22/24)-MAX(BG77,22/24))*24+(BG78<BG77)*8 -> 6 | BM82: =(MIN(BM78,6/24)-MIN(BM77,6/24)+MAX(BM78,22/24)-MAX(BM77,22/24))*24+(BM78<BM77)*8 -> 0 | BS82: =(MIN(BS78,6/24)-MIN(BS77,6/24)+MAX(BS78,22/24)-MAX(BS77,22/24))*24+(BS78<BS77)*8 -> 2 | BY82: =(MIN(BY78,6/24)-MIN(BY77,6/24)+MAX(BY78,22/24)-MAX(BY77,22/24))*24+(BY78<BY77)*8 -> 6 | CE82: =(MIN(CE78,6/24)-MIN(CE77,6/24)+MAX(CE78,22/24)-MAX(CE77,22/24))*24+(CE78<CE77)*8 -> 0 | CK82: =(MIN(CK78,6/24)-MIN(CK77,6/24)+MAX(CK78,22/24)-MAX(CK77,22/24))*24+(CK78<CK77)*8 -> 2 | CQ82: =(MIN(CQ78,6/24)-MIN(CQ77,6/24)+MAX(CQ78,22/24)-MAX(CQ77,22/24))*24+(CQ78<CQ77)*8 -> 6 | CW82: =(MIN(CW78,6/24)-MIN(CW77,6/24)+MAX(CW78,22/24)-MAX(CW77,22/24))*24+(CW78<CW77)*8 -> 0 | DC82: =(MIN(DC78,6/24)-MIN(DC77,6/24)+MAX(DC78,22/24)-MAX(DC77,22/24))*24+(DC78<DC77)*8 -> 2 | DI82: =(MIN(DI78,6/24)-MIN(DI77,6/24)+MAX(DI78,22/24)-MAX(DI77,22/24))*24+(DI78<DI77)*8 -> 6 | DO82: =(MIN(DO78,6/24)-MIN(DO77,6/24)+MAX(DO78,22/24)-MAX(DO77,22/24))*24+(DO78<DO77)*8 -> 0 | DU82: =(MIN(DU78,6/24)-MIN(DU77,6/24)+MAX(DU78,22/24)-MAX(DU77,22/24))*24+(DU78<DU77)*8 -> 2 | EA82: =(MIN(EA78,6/24)-MIN(EA77,6/24)+MAX(EA78,22/24)-MAX(EA77,22/24))*24+(EA78<EA77)*8 -> 6 | EG82: =(MIN(EG78,6/24)-MIN(EG77,6/24)+MAX(EG78,22/24)-MAX(EG77,22/24))*24+(EG78<EG77)*8 -> 0 | EM82: =(MIN(EM78,6/24)-MIN(EM77,6/24)+MAX(EM78,22/24)-MAX(EM77,22/24))*24+(EM78<EM77)*8 -> 2 | ES82: =(MIN(ES78,6/24)-MIN(ES77,6/24)+MAX(ES78,22/24)-MAX(ES77,22/24))*24+(ES78<ES77)*8 -> 6 | EY82: =(MIN(EY78,6/24)-MIN(EY77,6/24)+MAX(EY78,22/24)-MAX(EY77,22/24))*24+(EY78<EY77)*8 -> 0 | FE82: =(MIN(FE78,6/24)-MIN(FE77,6/24)+MAX(FE78,22/24)-MAX(FE77,22/24))*24+(FE78<FE77)*8 -> 2 | FK82: =(MIN(FK78,6/24)-MIN(FK77,6/24)+MAX(FK78,22/24)-MAX(FK77,22/24))*24+(FK78<FK77)*8 -> 6 | FQ82: =(MIN(FQ78,6/24)-MIN(FQ77,6/24)+MAX(FQ78,22/24)-MAX(FQ77,22/24))*24+(FQ78<FQ77)*8 -> 0 | FW82: =(MIN(FW78,6/24)-MIN(FW77,6/24)+MAX(FW78,22/24)-MAX(FW77,22/24))*24+(FW78<FW77)*8 -> 2 | GC82: =(MIN(GC78,6/24)-MIN(GC77,6/24)+MAX(GC78,22/24)-MAX(GC77,22/24))*24+(GC78<GC77)*8 -> 6 | GI82: =(MIN(GI78,6/24)-MIN(GI77,6/24)+MAX(GI78,22/24)-MAX(GI77,22/24))*24+(GI78<GI77)*8 -> 0 | GO82: =(MIN(GO78,6/24)-MIN(GO77,6/24)+MAX(GO78,22/24)-MAX(GO77,22/24))*24+(GO78<GO77)*8 -> 2 | GU82: =(MIN(GU78,6/24)-MIN(GU77,6/24)+MAX(GU78,22/24)-MAX(GU77,22/24))*24+(GU78<GU77)*8 -> 6 | HA82: =(MIN(HA78,6/24)-MIN(HA77,6/24)+MAX(HA78,22/24)-MAX(HA77,22/24))*24+(HA78<HA77)*8 -> 0 | HZ82: =VLOOKUP($HY$17,'[4]производственный календарь '!$B$2:$D$13,3,0) -> 23 | IA82: =VLOOKUP($HY$17,'[4]производственный календарь '!$B$2:$D$13,2,0) -> 183
HG83: =COUNT(AC84:HF84) -> 10 | HY83: =SUM(AC84:HE84) -> 44.45
B84: 12 | AI84: 4 | BA84: 4 | BS84: 4 | CK84: 4 | DC84: 4 | DU84: 4.45 | EM84: 5 | FE84: 5 | FW84: 5 | GO84: 5
A88: 11 | HZ88: =VLOOKUP($HY$17,'[4]производственный календарь '!$B$2:$D$13,3,0) -> 23 | IA88: =VLOOKUP($HY$17,'[4]производственный календарь '!$B$2:$D$13,2,0) -> 183
HG89: =COUNT(AC90:HF90) -> 12 | IA89: =IA88/2 -> 91.5
B90: 13 | AC90: ОТ | AI90: ОТ | AO90: ОТ | AU90: ОТ | BA90: ОТ | BG90: ОТ | BM90: ОТ | BS90: ОТ | BY90: ОТ | CE90: ОТ | CK90: ОТ | CQ90: ОТ | CW90: ОТ | DC90: 0.9166666667 | DI90: 0 | DU90: 0.9166666667 | EA90: 0 | EM90: 0.9583333333 | ES90: 0 | FE90: 0.9583333333 | FK90: 0 | FW90: 0.9583333333 | GC90: 0 | GO90: 0.9375 | GU90: 0 | HG90: =COUNT(AC90:HF90) -> 12 | HY90: =SUM(IF(ISNUMBER(AC90:HF90),AC91:HF91-AC90:HF90+(AC91:HF91<AC90:HF90),))*24 -> 53.5 | IG90: В
AC91: ОТ | AI91: ОТ | AO91: ОТ | AU91: ОТ | BA91: ОТ | BG91: ОТ | BM91: ОТ | BS91: ОТ | BY91: ОТ | CE91: ОТ | CK91: ОТ | CQ91: ОТ | CW91: ОТ | DC91: 1 | DI91: 0.3125 | DU91: 1 | EA91: 0.3125 | EM91: 1 | ES91: 0.3125 | FE91: 1 | FK91: 0.3125 | FW91: 1 | GC91: 0.3125 | GO91: 1 | GU91: 0.3125 | HY91: 53.5
AC92: =IFERROR(AC91-AC90,0) -> 0 | AI92: =IFERROR(AI91-AI90,0) -> 00:00:00 | AO92: =IFERROR(AO91-AO90,0) -> 0 | AU92: =IFERROR(AU91-AU90,0) -> 0 | BA92: =IFERROR(BA91-BA90,0) -> 0 | BG92: =IFERROR(BG91-BG90,0) -> 0 | BM92: =IFERROR(BM91-BM90,0) -> 0 | BS92: =IFERROR(BS91-BS90,0) -> 0 | BY92: =IFERROR(BY91-BY90,0) -> 00:00:00 | CE92: =IFERROR(CE91-CE90,0) -> 0 | CK92: =IFERROR(CK91-CK90,0) -> 0 | CQ92: =IFERROR(CQ91-CQ90,0) -> 0 | CW92: =IFERROR(CW91-CW90,0) -> 0 | DC92: =IFERROR(DC91-DC90,0) -> 0.08333333333 | DI92: =IFERROR(DI91-DI90,0) -> 0.3125 | DO92: =IFERROR(DO91-DO90,0) -> 00:00:00 | DU92: =IFERROR(DU91-DU90,0) -> 0.08333333333 | EA92: =IFERROR(EA91-EA90,0) -> 0.3125 | EG92: =IFERROR(EG91-EG90,0) -> 0 | EM92: =IFERROR(EM91-EM90,0) -> 0.04166666667 | ES92: =IFERROR(ES91-ES90,0) -> 0.3125 | EY92: =IFERROR(EY91-EY90,0) -> 0 | FE92: =IFERROR(FE91-FE90,0) -> 01:00:00 | FK92: =IFERROR(FK91-FK90,0) -> 0.3125 | FQ92: =IFERROR(FQ91-FQ90,0) -> 0 | FW92: =IFERROR(FW91-FW90,0) -> 0.04166666667 | GC92: =IFERROR(GC91-GC90,0) -> 0.3125 | GI92: =IFERROR(GI91-GI90,0) -> 0 | GO92: =IFERROR(GO91-GO90,0) -> 0.0625 | GU92: =IFERROR(GU91-GU90,0) -> 07:30:00 | HA92: =IFERROR(HA91-HA90,0) -> 0 | HY92: =SUM(AC92:HF92) -> 2.229166667
AC94: =(MIN(AC91,6/24)-MIN(AC90,6/24)+MAX(AC91,22/24)-MAX(AC90,22/24))*24+(AC91<AC90)*8 -> 0 | AI94: =(MIN(AI91,6/24)-MIN(AI90,6/24)+MAX(AI91,22/24)-MAX(AI90,22/24))*24+(AI91<AI90)*8 -> 0 | AO94: =(MIN(AO91,6/24)-MIN(AO90,6/24)+MAX(AO91,22/24)-MAX(AO90,22/24))*24+(AO91<AO90)*8 -> 0 | AU94: =(MIN(AU91,6/24)-MIN(AU90,6/24)+MAX(AU91,22/24)-MAX(AU90,22/24))*24+(AU91<AU90)*8 -> 0 | BA94: =(MIN(BA91,6/24)-MIN(BA90,6/24)+MAX(BA91,22/24)-MAX(BA90,22/24))*24+(BA91<BA90)*8 -> 0 | BG94: =(MIN(BG91,6/24)-MIN(BG90,6/24)+MAX(BG91,22/24)-MAX(BG90,22/24))*24+(BG91<BG90)*8 -> 0 | BM94: =(MIN(BM91,6/24)-MIN(BM90,6/24)+MAX(BM91,22/24)-MAX(BM90,22/24))*24+(BM91<BM90)*8 -> 0 | BS94: =(MIN(BS91,6/24)-MIN(BS90,6/24)+MAX(BS91,22/24)-MAX(BS90,22/24))*24+(BS91<BS90)*8 -> 0 | BY94: =(MIN(BY91,6/24)-MIN(BY90,6/24)+MAX(BY91,22/24)-MAX(BY90,22/24))*24+(BY91<BY90)*8 -> 0 | CE94: =(MIN(CE91,6/24)-MIN(CE90,6/24)+MAX(CE91,22/24)-MAX(CE90,22/24))*24+(CE91<CE90)*8 -> 0 | CK94: =(MIN(CK91,6/24)-MIN(CK90,6/24)+MAX(CK91,22/24)-MAX(CK90,22/24))*24+(CK91<CK90)*8 -> 0 | CQ94: =(MIN(CQ91,6/24)-MIN(CQ90,6/24)+MAX(CQ91,22/24)-MAX(CQ90,22/24))*24+(CQ91<CQ90)*8 -> 0 | CW94: =(MIN(CW91,6/24)-MIN(CW90,6/24)+MAX(CW91,22/24)-MAX(CW90,22/24))*24+(CW91<CW90)*8 -> 0 | DC94: =(MIN(DC91,6/24)-MIN(DC90,6/24)+MAX(DC91,22/24)-MAX(DC90,22/24))*24+(DC91<DC90)*8 -> 2 | DI94: =(MIN(DI91,6/24)-MIN(DI90,6/24)+MAX(DI91,22/24)-MAX(DI90,22/24))*24+(DI91<DI90)*8 -> 6 | DO94: =(MIN(DO91,6/24)-MIN(DO90,6/24)+MAX(DO91,22/24)-MAX(DO90,22/24))*24+(DO91<DO90)*8 -> 0 | DU94: =(MIN(DU91,6/24)-MIN(DU90,6/24)+MAX(DU91,22/24)-MAX(DU90,22/24))*24+(DU91<DU90)*8 -> 2 | EA94: =(MIN(EA91,6/24)-MIN(EA90,6/24)+MAX(EA91,22/24)-MAX(EA90,22/24))*24+(EA91<EA90)*8 -> 6 | EG94: =(MIN(EG91,6/24)-MIN(EG90,6/24)+MAX(EG91,22/24)-MAX(EG90,22/24))*24+(EG91<EG90)*8 -> 0 | EM94: =(MIN(EM91,6/24)-MIN(EM90,6/24)+MAX(EM91,22/24)-MAX(EM90,22/24))*24+(EM91<EM90)*8 -> 1 | ES94: =(MIN(ES91,6/24)-MIN(ES90,6/24)+MAX(ES91,22/24)-MAX(ES90,22/24))*24+(ES91<ES90)*8 -> 6 | EY94: =(MIN(EY91,6/24)-MIN(EY90,6/24)+MAX(EY91,22/24)-MAX(EY90,22/24))*24+(EY91<EY90)*8 -> 0 | FE94: =(MIN(FE91,6/24)-MIN(FE90,6/24)+MAX(FE91,22/24)-MAX(FE90,22/24))*24+(FE91<FE90)*8 -> 1 | FK94: =(MIN(FK91,6/24)-MIN(FK90,6/24)+MAX(FK91,22/24)-MAX(FK90,22/24))*24+(FK91<FK90)*8 -> 6 | FQ94: =(MIN(FQ91,6/24)-MIN(FQ90,6/24)+MAX(FQ91,22/24)-MAX(FQ90,22/24))*24+(FQ91<FQ90)*8 -> 0 | FW94: =(MIN(FW91,6/24)-MIN(FW90,6/24)+MAX(FW91,22/24)-MAX(FW90,22/24))*24+(FW91<FW90)*8 -> 1 | GC94: =(MIN(GC91,6/24)-MIN(GC90,6/24)+MAX(GC91,22/24)-MAX(GC90,22/24))*24+(GC91<GC90)*8 -> 6 | GI94: =(MIN(GI91,6/24)-MIN(GI90,6/24)+MAX(GI91,22/24)-MAX(GI90,22/24))*24+(GI91<GI90)*8 -> 0 | GO94: =(MIN(GO91,6/24)-MIN(GO90,6/24)+MAX(GO91,22/24)-MAX(GO90,22/24))*24+(GO91<GO90)*8 -> 1.5 | GU94: =(MIN(GU91,6/24)-MIN(GU90,6/24)+MAX(GU91,22/24)-MAX(GU90,22/24))*24+(GU91<GU90)*8 -> 6 | HA94: =(MIN(HA91,6/24)-MIN(HA90,6/24)+MAX(HA91,22/24)-MAX(HA90,22/24))*24+(HA91<HA90)*8 -> 0 | HY94: =SUM(AC94:HF94) -> 44.5
HY95: =SUM(AC96:HF96) -> 0
AC96: ОТ | AI96: ОТ | AO96: ОТ | AU96: ОТ | BA96: ОТ | BG96: ОТ | BM96: ОТ | BS96: ОТ | BY96: ОТ | CE96: ОТ | CK96: ОТ | CQ96: ОТ | CW96: ОТ
R100: С графиком ознакомлен(а):
BW102: "___"______________2020
BW103: "___"______________2020
BW104: "___"______________2020
BW105: "___"______________2020
BW106: "___"______________2020
BW107: "___"______________2020
BW108: "___"______________2020
BW109: "___"______________2020
BW110: "___"______________2020
BW111: "___"______________2020
Q112: 12 | BW112: "___"______________2020
BW113: "___"______________2020

Sheet ТАБЕЛЬ К.П. ДЕКАБРЬ
A5: название структурного подразделения
I6: ГРАФИК РАБОТЫ | AQ6: с | AV6: по | AW6: 2020-05-31
E7: обслуживающего персонала на | R7: =IF(DAY(D42)>=28,EDATE(D42,1),D42) -> 2020-12-01 | X7: года | AR7: Рабочих дней | AV7: =VLOOKUP(AM8,'[4]производственный календарь '!$B$2:$D$13,3,0) -> 23 | AW7: Рабочих часов | BF7: =VLOOKUP(AM8,'[4]производственный календарь '!$B$2:D13,2,0) -> 183
R8: МАРТ | AM8: декабрь
A9: № п/п | B9: Табельний номер | C9: Фамилия, и., о. | D9: Профессия, должность | E9: номер | F9: Отметки о явках и неявках на работу по числам месяца (часов) | AM9: отработано за месяц | AU9: Всего неявок | AV9: Дни неявок | BE9: Выходные дни
F10: 1 | G10: 2 | H10: 3 | I10: 4 | J10: 5 | K10: 6 | L10: 7 | M10: 8 | N10: 9 | O10: 10 | P10: 11 | Q10: 12 | R10: 13 | S10: 14 | T10: 15 | U10: X | V10: 16 | W10: 17 | X10: 18 | Y10: 19 | Z10: 20 | AA10: 21 | AB10: 22 | AC10: 23 | AD10: 24 | AE10: 25 | AF10: 26 | AG10: 27 | AH10: 28 | AI10: 29 | AJ10: 30 | AK10: 31 | AL10: дни явок | AM10: всего отработано | AN10: часов | AV10: Очередной отпуск | AW10: Больничные | AX10: Бесплатный отпуск (А) | AY10: Отпуск родовой | AZ10: Учеьный отпуск | BA10: Отпуск ЧАЭС | BB10: Прогул | BC10: Отпуск женский | BD10: Командировка
AN11: всего отработано | AO11: из них
AO12: Ночные | AP12: Вечерние | AQ12: Праздничные | AR12: Сверхурочные | AS12: Работы в выходной | AT12: Переработка
U13: Х | BH13: Столбец1
A14: 1 | B14: 2 | C14: 3 | D14: 4 | E14: 5 | AL14: 7 | AN14: 9 | AU14: 10 | BE14: 11
U15: 6 | BH15: упраляющий участка
A16: 1 | F16: =INDEX('[4]ГРАФИК К.П ДЕКАБРЬ '!$AC$25:$HF$25,1,MATCH(F$10,'[4]ГРАФИК К.П ДЕКАБРЬ '!$AC$19:$HF$19,0)) -> 05:00:00 | G16: =INDEX('[4]ГРАФИК К.П ДЕКАБРЬ '!$AC$25:$HF$25,1,MATCH(G$10,'[4]ГРАФИК К.П ДЕКАБРЬ '!$AC$19:$HF$19,0)) -> 00:00:00 | H16: =INDEX('[4]ГРАФИК К.П ДЕКАБРЬ '!$AC$25:$HF$25,1,MATCH(H$10,'[4]ГРАФИК К.П ДЕКАБРЬ '!$AC$19:$HF$19,0)) -> 07:00:00 | I16: =INDEX('[4]ГРАФИК К.П ДЕКАБРЬ '!$AC$25:$HF$25,1,MATCH(I$10,'[4]ГРАФИК К.П ДЕКАБРЬ '!$AC$19:$HF$19,0)) -> 07:00:00 | J16: =INDEX('[4]ГРАФИК К.П ДЕКАБРЬ '!$AC$25:$HF$25,1,MATCH(J$10,'[4]ГРАФИК К.П ДЕКАБРЬ '!$AC$19:$HF$19,0)) -> 08:00:00 | K16: =INDEX('[4]ГРАФИК К.П ДЕКАБРЬ '!$AC$25:$HF$25,1,MATCH(K$10,'[4]ГРАФИК К.П ДЕКАБРЬ '!$AC$19:$HF$19,0)) -> 08:00:00 | L16: =INDEX('[4]ГРАФИК К.П ДЕКАБРЬ '!$AC$25:$HF$25,1,MATCH(L$10,'[4]ГРАФИК К.П ДЕКАБРЬ '!$AC$19:$HF$19,0)) -> 07:00:00 | M16: =INDEX('[4]ГРАФИК К.П ДЕКАБРЬ '!$AC$25:$HF$25,1,MATCH(M$10,'[4]ГРАФИК К.П ДЕКАБРЬ '!$AC$19:$HF$19,0)) -> 05:00:00 | N16: =INDEX('[4]ГРАФИК К.П ДЕКАБРЬ '!$AC$25:$HF$25,1,MATCH(N$10,'[4]ГРАФИК К.П ДЕКАБРЬ '!$AC$19:$HF$19,0)) -> 00:00:00 | O16: =INDEX('[4]ГРАФИК К.П ДЕКАБРЬ '!$AC$25:$HF$25,1,MATCH(O$10,'[4]ГРАФИК К.П ДЕКАБРЬ '!$AC$19:$HF$19,0)) -> 07:00:00 | P16: =INDEX('[4]ГРАФИК К.П ДЕКАБРЬ '!$AC$25:$HF$25,1,MATCH(P$10,'[4]ГРАФИК К.П ДЕКАБРЬ '!$AC$19:$HF$19,0)) -> 07:00:00 | Q16: =INDEX('[4]ГРАФИК К.П ДЕКАБРЬ '!$AC$25:$HF$25,1,MATCH(Q$10,'[4]ГРАФИК К.П ДЕКАБРЬ '!$AC$19:$HF$19,0)) -> 08:00:00 | R16: =INDEX('[4]ГРАФИК К.П ДЕКАБРЬ '!$AC$25:$HF$25,1,MATCH(R$10,'[4]ГРАФИК К.П ДЕКАБРЬ '!$AC$19:$HF$19,0)) -> 08:00:00 | S16: =INDEX('[4]ГРАФИК К.П ДЕКАБРЬ '!$AC$25:$HF$25,1,MATCH(S$10,'[4]ГРАФИК К.П ДЕКАБРЬ '!$AC$19:$HF$19,0)) -> 07:00:00 | T16: =INDEX('[4]ГРАФИК К.П ДЕКАБРЬ '!$AC$25:$HF$25,1,MATCH(T$10,'[4]ГРАФИК К.П ДЕКАБРЬ '!$AC$19:$HF$19,0)) -> 05:00:00 | U16: =INDEX('[4]ГРАФИК К.П ДЕКАБРЬ '!$AC$56:$HF$56,1,MATCH(U$10,'[4]ГРАФИК К.П ДЕКАБРЬ '!$AC$19:$HF$19,0)) ->  | V16: =INDEX('[4]ГРАФИК К.П ДЕКАБРЬ '!$AC$25:$HF$25,1,MATCH(V$10,'[4]ГРАФИК К.П ДЕКАБРЬ '!$AC$19:$HF$19,0)) -> 00:00:00 | W16: =INDEX('[4]ГРАФИК К.П ДЕКАБРЬ '!$AC$25:$HF$25,1,MATCH(W$10,'[4]ГРАФИК К.П ДЕКАБРЬ '!$AC$19:$HF$19,0)) -> 07:00:00 | X16: =INDEX('[4]ГРАФИК К.П ДЕКАБРЬ '!$AC$25:$HF$25,1,MATCH(X$10,'[4]ГРАФИК К.П ДЕКАБРЬ '!$AC$19:$HF$19,0)) -> 07:00:00 | Y16: =INDEX('[4]ГРАФИК К.П ДЕКАБРЬ '!$AC$25:$HF$25,1,MATCH(Y$10,'[4]ГРАФИК К.П ДЕКАБРЬ '!$AC$19:$HF$19,0)) -> 08:00:00 | Z16: =INDEX('[4]ГРАФИК К.П ДЕКАБРЬ '!$AC$25:$HF$25,1,MATCH(Z$10,'[4]ГРАФИК К.П ДЕКАБРЬ '!$AC$19:$HF$19,0)) -> 08:00:00 | AA16: =INDEX('[4]ГРАФИК К.П ДЕКАБРЬ '!$AC$25:$HF$25,1,MATCH(AA$10,'[4]ГРАФИК К.П ДЕКАБРЬ '!$AC$19:$HF$19,0)) -> 07:00:00 | AB16: =INDEX('[4]ГРАФИК К.П ДЕКАБРЬ '!$AC$25:$HF$25,1,MATCH(AB$10,'[4]ГРАФИК К.П ДЕКАБРЬ '!$AC$19:$HF$19,0)) -> 05:00:00 | AC16: =INDEX('[4]ГРАФИК К.П ДЕКАБРЬ '!$AC$25:$HF$25,1,MATCH(AC$10,'[4]ГРАФИК К.П ДЕКАБРЬ '!$AC$19:$HF$19,0)) -> 00:00:00 | AD16: =INDEX('[4]ГРАФИК К.П ДЕКАБРЬ '!$AC$25:$HF$25,1,MATCH(AD$10,'[4]ГРАФИК К.П ДЕКАБРЬ '!$AC$19:$HF$19,0)) -> 07:00:00 | AE16: =INDEX('[4]ГРАФИК К.П ДЕКАБРЬ '!$AC$25:$HF$25,1,MATCH(AE$10,'[4]ГРАФИК К.П ДЕКАБРЬ '!$AC$19:$HF$19,0)) -> 08:00:00 | AF16: =INDEX('[4]ГРАФИК К.П ДЕКАБРЬ '!$AC$25:$HF$25,1,MATCH(AF$10,'[4]ГРАФИК К.П ДЕКАБРЬ '!$AC$19:$HF$19,0)) -> 08:00:00 | AG16: =INDEX('[4]ГРАФИК К.П ДЕКАБРЬ '!$AC$25:$HF$25,1,MATCH(AG$10,'[4]ГРАФИК К.П ДЕКАБРЬ '!$AC$19:$HF$19,0)) -> 08:00:00 | AH16: =INDEX('[4]ГРАФИК К.П ДЕКАБРЬ '!$AC$25:$HF$25,1,MATCH(AH$10,'[4]ГРАФИК К.П ДЕКАБРЬ '!$AC$19:$HF$19,0)) -> 08:00:00 | AI16: =INDEX('[4]ГРАФИК К.П ДЕКАБРЬ '!$AC$25:$HF$25,1,MATCH(AI$10,'[4]ГРАФИК К.П ДЕКАБРЬ '!$AC$19:$HF$19,0)) -> 05:00:00 | AJ16: =INDEX('[4]ГРАФИК К.П ДЕКАБРЬ '!$AC$25:$HF$25,1,MATCH(AJ$10,'[4]ГРАФИК К.П ДЕКАБРЬ '!$AC$19:$HF$19,0)) -> 00:00:00 | AK16: =INDEX('[4]ГРАФИК К.П ДЕКАБРЬ '!$AC$25:$HF$25,1,MATCH(AK$10,'[4]ГРАФИК К.П ДЕКАБРЬ '!$AC$19:$HF$19,0)) -> 08:00:00 | AL16: =COUNTIF($F16:$AK16,">0") -> 26 | AM16: =SUM($F$16:$AK$16) ->  | AV16: =COUNTIF($F17:$AK17,"=От") -> 0 | BE16: =COUNTIF(F17:AK17,"В") -> 5 | BH16: слесарь-ремонтник
F17: =IF('[4]ГРАФИК К.П ДЕКАБРЬ '!AC22="ОТ","ОТ",IF(F16=0,"В","Я")) -> Я | G17: =IF('[4]ГРАФИК К.П ДЕКАБРЬ '!AD22="ОТ","ОТ",IF(G16=0,"В","Я")) -> В | H17: =IF('[4]ГРАФИК К.П ДЕКАБРЬ '!AE22="ОТ","ОТ",IF(H16=0,"В","Я")) -> Я | I17: =IF('[4]ГРАФИК К.П ДЕКАБРЬ '!AF22="ОТ","ОТ",IF(I16=0,"В","Я")) -> Я | J17: =IF('[4]ГРАФИК К.П ДЕКАБРЬ '!AG22="ОТ","ОТ",IF(J16=0,"В","Я")) -> Я | K17: =IF('[4]ГРАФИК К.П ДЕКАБРЬ '!AH22="ОТ","ОТ",IF(K16=0,"В","Я")) -> Я | L17: =IF('[4]ГРАФИК К.П ДЕКАБРЬ '!AI22="ОТ","ОТ",IF(L16=0,"В","Я")) -> Я | M17: =IF('[4]ГРАФИК К.П ДЕКАБРЬ '!AJ22="ОТ","ОТ",IF(M16=0,"В","Я")) -> Я | N17: =IF('[4]ГРАФИК К.П ДЕКАБРЬ '!AK22="ОТ","ОТ",IF(N16=0,"В","Я")) -> В | O17: =IF('[4]ГРАФИК К.П ДЕКАБРЬ '!AL22="ОТ","ОТ",IF(O16=0,"В","Я")) -> Я | P17: =IF('[4]ГРАФИК К.П ДЕКАБРЬ '!AM22="ОТ","ОТ",IF(P16=0,"В","Я")) -> Я | Q17: =IF('[4]ГРАФИК К.П ДЕКАБРЬ '!AN22="ОТ","ОТ",IF(Q16=0,"В","Я")) -> Я | R17: =IF('[4]ГРАФИК К.П ДЕКАБРЬ '!AO22="ОТ","ОТ",IF(R16=0,"В","Я")) -> Я | S17: =IF('[4]ГРАФИК К.П ДЕКАБРЬ '!AP22="ОТ","ОТ",IF(S16=0,"В","Я")) -> Я | T17: =IF('[4]ГРАФИК К.П ДЕКАБРЬ '!AQ22="ОТ","ОТ",IF(T16=0,"В","Я")) -> Я | U17: =IF('[4]ГРАФИК К.П ДЕКАБРЬ '!AR22="ОТ","ОТ",IF(U16=0,"В","Я")) ->  | V17: =IF('[4]ГРАФИК К.П ДЕКАБРЬ '!AS22="ОТ","ОТ",IF(V16=0,"В","Я")) -> В | W17: =IF('[4]ГРАФИК К.П ДЕКАБРЬ '!AT22="ОТ","ОТ",IF(W16=0,"В","Я")) -> Я | X17: =IF('[4]ГРАФИК К.П ДЕКАБРЬ '!AU22="ОТ","ОТ",IF(X16=0,"В","Я")) -> Я | Y17: =IF('[4]ГРАФИК К.П ДЕКАБРЬ '!AV22="ОТ","ОТ",IF(Y16=0,"В","Я")) -> Я | Z17: =IF('[4]ГРАФИК К.П ДЕКАБРЬ '!AW22="ОТ","ОТ",IF(Z16=0,"В","Я")) -> Я | AA17: =IF('[4]ГРАФИК К.П ДЕКАБРЬ '!AX22="ОТ","ОТ",IF(AA16=0,"В","Я")) -> Я | AB17: =IF('[4]ГРАФИК К.П ДЕКАБРЬ '!AY22="ОТ","ОТ",IF(AB16=0,"В","Я")) -> Я | AC17: =IF('[4]ГРАФИК К.П ДЕКАБРЬ '!AZ22="ОТ","ОТ",IF(AC16=0,"В","Я")) -> В | AD17: =IF('[4]ГРАФИК К.П ДЕКАБРЬ '!BA22="ОТ","ОТ",IF(AD16=0,"В","Я")) -> Я | AE17: =IF('[4]ГРАФИК К.П ДЕКАБРЬ '!BB22="ОТ","ОТ",IF(AE16=0,"В","Я")) -> Я | AF17: =IF('[4]ГРАФИК К.П ДЕКАБРЬ '!BC22="ОТ","ОТ",IF(AF16=0,"В","Я")) -> Я | AG17: =IF('[4]ГРАФИК К.П ДЕКАБРЬ '!BD22="ОТ","ОТ",IF(AG16=0,"В","Я")) -> Я | AH17: =IF('[4]ГРАФИК К.П ДЕКАБРЬ '!BE22="ОТ","ОТ",IF(AH16=0,"В","Я")) -> Я | AI17: =IF('[4]ГРАФИК К.П ДЕКАБРЬ '!BF22="ОТ","ОТ",IF(AI16=0,"В","Я")) -> Я | AJ17: =IF('[4]ГРАФИК К.П ДЕКАБРЬ '!BG22="ОТ","ОТ",IF(AJ16=0,"В","Я")) -> В | AK17: =IF('[4]ГРАФИК К.П ДЕКАБРЬ '!BH22="ОТ","ОТ",IF(AK16=0,"В","Я")) -> Я | BH17: электрик
A18: 2 | F18: =INDEX('[4]ГРАФИК К.П ДЕКАБРЬ '!$AC$32:$HF$32,1,MATCH(F$10,'[4]ГРАФИК К.П ДЕКАБРЬ '!$AC$19:$HF$19,0)) -> 00:00:00 | G18: =INDEX('[4]ГРАФИК К.П ДЕКАБРЬ '!$AC$32:$HF$32,1,MATCH(G$10,'[4]ГРАФИК К.П ДЕКАБРЬ '!$AC$19:$HF$19,0)) -> 09:00:00 | H18: =INDEX('[4]ГРАФИК К.П ДЕКАБРЬ '!$AC$32:$HF$32,1,MATCH(H$10,'[4]ГРАФИК К.П ДЕКАБРЬ '!$AC$19:$HF$19,0)) -> 09:00:00 | I18: =INDEX('[4]ГРАФИК К.П ДЕКАБРЬ '!$AC$32:$HF$32,1,MATCH(I$10,'[4]ГРАФИК К.П ДЕКАБРЬ '!$AC$19:$HF$19,0)) -> 09:00:00 | J18: =INDEX('[4]ГРАФИК К.П ДЕКАБРЬ '!$AC$32:$HF$32,1,MATCH(J$10,'[4]ГРАФИК К.П ДЕКАБРЬ '!$AC$19:$HF$19,0)) -> 09:00:00 | K18: =INDEX('[4]ГРАФИК К.П ДЕКАБРЬ '!$AC$32:$HF$32,1,MATCH(K$10,'[4]ГРАФИК К.П ДЕКАБРЬ '!$AC$19:$HF$19,0)) -> 09:00:00 | L18: =INDEX('[4]ГРАФИК К.П ДЕКАБРЬ '!$AC$32:$HF$32,1,MATCH(L$10,'[4]ГРАФИК К.П ДЕКАБРЬ '!$AC$19:$HF$19,0)) -> 00:00:00 | M18: =INDEX('[4]ГРАФИК К.П ДЕКАБРЬ '!$AC$32:$HF$32,1,MATCH(M$10,'[4]ГРАФИК К.П ДЕКАБРЬ '!$AC$19:$HF$19,0)) -> 00:00:00 | N18: =INDEX('[4]ГРАФИК К.П ДЕКАБРЬ '!$AC$32:$HF$32,1,MATCH(N$10,'[4]ГРАФИК К.П ДЕКАБРЬ '!$AC$19:$HF$19,0)) -> 09:00:00 | O18: =INDEX('[4]ГРАФИК К.П ДЕКАБРЬ '!$AC$32:$HF$32,1,MATCH(O$10,'[4]ГРАФИК К.П ДЕКАБРЬ '!$AC$19:$HF$19,0)) -> 09:00:00 | P18: =INDEX('[4]ГРАФИК К.П ДЕКАБРЬ '!$AC$32:$HF$32,1,MATCH(P$10,'[4]ГРАФИК К.П ДЕКАБРЬ '!$AC$19:$HF$19,0)) -> 08:00:00 | Q18: =INDEX('[4]ГРАФИК К.П ДЕКАБРЬ '!$AC$32:$HF$32,1,MATCH(Q$10,'[4]ГРАФИК К.П ДЕКАБРЬ '!$AC$19:$HF$19,0)) -> 08:00:00 | R18: =INDEX('[4]ГРАФИК К.П ДЕКАБРЬ '!$AC$32:$HF$32,1,MATCH(R$10,'[4]ГРАФИК К.П ДЕКАБРЬ '!$AC$19:$HF$19,0)) -> 08:00:00 | S18: =INDEX('[4]ГРАФИК К.П ДЕКАБРЬ '!$AC$32:$HF$32,1,MATCH(S$10,'[4]ГРАФИК К.П ДЕКАБРЬ '!$AC$19:$HF$19,0)) -> 00:00:00 | T18: =INDEX('[4]ГРАФИК К.П ДЕКАБРЬ '!$AC$32:$HF$32,1,MATCH(T$10,'[4]ГРАФИК К.П ДЕКАБРЬ '!$AC$19:$HF$19,0)) -> 00:00:00 | V18: =INDEX('[4]ГРАФИК К.П ДЕКАБРЬ '!$AC$32:$HF$32,1,MATCH(V$10,'[4]ГРАФИК К.П ДЕКАБРЬ '!$AC$19:$HF$19,0)) -> 08:00:00 | W18: =INDEX('[4]ГРАФИК К.П ДЕКАБРЬ '!$AC$32:$HF$32,1,MATCH(W$10,'[4]ГРАФИК К.П ДЕКАБРЬ '!$AC$19:$HF$19,0)) -> 08:00:00 | X18: =INDEX('[4]ГРАФИК К.П ДЕКАБРЬ '!$AC$32:$HF$32,1,MATCH(X$10,'[4]ГРАФИК К.П ДЕКАБРЬ '!$AC$19:$HF$19,0)) -> 08:00:00 | Y18: =INDEX('[4]ГРАФИК К.П ДЕКАБРЬ '!$AC$32:$HF$32,1,MATCH(Y$10,'[4]ГРАФИК К.П ДЕКАБРЬ '!$AC$19:$HF$19,0)) -> 08:00:00 | Z18: =INDEX('[4]ГРАФИК К.П ДЕКАБРЬ '!$AC$32:$HF$32,1,MATCH(Z$10,'[4]ГРАФИК К.П ДЕКАБРЬ '!$AC$19:$HF$19,0)) -> 08:00:00 | AA18: =INDEX('[4]ГРАФИК К.П ДЕКАБРЬ '!$AC$32:$HF$32,1,MATCH(AA$10,'[4]ГРАФИК К.П ДЕКАБРЬ '!$AC$19:$HF$19,0)) -> 00:00:00 | AB18: =INDEX('[4]ГРАФИК К.П ДЕКАБРЬ '!$AC$32:$HF$32,1,MATCH(AB$10,'[4]ГРАФИК К.П ДЕКАБРЬ '!$AC$19:$HF$19,0)) -> 00:00:00 | AC18: =INDEX('[4]ГРАФИК К.П ДЕКАБРЬ '!$AC$32:$HF$32,1,MATCH(AC$10,'[4]ГРАФИК К.П ДЕКАБРЬ '!$AC$19:$HF$19,0)) -> 08:00:00 | AD18: =INDEX('[4]ГРАФИК К.П ДЕКАБРЬ '!$AC$32:$HF$32,1,MATCH(AD$10,'[4]ГРАФИК К.П ДЕКАБРЬ '!$AC$19:$HF$19,0)) -> 08:00:00 | AE18: =INDEX('[4]ГРАФИК К.П ДЕКАБРЬ '!$AC$32:$HF$32,1,MATCH(AE$10,'[4]ГРАФИК К.П ДЕКАБРЬ '!$AC$19:$HF$19,0)) -> 08:00:00 | AF18: =INDEX('[4]ГРАФИК К.П ДЕКАБРЬ '!$AC$32:$HF$32,1,MATCH(AF$10,'[4]ГРАФИК К.П ДЕКАБРЬ '!$AC$19:$HF$19,0)) -> 08:00:00 | AG18: =INDEX('[4]ГРАФИК К.П ДЕКАБРЬ '!$AC$32:$HF$32,1,MATCH(AG$10,'[4]ГРАФИК К.П ДЕКАБРЬ '!$AC$19:$HF$19,0)) -> 08:00:00 | AH18: =INDEX('[4]ГРАФИК К.П ДЕКАБРЬ '!$AC$32:$HF$32,1,MATCH(AH$10,'[4]ГРАФИК К.П ДЕКАБРЬ '!$AC$19:$HF$19,0)) -> 00:00:00 | AI18: =INDEX('[4]ГРАФИК К.П ДЕКАБРЬ '!$AC$32:$HF$32,1,MATCH(AI$10,'[4]ГРАФИК К.П ДЕКАБРЬ '!$AC$19:$HF$19,0)) -> 00:00:00 | AJ18: =INDEX('[4]ГРАФИК К.П ДЕКАБРЬ '!$AC$32:$HF$32,1,MATCH(AJ$10,'[4]ГРАФИК К.П ДЕКАБРЬ '!$AC$19:$HF$19,0)) -> 08:00:00 | AK18: =INDEX('[4]ГРАФИК К.П ДЕКАБРЬ '!$AC$32:$HF$32,1,MATCH(AK$10,'[4]ГРАФИК К.П ДЕКАБРЬ '!$AC$19:$HF$19,0)) -> 08:00:00 | AL18: =COUNTIF($F18:$AK18,">0") -> 22 | AM18: =SUM($F$18:$AK$18) -> 7.625 | AV18: =COUNTIF($F19:$AK19,"=От") -> 0 | BE18: =COUNTIF(F19:AK19,"В") -> 9 | BH18: контролёр-посадчик аттракциона
F19: =IF('[4]ГРАФИК К.П ДЕКАБРЬ '!AC29="ОТ","ОТ",IF(F18=0,"В","Я")) -> В | G19: =IF('[4]ГРАФИК К.П ДЕКАБРЬ '!AD29="ОТ","ОТ",IF(G18=0,"В","Я")) -> Я | H19: =IF('[4]ГРАФИК К.П ДЕКАБРЬ '!AE29="ОТ","ОТ",IF(H18=0,"В","Я")) -> Я | I19: =IF('[4]ГРАФИК К.П ДЕКАБРЬ '!AF29="ОТ","ОТ",IF(I18=0,"В","Я")) -> Я | J19: =IF('[4]ГРАФИК К.П ДЕКАБРЬ '!AG29="ОТ","ОТ",IF(J18=0,"В","Я")) -> Я | K19: =IF('[4]ГРАФИК К.П ДЕКАБРЬ '!AH29="ОТ","ОТ",IF(K18=0,"В","Я")) -> Я | L19: =IF('[4]ГРАФИК К.П ДЕКАБРЬ '!AI29="ОТ","ОТ",IF(L18=0,"В","Я")) -> В | M19: =IF('[4]ГРАФИК К.П ДЕКАБРЬ '!AJ29="ОТ","ОТ",IF(M18=0,"В","Я")) -> В | N19: =IF('[4]ГРАФИК К.П ДЕКАБРЬ '!AK29="ОТ","ОТ",IF(N18=0,"В","Я")) -> Я | O19: =IF('[4]ГРАФИК К.П ДЕКАБРЬ '!AL29="ОТ","ОТ",IF(O18=0,"В","Я")) -> Я | P19: =IF('[4]ГРАФИК К.П ДЕКАБРЬ '!AM29="ОТ","ОТ",IF(P18=0,"В","Я")) -> Я | Q19: =IF('[4]ГРАФИК К.П ДЕКАБРЬ '!AN29="ОТ","ОТ",IF(Q18=0,"В","Я")) -> Я | R19: =IF('[4]ГРАФИК К.П ДЕКАБРЬ '!AO29="ОТ","ОТ",IF(R18=0,"В","Я")) -> Я | S19: =IF('[4]ГРАФИК К.П ДЕКАБРЬ '!AP29="ОТ","ОТ",IF(S18=0,"В","Я")) -> В | T19: =IF('[4]ГРАФИК К.П ДЕКАБРЬ '!AQ29="ОТ","ОТ",IF(T18=0,"В","Я")) -> В | V19: =IF('[4]ГРАФИК К.П ДЕКАБРЬ '!AS29="ОТ","ОТ",IF(V18=0,"В","Я")) -> Я | W19: =IF('[4]ГРАФИК К.П ДЕКАБРЬ '!AT29="ОТ","ОТ",IF(W18=0,"В","Я")) -> Я | X19: =IF('[4]ГРАФИК К.П ДЕКАБРЬ '!AU29="ОТ","ОТ",IF(X18=0,"В","Я")) -> Я | Y19: =IF('[4]ГРАФИК К.П ДЕКАБРЬ '!AV29="ОТ","ОТ",IF(Y18=0,"В","Я")) -> Я | Z19: =IF('[4]ГРАФИК К.П ДЕКАБРЬ '!AW29="ОТ","ОТ",IF(Z18=0,"В","Я")) -> Я | AA19: =IF('[4]ГРАФИК К.П ДЕКАБРЬ '!AX29="ОТ","ОТ",IF(AA18=0,"В","Я")) -> В | AB19: =IF('[4]ГРАФИК К.П ДЕКАБРЬ '!AY29="ОТ","ОТ",IF(AB18=0,"В","Я")) -> В | AC19: =IF('[4]ГРАФИК К.П ДЕКАБРЬ '!AZ29="ОТ","ОТ",IF(AC18=0,"В","Я")) -> Я | AD19: =IF('[4]ГРАФИК К.П ДЕКАБРЬ '!BA29="ОТ","ОТ",IF(AD18=0,"В","Я")) -> Я | AE19: =IF('[4]ГРАФИК К.П ДЕКАБРЬ '!BB29="ОТ","ОТ",IF(AE18=0,"В","Я")) -> Я | AF19: =IF('[4]ГРАФИК К.П ДЕКАБРЬ '!BC29="ОТ","ОТ",IF(AF18=0,"В","Я")) -> Я | AG19: =IF('[4]ГРАФИК К.П ДЕКАБРЬ '!BD29="ОТ","ОТ",IF(AG18=0,"В","Я")) -> Я | AH19: =IF('[4]ГРАФИК К.П ДЕКАБРЬ '!BE29="ОТ","ОТ",IF(AH18=0,"В","Я")) -> В | AI19: =IF('[4]ГРАФИК К.П ДЕКАБРЬ '!BF29="ОТ","ОТ",IF(AI18=0,"В","Я")) -> В | AJ19: =IF('[4]ГРАФИК К.П ДЕКАБРЬ '!BG29="ОТ","ОТ",IF(AJ18=0,"В","Я")) -> Я | AK19: =IF('[4]ГРАФИК К.П ДЕКАБРЬ '!BH29="ОТ","ОТ",IF(AK18=0,"В","Я")) -> Я | BH19: сторож
A20: 3 | F20: =INDEX('[4]ГРАФИК К.П ДЕКАБРЬ '!$AC$39:$HF$39,1,MATCH(F$10,'[4]ГРАФИК К.П ДЕКАБРЬ '!$AC$19:$HF$19,0)) -> 00:00:00 | G20: =INDEX('[4]ГРАФИК К.П ДЕКАБРЬ '!$AC$39:$HF$39,1,MATCH(G$10,'[4]ГРАФИК К.П ДЕКАБРЬ '!$AC$19:$HF$19,0)) -> 00:00:00 | H20: =INDEX('[4]ГРАФИК К.П ДЕКАБРЬ '!$AC$39:$HF$39,1,MATCH(H$10,'[4]ГРАФИК К.П ДЕКАБРЬ '!$AC$19:$HF$19,0)) -> 00:00:00 | I20: =INDEX('[4]ГРАФИК К.П ДЕКАБРЬ '!$AC$39:$HF$39,1,MATCH(I$10,'[4]ГРАФИК К.П ДЕКАБРЬ '!$AC$19:$HF$19,0)) -> 00:00:00 | J20: =INDEX('[4]ГРАФИК К.П ДЕКАБРЬ '!$AC$39:$HF$39,1,MATCH(J$10,'[4]ГРАФИК К.П ДЕКАБРЬ '!$AC$19:$HF$19,0)) -> 00:00:00 | K20: =INDEX('[4]ГРАФИК К.П ДЕКАБРЬ '!$AC$39:$HF$39,1,MATCH(K$10,'[4]ГРАФИК К.П ДЕКАБРЬ '!$AC$19:$HF$19,0)) -> 00:00:00 | L20: =INDEX('[4]ГРАФИК К.П ДЕКАБРЬ '!$AC$39:$HF$39,1,MATCH(L$10,'[4]ГРАФИК К.П ДЕКАБРЬ '!$AC$19:$HF$19,0)) -> 00:00:00 | M20: =INDEX('[4]ГРАФИК К.П ДЕКАБРЬ '!$AC$39:$HF$39,1,MATCH(M$10,'[4]ГРАФИК К.П ДЕКАБРЬ '!$AC$19:$HF$19,0)) -> 00:00:00 | N20: =INDEX('[4]ГРАФИК К.П ДЕКАБРЬ '!$AC$39:$HF$39,1,MATCH(N$10,'[4]ГРАФИК К.П ДЕКАБРЬ '!$AC$19:$HF$19,0)) -> 00:00:00 | O20: =INDEX('[4]ГРАФИК К.П ДЕКАБРЬ '!$AC$39:$HF$39,1,MATCH(O$10,'[4]ГРАФИК К.П ДЕКАБРЬ '!$AC$19:$HF$19,0)) -> 00:00:00 | P20: =INDEX('[4]ГРАФИК К.П ДЕКАБРЬ '!$AC$39:$HF$39,1,MATCH(P$10,'[4]ГРАФИК К.П ДЕКАБРЬ '!$AC$19:$HF$19,0)) -> 00:00:00 | Q20: =INDEX('[4]ГРАФИК К.П ДЕКАБРЬ '!$AC$39:$HF$39,1,MATCH(Q$10,'[4]ГРАФИК К.П ДЕКАБРЬ '!$AC$19:$HF$19,0)) -> 00:00:00 | R20: =INDEX('[4]ГРАФИК К.П ДЕКАБРЬ '!$AC$39:$HF$39,1,MATCH(R$10,'[4]ГРАФИК К.П ДЕКАБРЬ '!$AC$19:$HF$19,0)) -> 00:00:00 | S20: =INDEX('[4]ГРАФИК К.П ДЕКАБРЬ '!$AC$39:$HF$39,1,MATCH(S$10,'[4]ГРАФИК К.П ДЕКАБРЬ '!$AC$19:$HF$19,0)) -> 00:00:00 | T20: =INDEX('[4]ГРАФИК К.П ДЕКАБРЬ '!$AC$39:$HF$39,1,MATCH(T$10,'[4]ГРАФИК К.П ДЕКАБРЬ '!$AC$19:$HF$19,0)) -> 00:00:00 | V20: =INDEX('[4]ГРАФИК К.П ДЕКАБРЬ '!$AC$39:$HF$39,1,MATCH(V$10,'[4]ГРАФИК К.П ДЕКАБРЬ '!$AC$19:$HF$19,0)) -> 00:00:00 | W20: =INDEX('[4]ГРАФИК К.П ДЕКАБРЬ '!$AC$39:$HF$39,1,MATCH(W$10,'[4]ГРАФИК К.П ДЕКАБРЬ '!$AC$19:$HF$19,0)) -> 00:00:00 | X20: =INDEX('[4]ГРАФИК К.П ДЕКАБРЬ '!$AC$39:$HF$39,1,MATCH(X$10,'[4]ГРАФИК К.П ДЕКАБРЬ '!$AC$19:$HF$19,0)) -> 00:00:00 | Y20: =INDEX('[4]ГРАФИК К.П ДЕКАБРЬ '!$AC$39:$HF$39,1,MATCH(Y$10,'[4]ГРАФИК К.П ДЕКАБРЬ '!$AC$19:$HF$19,0)) -> 00:00:00 | Z20: =INDEX('[4]ГРАФИК К.П ДЕКАБРЬ '!$AC$39:$HF$39,1,MATCH(Z$10,'[4]ГРАФИК К.П ДЕКАБРЬ '!$AC$19:$HF$19,0)) -> 00:00:00 | AA20: =INDEX('[4]ГРАФИК К.П ДЕКАБРЬ '!$AC$39:$HF$39,1,MATCH(AA$10,'[4]ГРАФИК К.П ДЕКАБРЬ '!$AC$19:$HF$19,0)) -> 00:00:00 | AB20: =INDEX('[4]ГРАФИК К.П ДЕКАБРЬ '!$AC$39:$HF$39,1,MATCH(AB$10,'[4]ГРАФИК К.П ДЕКАБРЬ '!$AC$19:$HF$19,0)) -> 00:00:00 | AC20: =INDEX('[4]ГРАФИК К.П ДЕКАБРЬ '!$AC$39:$HF$39,1,MATCH(AC$10,'[4]ГРАФИК К.П ДЕКАБРЬ '!$AC$19:$HF$19,0)) -> 00:00:00 | AD20: =INDEX('[4]ГРАФИК К.П ДЕКАБРЬ '!$AC$39:$HF$39,1,MATCH(AD$10,'[4]ГРАФИК К.П ДЕКАБРЬ '!$AC$19:$HF$19,0)) -> 00:00:00 | AE20: =INDEX('[4]ГРАФИК К.П ДЕКАБРЬ '!$AC$39:$HF$39,1,MATCH(AE$10,'[4]ГРАФИК К.П ДЕКАБРЬ '!$AC$19:$HF$19,0)) -> 00:00:00 | AF20: =INDEX('[4]ГРАФИК К.П ДЕКАБРЬ '!$AC$39:$HF$39,1,MATCH(AF$10,'[4]ГРАФИК К.П ДЕКАБРЬ '!$AC$19:$HF$19,0)) -> 00:00:00 | AG20: =INDEX('[4]ГРАФИК К.П ДЕКАБРЬ '!$AC$39:$HF$39,1,MATCH(AG$10,'[4]ГРАФИК К.П ДЕКАБРЬ '!$AC$19:$HF$19,0)) -> 00:00:00 | AH20: =INDEX('[4]ГРАФИК К.П ДЕКАБРЬ '!$AC$39:$HF$39,1,MATCH(AH$10,'[4]ГРАФИК К.П ДЕКАБРЬ '!$AC$19:$HF$19,0)) -> 00:00:00 | AI20: =INDEX('[4]ГРАФИК К.П ДЕКАБРЬ '!$AC$39:$HF$39,1,MATCH(AI$10,'[4]ГРАФИК К.П ДЕКАБРЬ '!$AC$19:$HF$19,0)) -> 00:00:00 | AJ20: =INDEX('[4]ГРАФИК К.П ДЕКАБРЬ '!$AC$39:$HF$39,1,MATCH(AJ$10,'[4]ГРАФИК К.П ДЕКАБРЬ '!$AC$19:$HF$19,0)) -> 00:00:00 | AK20: =INDEX('[4]ГРАФИК К.П ДЕКАБРЬ '!$AC$39:$HF$39,1,MATCH(AK$10,'[4]ГРАФИК К.П ДЕКАБРЬ '!$AC$19:$HF$19,0)) -> 00:00:00 | AL20: =COUNTIF($F20:$AK20,">0") -> 0 | AM20: =SUM($F$20:$AK$20) -> 0 | AV20: =COUNTIF($F21:$AK21,"=От") -> 0 | BE20: =COUNTIF(F21:AK21,"В") -> 31 | BH20: кассир билетный
F21: =IF('[4]ГРАФИК К.П ДЕКАБРЬ '!AC35="ОТ","ОТ",IF(F20=0,"В","Я")) -> В | G21: =IF('[4]ГРАФИК К.П ДЕКАБРЬ '!AD35="ОТ","ОТ",IF(G20=0,"В","Я")) -> В | H21: =IF('[4]ГРАФИК К.П ДЕКАБРЬ '!AE35="ОТ","ОТ",IF(H20=0,"В","Я")) -> В | I21: =IF('[4]ГРАФИК К.П ДЕКАБРЬ '!AF35="ОТ","ОТ",IF(I20=0,"В","Я")) -> В | J21: =IF('[4]ГРАФИК К.П ДЕКАБРЬ '!AG35="ОТ","ОТ",IF(J20=0,"В","Я")) -> В | K21: =IF('[4]ГРАФИК К.П ДЕКАБРЬ '!AH35="ОТ","ОТ",IF(K20=0,"В","Я")) -> В | L21: =IF('[4]ГРАФИК К.П ДЕКАБРЬ '!AI35="ОТ","ОТ",IF(L20=0,"В","Я")) -> В | M21: =IF('[4]ГРАФИК К.П ДЕКАБРЬ '!AJ35="ОТ","ОТ",IF(M20=0,"В","Я")) -> В | N21: =IF('[4]ГРАФИК К.П ДЕКАБРЬ '!AK35="ОТ","ОТ",IF(N20=0,"В","Я")) -> В | O21: =IF('[4]ГРАФИК К.П ДЕКАБРЬ '!AL35="ОТ","ОТ",IF(O20=0,"В","Я")) -> В | P21: =IF('[4]ГРАФИК К.П ДЕКАБРЬ '!AM35="ОТ","ОТ",IF(P20=0,"В","Я")) -> В | Q21: =IF('[4]ГРАФИК К.П ДЕКАБРЬ '!AN35="ОТ","ОТ",IF(Q20=0,"В","Я")) -> В | R21: =IF('[4]ГРАФИК К.П ДЕКАБРЬ '!AO35="ОТ","ОТ",IF(R20=0,"В","Я")) -> В | S21: =IF('[4]ГРАФИК К.П ДЕКАБРЬ '!AP35="ОТ","ОТ",IF(S20=0,"В","Я")) -> В | T21: =IF('[4]ГРАФИК К.П ДЕКАБРЬ '!AQ35="ОТ","ОТ",IF(T20=0,"В","Я")) -> В | V21: =IF('[4]ГРАФИК К.П ДЕКАБРЬ '!AS35="ОТ","ОТ",IF(V20=0,"В","Я")) -> В | W21: =IF('[4]ГРАФИК К.П ДЕКАБРЬ '!AT35="ОТ","ОТ",IF(W20=0,"В","Я")) -> В | X21: =IF('[4]ГРАФИК К.П ДЕКАБРЬ '!AU35="ОТ","ОТ",IF(X20=0,"В","Я")) -> В | Y21: =IF('[4]ГРАФИК К.П ДЕКАБРЬ '!AV35="ОТ","ОТ",IF(Y20=0,"В","Я")) -> В | Z21: =IF('[4]ГРАФИК К.П ДЕКАБРЬ '!AW35="ОТ","ОТ",IF(Z20=0,"В","Я")) -> В | AA21: =IF('[4]ГРАФИК К.П ДЕКАБРЬ '!AX35="ОТ","ОТ",IF(AA20=0,"В","Я")) -> В | AB21: =IF('[4]ГРАФИК К.П ДЕКАБРЬ '!AY35="ОТ","ОТ",IF(AB20=0,"В","Я")) -> В | AC21: =IF('[4]ГРАФИК К.П ДЕКАБРЬ '!AZ35="ОТ","ОТ",IF(AC20=0,"В","Я")) -> В | AD21: =IF('[4]ГРАФИК К.П ДЕКАБРЬ '!BA35="ОТ","ОТ",IF(AD20=0,"В","Я")) -> В | AE21: =IF('[4]ГРАФИК К.П ДЕКАБРЬ '!BB35="ОТ","ОТ",IF(AE20=0,"В","Я")) -> В | AF21: =IF('[4]ГРАФИК К.П ДЕКАБРЬ '!BC35="ОТ","ОТ",IF(AF20=0,"В","Я")) -> В | AG21: =IF('[4]ГРАФИК К.П ДЕКАБРЬ '!BD35="ОТ","ОТ",IF(AG20=0,"В","Я")) -> В | AH21: =IF('[4]ГРАФИК К.П ДЕКАБРЬ '!BE35="ОТ","ОТ",IF(AH20=0,"В","Я")) -> В | AI21: =IF('[4]ГРАФИК К.П ДЕКАБРЬ '!BF35="ОТ","ОТ",IF(AI20=0,"В","Я")) -> В | AJ21: =IF('[4]ГРАФИК К.П ДЕКАБРЬ '!BG35="ОТ","ОТ",IF(AJ20=0,"В","Я")) -> В | AK21: =IF('[4]ГРАФИК К.П ДЕКАБРЬ '!BH35="ОТ","ОТ",IF(AK20=0,"В","Я")) -> В | BH21: дежурный зала
A22: 4 | F22: =INDEX('[4]ГРАФИК К.П ДЕКАБРЬ '!$AC$44:$HF$44,1,MATCH(F$10,'[4]ГРАФИК К.П ДЕКАБРЬ '!$AC$19:$HF$19,0)) -> 00:00:00 | G22: =INDEX('[4]ГРАФИК К.П ДЕКАБРЬ '!$AC$44:$HF$44,1,MATCH(G$10,'[4]ГРАФИК К.П ДЕКАБРЬ '!$AC$19:$HF$19,0)) -> 12:00:00 | H22: =INDEX('[4]ГРАФИК К.П ДЕКАБРЬ '!$AC$44:$HF$44,1,MATCH(H$10,'[4]ГРАФИК К.П ДЕКАБРЬ '!$AC$19:$HF$19,0)) -> 00:00:00 | I22: =INDEX('[4]ГРАФИК К.П ДЕКАБРЬ '!$AC$44:$HF$44,1,MATCH(I$10,'[4]ГРАФИК К.П ДЕКАБРЬ '!$AC$19:$HF$19,0)) -> 12:00:00 | J22: =INDEX('[4]ГРАФИК К.П ДЕКАБРЬ '!$AC$44:$HF$44,1,MATCH(J$10,'[4]ГРАФИК К.П ДЕКАБРЬ '!$AC$19:$HF$19,0)) -> 00:00:00 | K22: =INDEX('[4]ГРАФИК К.П ДЕКАБРЬ '!$AC$44:$HF$44,1,MATCH(K$10,'[4]ГРАФИК К.П ДЕКАБРЬ '!$AC$19:$HF$19,0)) -> 12:00:00 | L22: =INDEX('[4]ГРАФИК К.П ДЕКАБРЬ '!$AC$44:$HF$44,1,MATCH(L$10,'[4]ГРАФИК К.П ДЕКАБРЬ '!$AC$19:$HF$19,0)) -> 00:00:00 | M22: =INDEX('[4]ГРАФИК К.П ДЕКАБРЬ '!$AC$44:$HF$44,1,MATCH(M$10,'[4]ГРАФИК К.П ДЕКАБРЬ '!$AC$19:$HF$19,0)) -> 12:00:00 | N22: =INDEX('[4]ГРАФИК К.П ДЕКАБРЬ '!$AC$44:$HF$44,1,MATCH(N$10,'[4]ГРАФИК К.П ДЕКАБРЬ '!$AC$19:$HF$19,0)) -> 00:00:00 | O22: =INDEX('[4]ГРАФИК К.П ДЕКАБРЬ '!$AC$44:$HF$44,1,MATCH(O$10,'[4]ГРАФИК К.П ДЕКАБРЬ '!$AC$19:$HF$19,0)) -> 12:00:00 | P22: =INDEX('[4]ГРАФИК К.П ДЕКАБРЬ '!$AC$44:$HF$44,1,MATCH(P$10,'[4]ГРАФИК К.П ДЕКАБРЬ '!$AC$19:$HF$19,0)) -> 00:00:00 | Q22: =INDEX('[4]ГРАФИК К.П ДЕКАБРЬ '!$AC$44:$HF$44,1,MATCH(Q$10,'[4]ГРАФИК К.П ДЕКАБРЬ '!$AC$19:$HF$19,0)) -> 13:00:00 | R22: =INDEX('[4]ГРАФИК К.П ДЕКАБРЬ '!$AC$44:$HF$44,1,MATCH(R$10,'[4]ГРАФИК К.П ДЕКАБРЬ '!$AC$19:$HF$19,0)) -> 00:00:00 | S22: =INDEX('[4]ГРАФИК К.П ДЕКАБРЬ '!$AC$44:$HF$44,1,MATCH(S$10,'[4]ГРАФИК К.П ДЕКАБРЬ '!$AC$19:$HF$19,0)) -> 12:00:00 | T22: =INDEX('[4]ГРАФИК К.П ДЕКАБРЬ '!$AC$44:$HF$44,1,MATCH(T$10,'[4]ГРАФИК К.П ДЕКАБРЬ '!$AC$19:$HF$19,0)) -> 00:00:00 | V22: =INDEX('[4]ГРАФИК К.П ДЕКАБРЬ '!$AC$44:$HF$44,1,MATCH(V$10,'[4]ГРАФИК К.П ДЕКАБРЬ '!$AC$19:$HF$19,0)) -> 12:00:00 | W22: =INDEX('[4]ГРАФИК К.П ДЕКАБРЬ '!$AC$44:$HF$44,1,MATCH(W$10,'[4]ГРАФИК К.П ДЕКАБРЬ '!$AC$19:$HF$19,0)) -> 00:00:00 | X22: =INDEX('[4]ГРАФИК К.П ДЕКАБРЬ '!$AC$44:$HF$44,1,MATCH(X$10,'[4]ГРАФИК К.П ДЕКАБРЬ '!$AC$19:$HF$19,0)) -> 12:00:00 | Y22: =INDEX('[4]ГРАФИК К.П ДЕКАБРЬ '!$AC$44:$HF$44,1,MATCH(Y$10,'[4]ГРАФИК К.П ДЕКАБРЬ '!$AC$19:$HF$19,0)) -> 00:00:00 | Z22: =INDEX('[4]ГРАФИК К.П ДЕКАБРЬ '!$AC$44:$HF$44,1,MATCH(Z$10,'[4]ГРАФИК К.П ДЕКАБРЬ '!$AC$19:$HF$19,0)) -> 13:00:00 | AA22: =INDEX('[4]ГРАФИК К.П ДЕКАБРЬ '!$AC$44:$HF$44,1,MATCH(AA$10,'[4]ГРАФИК К.П ДЕКАБРЬ '!$AC$19:$HF$19,0)) -> 00:00:00 | AB22: =INDEX('[4]ГРАФИК К.П ДЕКАБРЬ '!$AC$44:$HF$44,1,MATCH(AB$10,'[4]ГРАФИК К.П ДЕКАБРЬ '!$AC$19:$HF$19,0)) -> 12:00:00 | AC22: =INDEX('[4]ГРАФИК К.П ДЕКАБРЬ '!$AC$44:$HF$44,1,MATCH(AC$10,'[4]ГРАФИК К.П ДЕКАБРЬ '!$AC$19:$HF$19,0)) -> 00:00:00 | AD22: =INDEX('[4]ГРАФИК К.П ДЕКАБРЬ '!$AC$44:$HF$44,1,MATCH(AD$10,'[4]ГРАФИК К.П ДЕКАБРЬ '!$AC$19:$HF$19,0)) -> 12:00:00 | AE22: =INDEX('[4]ГРАФИК К.П ДЕКАБРЬ '!$AC$44:$HF$44,1,MATCH(AE$10,'[4]ГРАФИК К.П ДЕКАБРЬ '!$AC$19:$HF$19,0)) -> 00:00:00 | AF22: =INDEX('[4]ГРАФИК К.П ДЕКАБРЬ '!$AC$44:$HF$44,1,MATCH(AF$10,'[4]ГРАФИК К.П ДЕКАБРЬ '!$AC$19:$HF$19,0)) -> 13:00:00 | AG22: =INDEX('[4]ГРАФИК К.П ДЕКАБРЬ '!$AC$44:$HF$44,1,MATCH(AG$10,'[4]ГРАФИК К.П ДЕКАБРЬ '!$AC$19:$HF$19,0)) -> 00:00:00 | AH22: =INDEX('[4]ГРАФИК К.П ДЕКАБРЬ '!$AC$44:$HF$44,1,MATCH(AH$10,'[4]ГРАФИК К.П ДЕКАБРЬ '!$AC$19:$HF$19,0)) -> 12:00:00 | AI22: =INDEX('[4]ГРАФИК К.П ДЕКАБРЬ '!$AC$44:$HF$44,1,MATCH(AI$10,'[4]ГРАФИК К.П ДЕКАБРЬ '!$AC$19:$HF$19,0)) -> 00:00:00 | AJ22: =INDEX('[4]ГРАФИК К.П ДЕКАБРЬ '!$AC$44:$HF$44,1,MATCH(AJ$10,'[4]ГРАФИК К.П ДЕКАБРЬ '!$AC$19:$HF$19,0)) -> 12:00:00 | AK22: =INDEX('[4]ГРАФИК К.П ДЕКАБРЬ '!$AC$44:$HF$44,1,MATCH(AK$10,'[4]ГРАФИК К.П ДЕКАБРЬ '!$AC$19:$HF$19,0)) -> 00:00:00 | AL22: =COUNTIF($F22:$AK22,">0") -> 15 | AM22: =SUM($F$22:$AK$22) -> 7.625 | AV22: =COUNTIF($F23:$AK23,"=От") -> 0 | BE22: =COUNTIF(F23:AK23,"В") -> 16
F23: =IF('[4]ГРАФИК К.П ДЕКАБРЬ '!AC41="ОТ","ОТ",IF(F22=0,"В","Я")) -> В | G23: =IF('[4]ГРАФИК К.П ДЕКАБРЬ '!AD41="ОТ","ОТ",IF(G22=0,"В","Я")) -> Я | H23: =IF('[4]ГРАФИК К.П ДЕКАБРЬ '!AE41="ОТ","ОТ",IF(H22=0,"В","Я")) -> В | I23: =IF('[4]ГРАФИК К.П ДЕКАБРЬ '!AF41="ОТ","ОТ",IF(I22=0,"В","Я")) -> Я | J23: =IF('[4]ГРАФИК К.П ДЕКАБРЬ '!AG41="ОТ","ОТ",IF(J22=0,"В","Я")) -> В | K23: =IF('[4]ГРАФИК К.П ДЕКАБРЬ '!AH41="ОТ","ОТ",IF(K22=0,"В","Я")) -> Я | L23: =IF('[4]ГРАФИК К.П ДЕКАБРЬ '!AI41="ОТ","ОТ",IF(L22=0,"В","Я")) -> В | M23: =IF('[4]ГРАФИК К.П ДЕКАБРЬ '!AJ41="ОТ","ОТ",IF(M22=0,"В","Я")) -> Я | N23: =IF('[4]ГРАФИК К.П ДЕКАБРЬ '!AK41="ОТ","ОТ",IF(N22=0,"В","Я")) -> В | O23: =IF('[4]ГРАФИК К.П ДЕКАБРЬ '!AL41="ОТ","ОТ",IF(O22=0,"В","Я")) -> Я | P23: =IF('[4]ГРАФИК К.П ДЕКАБРЬ '!AM41="ОТ","ОТ",IF(P22=0,"В","Я")) -> В | Q23: =IF('[4]ГРАФИК К.П ДЕКАБРЬ '!AN41="ОТ","ОТ",IF(Q22=0,"В","Я")) -> Я | R23: =IF('[4]ГРАФИК К.П ДЕКАБРЬ '!AO41="ОТ","ОТ",IF(R22=0,"В","Я")) -> В | S23: =IF('[4]ГРАФИК К.П ДЕКАБРЬ '!AP41="ОТ","ОТ",IF(S22=0,"В","Я")) -> Я | T23: =IF('[4]ГРАФИК К.П ДЕКАБРЬ '!AQ41="ОТ","ОТ",IF(T22=0,"В","Я")) -> В | V23: =IF('[4]ГРАФИК К.П ДЕКАБРЬ '!AS41="ОТ","ОТ",IF(V22=0,"В","Я")) -> Я | W23: =IF('[4]ГРАФИК К.П ДЕКАБРЬ '!AT41="ОТ","ОТ",IF(W22=0,"В","Я")) -> В | X23: =IF('[4]ГРАФИК К.П ДЕКАБРЬ '!AU41="ОТ","ОТ",IF(X22=0,"В","Я")) -> Я | Y23: =IF('[4]ГРАФИК К.П ДЕКАБРЬ '!AV41="ОТ","ОТ",IF(Y22=0,"В","Я")) -> В | Z23: =IF('[4]ГРАФИК К.П ДЕКАБРЬ '!AW41="ОТ","ОТ",IF(Z22=0,"В","Я")) -> Я | AA23: =IF('[4]ГРАФИК К.П ДЕКАБРЬ '!AX41="ОТ","ОТ",IF(AA22=0,"В","Я")) -> В | AB23: =IF('[4]ГРАФИК К.П ДЕКАБРЬ '!AY41="ОТ","ОТ",IF(AB22=0,"В","Я")) -> Я | AC23: =IF('[4]ГРАФИК К.П ДЕКАБРЬ '!AZ41="ОТ","ОТ",IF(AC22=0,"В","Я")) -> В | AD23: =IF('[4]ГРАФИК К.П ДЕКАБРЬ '!BA41="ОТ","ОТ",IF(AD22=0,"В","Я")) -> Я | AE23: =IF('[4]ГРАФИК К.П ДЕКАБРЬ '!BB41="ОТ","ОТ",IF(AE22=0,"В","Я")) -> В | AF23: =IF('[4]ГРАФИК К.П ДЕКАБРЬ '!BC41="ОТ","ОТ",IF(AF22=0,"В","Я")) -> Я | AG23: =IF('[4]ГРАФИК К.П ДЕКАБРЬ '!BD41="ОТ","ОТ",IF(AG22=0,"В","Я")) -> В | AH23: =IF('[4]ГРАФИК К.П ДЕКАБРЬ '!BE41="ОТ","ОТ",IF(AH22=0,"В","Я")) -> Я | AI23: =IF('[4]ГРАФИК К.П ДЕКАБРЬ '!BF41="ОТ","ОТ",IF(AI22=0,"В","Я")) -> В | AJ23: =IF('[4]ГРАФИК К.П ДЕКАБРЬ '!BG41="ОТ","ОТ",IF(AJ22=0,"В","Я")) -> Я | AK23: =IF('[4]ГРАФИК К.П ДЕКАБРЬ '!BH41="ОТ","ОТ",IF(AK22=0,"В","Я")) -> В
A24: 5 | F24: =INDEX('[4]ГРАФИК К.П ДЕКАБРЬ '!$AC$50:$HF$50,1,MATCH(F$10,'[4]ГРАФИК К.П ДЕКАБРЬ '!$AC$19:$HF$19,0)) -> 11:00:00 | G24: =INDEX('[4]ГРАФИК К.П ДЕКАБРЬ '!$AC$50:$HF$50,1,MATCH(G$10,'[4]ГРАФИК К.П ДЕКАБРЬ '!$AC$19:$HF$19,0)) -> 00:00:00 | H24: =INDEX('[4]ГРАФИК К.П ДЕКАБРЬ '!$AC$50:$HF$50,1,MATCH(H$10,'[4]ГРАФИК К.П ДЕКАБРЬ '!$AC$19:$HF$19,0)) -> 11:00:00 | I24: =INDEX('[4]ГРАФИК К.П ДЕКАБРЬ '!$AC$50:$HF$50,1,MATCH(I$10,'[4]ГРАФИК К.П ДЕКАБРЬ '!$AC$19:$HF$19,0)) -> 00:00:00 | J24: =INDEX('[4]ГРАФИК К.П ДЕКАБРЬ '!$AC$50:$HF$50,1,MATCH(J$10,'[4]ГРАФИК К.П ДЕКАБРЬ '!$AC$19:$HF$19,0)) -> 12:00:00 | K24: =INDEX('[4]ГРАФИК К.П ДЕКАБРЬ '!$AC$50:$HF$50,1,MATCH(K$10,'[4]ГРАФИК К.П ДЕКАБРЬ '!$AC$19:$HF$19,0)) -> 00:00:00 | L24: =INDEX('[4]ГРАФИК К.П ДЕКАБРЬ '!$AC$50:$HF$50,1,MATCH(L$10,'[4]ГРАФИК К.П ДЕКАБРЬ '!$AC$19:$HF$19,0)) -> 11:00:00 | M24: =INDEX('[4]ГРАФИК К.П ДЕКАБРЬ '!$AC$50:$HF$50,1,MATCH(M$10,'[4]ГРАФИК К.П ДЕКАБРЬ '!$AC$19:$HF$19,0)) -> 00:00:00 | N24: =INDEX('[4]ГРАФИК К.П ДЕКАБРЬ '!$AC$50:$HF$50,1,MATCH(N$10,'[4]ГРАФИК К.П ДЕКАБРЬ '!$AC$19:$HF$19,0)) -> 11:00:00 | O24: =INDEX('[4]ГРАФИК К.П ДЕКАБРЬ '!$AC$50:$HF$50,1,MATCH(O$10,'[4]ГРАФИК К.П ДЕКАБРЬ '!$AC$19:$HF$19,0)) -> 00:00:00 | P24: =INDEX('[4]ГРАФИК К.П ДЕКАБРЬ '!$AC$50:$HF$50,1,MATCH(P$10,'[4]ГРАФИК К.П ДЕКАБРЬ '!$AC$19:$HF$19,0)) -> 11:00:00 | Q24: =INDEX('[4]ГРАФИК К.П ДЕКАБРЬ '!$AC$50:$HF$50,1,MATCH(Q$10,'[4]ГРАФИК К.П ДЕКАБРЬ '!$AC$19:$HF$19,0)) -> 00:00:00 | R24: =INDEX('[4]ГРАФИК К.П ДЕКАБРЬ '!$AC$50:$HF$50,1,MATCH(R$10,'[4]ГРАФИК К.П ДЕКАБРЬ '!$AC$19:$HF$19,0)) -> 12:00:00 | S24: =INDEX('[4]ГРАФИК К.П ДЕКАБРЬ '!$AC$50:$HF$50,1,MATCH(S$10,'[4]ГРАФИК К.П ДЕКАБРЬ '!$AC$19:$HF$19,0)) -> 00:00:00 | T24: =INDEX('[4]ГРАФИК К.П ДЕКАБРЬ '!$AC$50:$HF$50,1,MATCH(T$10,'[4]ГРАФИК К.П ДЕКАБРЬ '!$AC$19:$HF$19,0)) -> 11:00:00 | V24: =INDEX('[4]ГРАФИК К.П ДЕКАБРЬ '!$AC$50:$HF$50,1,MATCH(V$10,'[4]ГРАФИК К.П ДЕКАБРЬ '!$AC$19:$HF$19,0)) -> 00:00:00 | W24: =INDEX('[4]ГРАФИК К.П ДЕКАБРЬ '!$AC$50:$HF$50,1,MATCH(W$10,'[4]ГРАФИК К.П ДЕКАБРЬ '!$AC$19:$HF$19,0)) -> 11:00:00 | X24: =INDEX('[4]ГРАФИК К.П ДЕКАБРЬ '!$AC$50:$HF$50,1,MATCH(X$10,'[4]ГРАФИК К.П ДЕКАБРЬ '!$AC$19:$HF$19,0)) -> 00:00:00 | Y24: =INDEX('[4]ГРАФИК К.П ДЕКАБРЬ '!$AC$50:$HF$50,1,MATCH(Y$10,'[4]ГРАФИК К.П ДЕКАБРЬ '!$AC$19:$HF$19,0)) -> 12:00:00 | Z24: =INDEX('[4]ГРАФИК К.П ДЕКАБРЬ '!$AC$50:$HF$50,1,MATCH(Z$10,'[4]ГРАФИК К.П ДЕКАБРЬ '!$AC$19:$HF$19,0)) -> 00:00:00 | AA24: =INDEX('[4]ГРАФИК К.П ДЕКАБРЬ '!$AC$50:$HF$50,1,MATCH(AA$10,'[4]ГРАФИК К.П ДЕКАБРЬ '!$AC$19:$HF$19,0)) -> 11:00:00 | AB24: =INDEX('[4]ГРАФИК К.П ДЕКАБРЬ '!$AC$50:$HF$50,1,MATCH(AB$10,'[4]ГРАФИК К.П ДЕКАБРЬ '!$AC$19:$HF$19,0)) -> 00:00:00 | AC24: =INDEX('[4]ГРАФИК К.П ДЕКАБРЬ '!$AC$50:$HF$50,1,MATCH(AC$10,'[4]ГРАФИК К.П ДЕКАБРЬ '!$AC$19:$HF$19,0)) -> 11:00:00 | AD24: =INDEX('[4]ГРАФИК К.П ДЕКАБРЬ '!$AC$50:$HF$50,1,MATCH(AD$10,'[4]ГРАФИК К.П ДЕКАБРЬ '!$AC$19:$HF$19,0)) -> 00:00:00 | AE24: =INDEX('[4]ГРАФИК К.П ДЕКАБРЬ '!$AC$50:$HF$50,1,MATCH(AE$10,'[4]ГРАФИК К.П ДЕКАБРЬ '!$AC$19:$HF$19,0)) -> 12:00:00 | AF24: =INDEX('[4]ГРАФИК К.П ДЕКАБРЬ '!$AC$50:$HF$50,1,MATCH(AF$10,'[4]ГРАФИК К.П ДЕКАБРЬ '!$AC$19:$HF$19,0)) -> 00:00:00 | AG24: =INDEX('[4]ГРАФИК К.П ДЕКАБРЬ '!$AC$50:$HF$50,1,MATCH(AG$10,'[4]ГРАФИК К.П ДЕКАБРЬ '!$AC$19:$HF$19,0)) -> 12:00:00 | AH24: =INDEX('[4]ГРАФИК К.П ДЕКАБРЬ '!$AC$50:$HF$50,1,MATCH(AH$10,'[4]ГРАФИК К.П ДЕКАБРЬ '!$AC$19:$HF$19,0)) -> 00:00:00 | AI24: =INDEX('[4]ГРАФИК К.П ДЕКАБРЬ '!$AC$50:$HF$50,1,MATCH(AI$10,'[4]ГРАФИК К.П ДЕКАБРЬ '!$AC$19:$HF$19,0)) -> 12:00:00 | AJ24: =INDEX('[4]ГРАФИК К.П ДЕКАБРЬ '!$AC$50:$HF$50,1,MATCH(AJ$10,'[4]ГРАФИК К.П ДЕКАБРЬ '!$AC$19:$HF$19,0)) -> 00:00:00 | AK24: =INDEX('[4]ГРАФИК К.П ДЕКАБРЬ '!$AC$50:$HF$50,1,MATCH(AK$10,'[4]ГРАФИК К.П ДЕКАБРЬ '!$AC$19:$HF$19,0)) -> 12:00:00 | AL24: =COUNTIF($F24:$AK24,">0") -> 16 | AM24: =SUM($F$24:$AK$24) -> 7.625 | AV24: =COUNTIF($F25:$AK25,"=От") -> 0 | BE24: =COUNTIF(F25:AK25,"В") -> 15
F25: =IF('[4]ГРАФИК К.П ДЕКАБРЬ '!AC47="ОТ","ОТ",IF(F24=0,"В","Я")) -> Я | G25: =IF('[4]ГРАФИК К.П ДЕКАБРЬ '!AD47="ОТ","ОТ",IF(G24=0,"В","Я")) -> В | H25: =IF('[4]ГРАФИК К.П ДЕКАБРЬ '!AE47="ОТ","ОТ",IF(H24=0,"В","Я")) -> Я | I25: =IF('[4]ГРАФИК К.П ДЕКАБРЬ '!AF47="ОТ","ОТ",IF(I24=0,"В","Я")) -> В | J25: =IF('[4]ГРАФИК К.П ДЕКАБРЬ '!AG47="ОТ","ОТ",IF(J24=0,"В","Я")) -> Я | K25: =IF('[4]ГРАФИК К.П ДЕКАБРЬ '!AH47="ОТ","ОТ",IF(K24=0,"В","Я")) -> В | L25: =IF('[4]ГРАФИК К.П ДЕКАБРЬ '!AI47="ОТ","ОТ",IF(L24=0,"В","Я")) -> Я | M25: =IF('[4]ГРАФИК К.П ДЕКАБРЬ '!AJ47="ОТ","ОТ",IF(M24=0,"В","Я")) -> В | N25: =IF('[4]ГРАФИК К.П ДЕКАБРЬ '!AK47="ОТ","ОТ",IF(N24=0,"В","Я")) -> Я | O25: =IF('[4]ГРАФИК К.П ДЕКАБРЬ '!AL47="ОТ","ОТ",IF(O24=0,"В","Я")) -> В | P25: =IF('[4]ГРАФИК К.П ДЕКАБРЬ '!AM47="ОТ","ОТ",IF(P24=0,"В","Я")) -> Я | Q25: =IF('[4]ГРАФИК К.П ДЕКАБРЬ '!AN47="ОТ","ОТ",IF(Q24=0,"В","Я")) -> В | R25: =IF('[4]ГРАФИК К.П ДЕКАБРЬ '!AO47="ОТ","ОТ",IF(R24=0,"В","Я")) -> Я | S25: =IF('[4]ГРАФИК К.П ДЕКАБРЬ '!AP47="ОТ","ОТ",IF(S24=0,"В","Я")) -> В | T25: =IF('[4]ГРАФИК К.П ДЕКАБРЬ '!AQ47="ОТ","ОТ",IF(T24=0,"В","Я")) -> Я | V25: =IF('[4]ГРАФИК К.П ДЕКАБРЬ '!AS47="ОТ","ОТ",IF(V24=0,"В","Я")) -> В | W25: =IF('[4]ГРАФИК К.П ДЕКАБРЬ '!AT47="ОТ","ОТ",IF(W24=0,"В","Я")) -> Я | X25: =IF('[4]ГРАФИК К.П ДЕКАБРЬ '!AU47="ОТ","ОТ",IF(X24=0,"В","Я")) -> В | Y25: =IF('[4]ГРАФИК К.П ДЕКАБРЬ '!AV47="ОТ","ОТ",IF(Y24=0,"В","Я")) -> Я | Z25: =IF('[4]ГРАФИК К.П ДЕКАБРЬ '!AW47="ОТ","ОТ",IF(Z24=0,"В","Я")) -> В | AA25: =IF('[4]ГРАФИК К.П ДЕКАБРЬ '!AX47="ОТ","ОТ",IF(AA24=0,"В","Я")) -> Я | AB25: =IF('[4]ГРАФИК К.П ДЕКАБРЬ '!AY47="ОТ","ОТ",IF(AB24=0,"В","Я")) -> В | AC25: =IF('[4]ГРАФИК К.П ДЕКАБРЬ '!AZ47="ОТ","ОТ",IF(AC24=0,"В","Я")) -> Я | AD25: =IF('[4]ГРАФИК К.П ДЕКАБРЬ '!BA47="ОТ","ОТ",IF(AD24=0,"В","Я")) -> В | AE25: =IF('[4]ГРАФИК К.П ДЕКАБРЬ '!BB47="ОТ","ОТ",IF(AE24=0,"В","Я")) -> Я | AF25: =IF('[4]ГРАФИК К.П ДЕКАБРЬ '!BC47="ОТ","ОТ",IF(AF24=0,"В","Я")) -> В | AG25: =IF('[4]ГРАФИК К.П ДЕКАБРЬ '!BD47="ОТ","ОТ",IF(AG24=0,"В","Я")) -> Я | AH25: =IF('[4]ГРАФИК К.П ДЕКАБРЬ '!BE47="ОТ","ОТ",IF(AH24=0,"В","Я")) -> В | AI25: =IF('[4]ГРАФИК К.П ДЕКАБРЬ '!BF47="ОТ","ОТ",IF(AI24=0,"В","Я")) -> Я | AJ25: =IF('[4]ГРАФИК К.П ДЕКАБРЬ '!BG47="ОТ","ОТ",IF(AJ24=0,"В","Я")) -> В | AK25: =IF('[4]ГРАФИК К.П ДЕКАБРЬ '!BH47="ОТ","ОТ",IF(AK24=0,"В","Я")) -> Я
A26: 6 | F26: =INDEX('[4]ГРАФИК К.П ДЕКАБРЬ '!$AC$56:$HF$56,1,MATCH(F$10,'[4]ГРАФИК К.П ДЕКАБРЬ '!$AC$19:$HF$19,0)) -> 00:00:00 | G26: =INDEX('[4]ГРАФИК К.П ДЕКАБРЬ '!$AC$56:$HF$56,1,MATCH(G$10,'[4]ГРАФИК К.П ДЕКАБРЬ '!$AC$19:$HF$19,0)) -> 12:00:00 | H26: =INDEX('[4]ГРАФИК К.П ДЕКАБРЬ '!$AC$56:$HF$56,1,MATCH(H$10,'[4]ГРАФИК К.П ДЕКАБРЬ '!$AC$19:$HF$19,0)) -> 00:00:00 | I26: =INDEX('[4]ГРАФИК К.П ДЕКАБРЬ '!$AC$56:$HF$56,1,MATCH(I$10,'[4]ГРАФИК К.П ДЕКАБРЬ '!$AC$19:$HF$19,0)) -> 12:00:00 | J26: =INDEX('[4]ГРАФИК К.П ДЕКАБРЬ '!$AC$56:$HF$56,1,MATCH(J$10,'[4]ГРАФИК К.П ДЕКАБРЬ '!$AC$19:$HF$19,0)) -> 00:00:00 | K26: =INDEX('[4]ГРАФИК К.П ДЕКАБРЬ '!$AC$56:$HF$56,1,MATCH(K$10,'[4]ГРАФИК К.П ДЕКАБРЬ '!$AC$19:$HF$19,0)) -> 12:00:00 | L26: =INDEX('[4]ГРАФИК К.П ДЕКАБРЬ '!$AC$56:$HF$56,1,MATCH(L$10,'[4]ГРАФИК К.П ДЕКАБРЬ '!$AC$19:$HF$19,0)) -> 00:00:00 | M26: =INDEX('[4]ГРАФИК К.П ДЕКАБРЬ '!$AC$56:$HF$56,1,MATCH(M$10,'[4]ГРАФИК К.П ДЕКАБРЬ '!$AC$19:$HF$19,0)) -> 12:00:00 | N26: =INDEX('[4]ГРАФИК К.П ДЕКАБРЬ '!$AC$56:$HF$56,1,MATCH(N$10,'[4]ГРАФИК К.П ДЕКАБРЬ '!$AC$19:$HF$19,0)) -> 00:00:00 | O26: =INDEX('[4]ГРАФИК К.П ДЕКАБРЬ '!$AC$56:$HF$56,1,MATCH(O$10,'[4]ГРАФИК К.П ДЕКАБРЬ '!$AC$19:$HF$19,0)) -> 12:00:00 | P26: =INDEX('[4]ГРАФИК К.П ДЕКАБРЬ '!$AC$56:$HF$56,1,MATCH(P$10,'[4]ГРАФИК К.П ДЕКАБРЬ '!$AC$19:$HF$19,0)) -> 00:00:00 | Q26: =INDEX('[4]ГРАФИК К.П ДЕКАБРЬ '!$AC$56:$HF$56,1,MATCH(Q$10,'[4]ГРАФИК К.П ДЕКАБРЬ '!$AC$19:$HF$19,0)) -> 13:00:00 | R26: =INDEX('[4]ГРАФИК К.П ДЕКАБРЬ '!$AC$56:$HF$56,1,MATCH(R$10,'[4]ГРАФИК К.П ДЕКАБРЬ '!$AC$19:$HF$19,0)) -> 00:00:00 | S26: =INDEX('[4]ГРАФИК К.П ДЕКАБРЬ '!$AC$56:$HF$56,1,MATCH(S$10,'[4]ГРАФИК К.П ДЕКАБРЬ '!$AC$19:$HF$19,0)) -> 12:00:00 | T26: =INDEX('[4]ГРАФИК К.П ДЕКАБРЬ '!$AC$56:$HF$56,1,MATCH(T$10,'[4]ГРАФИК К.П ДЕКАБРЬ '!$AC$19:$HF$19,0)) -> 00:00:00 | U26: =INDEX('[4]ГРАФИК К.П ДЕКАБРЬ '!$AC$56:$HF$56,1,MATCH(U$10,'[4]ГРАФИК К.П ДЕКАБРЬ '!$AC$19:$HF$19,0)) ->  | V26: =INDEX('[4]ГРАФИК К.П ДЕКАБРЬ '!$AC$56:$HF$56,1,MATCH(V$10,'[4]ГРАФИК К.П ДЕКАБРЬ '!$AC$19:$HF$19,0)) -> 12:00:00 | W26: =INDEX('[4]ГРАФИК К.П ДЕКАБРЬ '!$AC$56:$HF$56,1,MATCH(W$10,'[4]ГРАФИК К.П ДЕКАБРЬ '!$AC$19:$HF$19,0)) -> 00:00:00 | X26: =INDEX('[4]ГРАФИК К.П ДЕКАБРЬ '!$AC$56:$HF$56,1,MATCH(X$10,'[4]ГРАФИК К.П ДЕКАБРЬ '!$AC$19:$HF$19,0)) -> 12:00:00 | Y26: =INDEX('[4]ГРАФИК К.П ДЕКАБРЬ '!$AC$56:$HF$56,1,MATCH(Y$10,'[4]ГРАФИК К.П ДЕКАБРЬ '!$AC$19:$HF$19,0)) -> 00:00:00 | Z26: =INDEX('[4]ГРАФИК К.П ДЕКАБРЬ '!$AC$56:$HF$56,1,MATCH(Z$10,'[4]ГРАФИК К.П ДЕКАБРЬ '!$AC$19:$HF$19,0)) -> 13:00:00 | AA26: =INDEX('[4]ГРАФИК К.П ДЕКАБРЬ '!$AC$56:$HF$56,1,MATCH(AA$10,'[4]ГРАФИК К.П ДЕКАБРЬ '!$AC$19:$HF$19,0)) -> 00:00:00 | AB26: =INDEX('[4]ГРАФИК К.П ДЕКАБРЬ '!$AC$56:$HF$56,1,MATCH(AB$10,'[4]ГРАФИК К.П ДЕКАБРЬ '!$AC$19:$HF$19,0)) -> 12:00:00 | AC26: =INDEX('[4]ГРАФИК К.П ДЕКАБРЬ '!$AC$56:$HF$56,1,MATCH(AC$10,'[4]ГРАФИК К.П ДЕКАБРЬ '!$AC$19:$HF$19,0)) -> 00:00:00 | AD26: =INDEX('[4]ГРАФИК К.П ДЕКАБРЬ '!$AC$56:$HF$56,1,MATCH(AD$10,'[4]ГРАФИК К.П ДЕКАБРЬ '!$AC$19:$HF$19,0)) -> 12:00:00 | AE26: =INDEX('[4]ГРАФИК К.П ДЕКАБРЬ '!$AC$56:$HF$56,1,MATCH(AE$10,'[4]ГРАФИК К.П ДЕКАБРЬ '!$AC$19:$HF$19,0)) -> 00:00:00 | AF26: =INDEX('[4]ГРАФИК К.П ДЕКАБРЬ '!$AC$56:$HF$56,1,MATCH(AF$10,'[4]ГРАФИК К.П ДЕКАБРЬ '!$AC$19:$HF$19,0)) -> 13:00:00 | AG26: =INDEX('[4]ГРАФИК К.П ДЕКАБРЬ '!$AC$56:$HF$56,1,MATCH(AG$10,'[4]ГРАФИК К.П ДЕКАБРЬ '!$AC$19:$HF$19,0)) -> 00:00:00 | AH26: =INDEX('[4]ГРАФИК К.П ДЕКАБРЬ '!$AC$56:$HF$56,1,MATCH(AH$10,'[4]ГРАФИК К.П ДЕКАБРЬ '!$AC$19:$HF$19,0)) -> 12:00:00 | AI26: =INDEX('[4]ГРАФИК К.П ДЕКАБРЬ '!$AC$56:$HF$56,1,MATCH(AI$10,'[4]ГРАФИК К.П ДЕКАБРЬ '!$AC$19:$HF$19,0)) -> 00:00:00 | AJ26: =INDEX('[4]ГРАФИК К.П ДЕКАБРЬ '!$AC$56:$HF$56,1,MATCH(AJ$10,'[4]ГРАФИК К.П ДЕКАБРЬ '!$AC$19:$HF$19,0)) -> 12:00:00 | AK26: =INDEX('[4]ГРАФИК К.П ДЕКАБРЬ '!$AC$56:$HF$56,1,MATCH(AK$10,'[4]ГРАФИК К.П ДЕКАБРЬ '!$AC$19:$HF$19,0)) -> 00:00:00 | AL26: =COUNTIF($F26:$AK26,">0") -> 15 | AM26: =SUM($F$26:$AK$26) ->  | AV26: =COUNTIF($F27:$AK27,"=От") -> 0 | BE26: =COUNTIF(F27:AK27,"В") -> 16
F27: =IF('[4]ГРАФИК К.П ДЕКАБРЬ '!AC32="ОТ","ОТ",IF(F26=0,"В","Я")) -> В | G27: =IF('[4]ГРАФИК К.П ДЕКАБРЬ '!AD32="ОТ","ОТ",IF(G26=0,"В","Я")) -> Я | H27: =IF('[4]ГРАФИК К.П ДЕКАБРЬ '!AE32="ОТ","ОТ",IF(H26=0,"В","Я")) -> В | I27: =IF('[4]ГРАФИК К.П ДЕКАБРЬ '!AF32="ОТ","ОТ",IF(I26=0,"В","Я")) -> Я | J27: =IF('[4]ГРАФИК К.П ДЕКАБРЬ '!AG32="ОТ","ОТ",IF(J26=0,"В","Я")) -> В | K27: =IF('[4]ГРАФИК К.П ДЕКАБРЬ '!AH32="ОТ","ОТ",IF(K26=0,"В","Я")) -> Я | L27: =IF('[4]ГРАФИК К.П ДЕКАБРЬ '!AI32="ОТ","ОТ",IF(L26=0,"В","Я")) -> В | M27: =IF('[4]ГРАФИК К.П ДЕКАБРЬ '!AJ32="ОТ","ОТ",IF(M26=0,"В","Я")) -> Я | N27: =IF('[4]ГРАФИК К.П ДЕКАБРЬ '!AK32="ОТ","ОТ",IF(N26=0,"В","Я")) -> В | O27: =IF('[4]ГРАФИК К.П ДЕКАБРЬ '!AL32="ОТ","ОТ",IF(O26=0,"В","Я")) -> Я | P27: =IF('[4]ГРАФИК К.П ДЕКАБРЬ '!AM32="ОТ","ОТ",IF(P26=0,"В","Я")) -> В | Q27: =IF('[4]ГРАФИК К.П ДЕКАБРЬ '!AN32="ОТ","ОТ",IF(Q26=0,"В","Я")) -> Я | R27: =IF('[4]ГРАФИК К.П ДЕКАБРЬ '!AO32="ОТ","ОТ",IF(R26=0,"В","Я")) -> В | S27: =IF('[4]ГРАФИК К.П ДЕКАБРЬ '!AP32="ОТ","ОТ",IF(S26=0,"В","Я")) -> Я | T27: =IF('[4]ГРАФИК К.П ДЕКАБРЬ '!AQ32="ОТ","ОТ",IF(T26=0,"В","Я")) -> В | V27: =IF('[4]ГРАФИК К.П ДЕКАБРЬ '!AS32="ОТ","ОТ",IF(V26=0,"В","Я")) -> Я | W27: =IF('[4]ГРАФИК К.П ДЕКАБРЬ '!AT32="ОТ","ОТ",IF(W26=0,"В","Я")) -> В | X27: =IF('[4]ГРАФИК К.П ДЕКАБРЬ '!AU32="ОТ","ОТ",IF(X26=0,"В","Я")) -> Я | Y27: =IF('[4]ГРАФИК К.П ДЕКАБРЬ '!AV32="ОТ","ОТ",IF(Y26=0,"В","Я")) -> В | Z27: =IF('[4]ГРАФИК К.П ДЕКАБРЬ '!AW32="ОТ","ОТ",IF(Z26=0,"В","Я")) -> Я | AA27: =IF('[4]ГРАФИК К.П ДЕКАБРЬ '!AX32="ОТ","ОТ",IF(AA26=0,"В","Я")) -> В | AB27: =IF('[4]ГРАФИК К.П ДЕКАБРЬ '!AY32="ОТ","ОТ",IF(AB26=0,"В","Я")) -> Я | AC27: =IF('[4]ГРАФИК К.П ДЕКАБРЬ '!AZ32="ОТ","ОТ",IF(AC26=0,"В","Я")) -> В | AD27: =IF('[4]ГРАФИК К.П ДЕКАБРЬ '!BA32="ОТ","ОТ",IF(AD26=0,"В","Я")) -> Я | AE27: =IF('[4]ГРАФИК К.П ДЕКАБРЬ '!BB32="ОТ","ОТ",IF(AE26=0,"В","Я")) -> В | AF27: =IF('[4]ГРАФИК К.П ДЕКАБРЬ '!BC32="ОТ","ОТ",IF(AF26=0,"В","Я")) -> Я | AG27: =IF('[4]ГРАФИК К.П ДЕКАБРЬ '!BD32="ОТ","ОТ",IF(AG26=0,"В","Я")) -> В | AH27: =IF('[4]ГРАФИК К.П ДЕКАБРЬ '!BE32="ОТ","ОТ",IF(AH26=0,"В","Я")) -> Я | AI27: =IF('[4]ГРАФИК К.П ДЕКАБРЬ '!BF32="ОТ","ОТ",IF(AI26=0,"В","Я")) -> В | AJ27: =IF('[4]ГРАФИК К.П ДЕКАБРЬ '!BG32="ОТ","ОТ",IF(AJ26=0,"В","Я")) -> Я | AK27: =IF('[4]ГРАФИК К.П ДЕКАБРЬ '!BH32="ОТ","ОТ",IF(AK26=0,"В","Я")) -> В
A28: 7 | F28: =INDEX('[4]ГРАФИК К.П ДЕКАБРЬ '!$AC$62:$HF$62,1,MATCH(F$10,'[4]ГРАФИК К.П ДЕКАБРЬ '!$AC$19:$HF$19,0)) -> 11:00:00 | G28: =INDEX('[4]ГРАФИК К.П ДЕКАБРЬ '!$AC$62:$HF$62,1,MATCH(G$10,'[4]ГРАФИК К.П ДЕКАБРЬ '!$AC$19:$HF$19,0)) -> 00:00:00 | H28: =INDEX('[4]ГРАФИК К.П ДЕКАБРЬ '!$AC$62:$HF$62,1,MATCH(H$10,'[4]ГРАФИК К.П ДЕКАБРЬ '!$AC$19:$HF$19,0)) -> 11:00:00 | I28: =INDEX('[4]ГРАФИК К.П ДЕКАБРЬ '!$AC$62:$HF$62,1,MATCH(I$10,'[4]ГРАФИК К.П ДЕКАБРЬ '!$AC$19:$HF$19,0)) -> 00:00:00 | J28: =INDEX('[4]ГРАФИК К.П ДЕКАБРЬ '!$AC$62:$HF$62,1,MATCH(J$10,'[4]ГРАФИК К.П ДЕКАБРЬ '!$AC$19:$HF$19,0)) -> 12:00:00 | K28: =INDEX('[4]ГРАФИК К.П ДЕКАБРЬ '!$AC$62:$HF$62,1,MATCH(K$10,'[4]ГРАФИК К.П ДЕКАБРЬ '!$AC$19:$HF$19,0)) -> 00:00:00 | L28: =INDEX('[4]ГРАФИК К.П ДЕКАБРЬ '!$AC$62:$HF$62,1,MATCH(L$10,'[4]ГРАФИК К.П ДЕКАБРЬ '!$AC$19:$HF$19,0)) -> 11:00:00 | M28: =INDEX('[4]ГРАФИК К.П ДЕКАБРЬ '!$AC$62:$HF$62,1,MATCH(M$10,'[4]ГРАФИК К.П ДЕКАБРЬ '!$AC$19:$HF$19,0)) -> 00:00:00 | N28: =INDEX('[4]ГРАФИК К.П ДЕКАБРЬ '!$AC$62:$HF$62,1,MATCH(N$10,'[4]ГРАФИК К.П ДЕКАБРЬ '!$AC$19:$HF$19,0)) -> 11:00:00 | O28: =INDEX('[4]ГРАФИК К.П ДЕКАБРЬ '!$AC$62:$HF$62,1,MATCH(O$10,'[4]ГРАФИК К.П ДЕКАБРЬ '!$AC$19:$HF$19,0)) -> 00:00:00 | P28: =INDEX('[4]ГРАФИК К.П ДЕКАБРЬ '!$AC$62:$HF$62,1,MATCH(P$10,'[4]ГРАФИК К.П ДЕКАБРЬ '!$AC$19:$HF$19,0)) -> 11:00:00 | Q28: =INDEX('[4]ГРАФИК К.П ДЕКАБРЬ '!$AC$62:$HF$62,1,MATCH(Q$10,'[4]ГРАФИК К.П ДЕКАБРЬ '!$AC$19:$HF$19,0)) -> 00:00:00 | R28: =INDEX('[4]ГРАФИК К.П ДЕКАБРЬ '!$AC$62:$HF$62,1,MATCH(R$10,'[4]ГРАФИК К.П ДЕКАБРЬ '!$AC$19:$HF$19,0)) -> 12:00:00 | S28: =INDEX('[4]ГРАФИК К.П ДЕКАБРЬ '!$AC$62:$HF$62,1,MATCH(S$10,'[4]ГРАФИК К.П ДЕКАБРЬ '!$AC$19:$HF$19,0)) -> 00:00:00 | T28: =INDEX('[4]ГРАФИК К.П ДЕКАБРЬ '!$AC$62:$HF$62,1,MATCH(T$10,'[4]ГРАФИК К.П ДЕКАБРЬ '!$AC$19:$HF$19,0)) -> 11:00:00 | V28: =INDEX('[4]ГРАФИК К.П ДЕКАБРЬ '!$AC$62:$HF$62,1,MATCH(V$10,'[4]ГРАФИК К.П ДЕКАБРЬ '!$AC$19:$HF$19,0)) -> 00:00:00 | W28: =INDEX('[4]ГРАФИК К.П ДЕКАБРЬ '!$AC$62:$HF$62,1,MATCH(W$10,'[4]ГРАФИК К.П ДЕКАБРЬ '!$AC$19:$HF$19,0)) -> 11:00:00 | X28: =INDEX('[4]ГРАФИК К.П ДЕКАБРЬ '!$AC$62:$HF$62,1,MATCH(X$10,'[4]ГРАФИК К.П ДЕКАБРЬ '!$AC$19:$HF$19,0)) -> 00:00:00 | Y28: =INDEX('[4]ГРАФИК К.П ДЕКАБРЬ '!$AC$62:$HF$62,1,MATCH(Y$10,'[4]ГРАФИК К.П ДЕКАБРЬ '!$AC$19:$HF$19,0)) -> 12:00:00 | Z28: =INDEX('[4]ГРАФИК К.П ДЕКАБРЬ '!$AC$62:$HF$62,1,MATCH(Z$10,'[4]ГРАФИК К.П ДЕКАБРЬ '!$AC$19:$HF$19,0)) -> 00:00:00 | AA28: =INDEX('[4]ГРАФИК К.П ДЕКАБРЬ '!$AC$62:$HF$62,1,MATCH(AA$10,'[4]ГРАФИК К.П ДЕКАБРЬ '!$AC$19:$HF$19,0)) -> 11:00:00 | AB28: =INDEX('[4]ГРАФИК К.П ДЕКАБРЬ '!$AC$62:$HF$62,1,MATCH(AB$10,'[4]ГРАФИК К.П ДЕКАБРЬ '!$AC$19:$HF$19,0)) -> 00:00:00 | AC28: =INDEX('[4]ГРАФИК К.П ДЕКАБРЬ '!$AC$62:$HF$62,1,MATCH(AC$10,'[4]ГРАФИК К.П ДЕКАБРЬ '!$AC$19:$HF$19,0)) -> 11:00:00 | AD28: =INDEX('[4]ГРАФИК К.П ДЕКАБРЬ '!$AC$62:$HF$62,1,MATCH(AD$10,'[4]ГРАФИК К.П ДЕКАБРЬ '!$AC$19:$HF$19,0)) -> 00:00:00 | AE28: =INDEX('[4]ГРАФИК К.П ДЕКАБРЬ '!$AC$62:$HF$62,1,MATCH(AE$10,'[4]ГРАФИК К.П ДЕКАБРЬ '!$AC$19:$HF$19,0)) -> 12:00:00 | AF28: =INDEX('[4]ГРАФИК К.П ДЕКАБРЬ '!$AC$62:$HF$62,1,MATCH(AF$10,'[4]ГРАФИК К.П ДЕКАБРЬ '!$AC$19:$HF$19,0)) -> 00:00:00 | AG28: =INDEX('[4]ГРАФИК К.П ДЕКАБРЬ '!$AC$62:$HF$62,1,MATCH(AG$10,'[4]ГРАФИК К.П ДЕКАБРЬ '!$AC$19:$HF$19,0)) -> 12:00:00 | AH28: =INDEX('[4]ГРАФИК К.П ДЕКАБРЬ '!$AC$62:$HF$62,1,MATCH(AH$10,'[4]ГРАФИК К.П ДЕКАБРЬ '!$AC$19:$HF$19,0)) -> 00:00:00 | AI28: =INDEX('[4]ГРАФИК К.П ДЕКАБРЬ '!$AC$62:$HF$62,1,MATCH(AI$10,'[4]ГРАФИК К.П ДЕКАБРЬ '!$AC$19:$HF$19,0)) -> 12:00:00 | AJ28: =INDEX('[4]ГРАФИК К.П ДЕКАБРЬ '!$AC$62:$HF$62,1,MATCH(AJ$10,'[4]ГРАФИК К.П ДЕКАБРЬ '!$AC$19:$HF$19,0)) -> 00:00:00 | AK28: =INDEX('[4]ГРАФИК К.П ДЕКАБРЬ '!$AC$62:$HF$62,1,MATCH(AK$10,'[4]ГРАФИК К.П ДЕКАБРЬ '!$AC$19:$HF$19,0)) -> 12:00:00 | AL28: =COUNTIF($F28:$AK28,">0") -> 16 | AM28: =SUM($F$28:$AK$28) -> 7.625 | AV28: =COUNTIF($F29:$AK29,"=От") -> 0 | BE28: =COUNTIF(F29:AK29,"В") -> 15
F29: =IF('[4]ГРАФИК К.П ДЕКАБРЬ '!AC59="ОТ","ОТ",IF(F28=0,"В","Я")) -> Я | G29: =IF('[4]ГРАФИК К.П ДЕКАБРЬ '!AD59="ОТ","ОТ",IF(G28=0,"В","Я")) -> В | H29: =IF('[4]ГРАФИК К.П ДЕКАБРЬ '!AE59="ОТ","ОТ",IF(H28=0,"В","Я")) -> Я | I29: =IF('[4]ГРАФИК К.П ДЕКАБРЬ '!AF59="ОТ","ОТ",IF(I28=0,"В","Я")) -> В | J29: =IF('[4]ГРАФИК К.П ДЕКАБРЬ '!AG59="ОТ","ОТ",IF(J28=0,"В","Я")) -> Я | K29: =IF('[4]ГРАФИК К.П ДЕКАБРЬ '!AH59="ОТ","ОТ",IF(K28=0,"В","Я")) -> В | L29: =IF('[4]ГРАФИК К.П ДЕКАБРЬ '!AI59="ОТ","ОТ",IF(L28=0,"В","Я")) -> Я | M29: =IF('[4]ГРАФИК К.П ДЕКАБРЬ '!AJ59="ОТ","ОТ",IF(M28=0,"В","Я")) -> В | N29: =IF('[4]ГРАФИК К.П ДЕКАБРЬ '!AK59="ОТ","ОТ",IF(N28=0,"В","Я")) -> Я | O29: =IF('[4]ГРАФИК К.П ДЕКАБРЬ '!AL59="ОТ","ОТ",IF(O28=0,"В","Я")) -> В | P29: =IF('[4]ГРАФИК К.П ДЕКАБРЬ '!AM59="ОТ","ОТ",IF(P28=0,"В","Я")) -> Я | Q29: =IF('[4]ГРАФИК К.П ДЕКАБРЬ '!AN59="ОТ","ОТ",IF(Q28=0,"В","Я")) -> В | R29: =IF('[4]ГРАФИК К.П ДЕКАБРЬ '!AO59="ОТ","ОТ",IF(R28=0,"В","Я")) -> Я | S29: =IF('[4]ГРАФИК К.П ДЕКАБРЬ '!AP59="ОТ","ОТ",IF(S28=0,"В","Я")) -> В | T29: =IF('[4]ГРАФИК К.П ДЕКАБРЬ '!AQ59="ОТ","ОТ",IF(T28=0,"В","Я")) -> Я | V29: =IF('[4]ГРАФИК К.П ДЕКАБРЬ '!AS59="ОТ","ОТ",IF(V28=0,"В","Я")) -> В | W29: =IF('[4]ГРАФИК К.П ДЕКАБРЬ '!AT59="ОТ","ОТ",IF(W28=0,"В","Я")) -> Я | X29: =IF('[4]ГРАФИК К.П ДЕКАБРЬ '!AU59="ОТ","ОТ",IF(X28=0,"В","Я")) -> В | Y29: =IF('[4]ГРАФИК К.П ДЕКАБРЬ '!AV59="ОТ","ОТ",IF(Y28=0,"В","Я")) -> Я | Z29: =IF('[4]ГРАФИК К.П ДЕКАБРЬ '!AW59="ОТ","ОТ",IF(Z28=0,"В","Я")) -> В | AA29: =IF('[4]ГРАФИК К.П ДЕКАБРЬ '!AX59="ОТ","ОТ",IF(AA28=0,"В","Я")) -> Я | AB29: =IF('[4]ГРАФИК К.П ДЕКАБРЬ '!AY59="ОТ","ОТ",IF(AB28=0,"В","Я")) -> В | AC29: =IF('[4]ГРАФИК К.П ДЕКАБРЬ '!AZ59="ОТ","ОТ",IF(AC28=0,"В","Я")) -> Я | AD29: =IF('[4]ГРАФИК К.П ДЕКАБРЬ '!BA59="ОТ","ОТ",IF(AD28=0,"В","Я")) -> В | AE29: =IF('[4]ГРАФИК К.П ДЕКАБРЬ '!BB59="ОТ","ОТ",IF(AE28=0,"В","Я")) -> Я | AF29: =IF('[4]ГРАФИК К.П ДЕКАБРЬ '!BC59="ОТ","ОТ",IF(AF28=0,"В","Я")) -> В | AG29: =IF('[4]ГРАФИК К.П ДЕКАБРЬ '!BD59="ОТ","ОТ",IF(AG28=0,"В","Я")) -> Я | AH29: =IF('[4]ГРАФИК К.П ДЕКАБРЬ '!BE59="ОТ","ОТ",IF(AH28=0,"В","Я")) -> В | AI29: =IF('[4]ГРАФИК К.П ДЕКАБРЬ '!BF59="ОТ","ОТ",IF(AI28=0,"В","Я")) -> Я | AJ29: =IF('[4]ГРАФИК К.П ДЕКАБРЬ '!BG59="ОТ","ОТ",IF(AJ28=0,"В","Я")) -> В | AK29: =IF('[4]ГРАФИК К.П ДЕКАБРЬ '!BH59="ОТ","ОТ",IF(AK28=0,"В","Я")) -> Я
A30: 8 | F30: =INDEX('[4]ГРАФИК К.П ДЕКАБРЬ '!$AC$68:$HF$68,1,MATCH(F$10,'[4]ГРАФИК К.П ДЕКАБРЬ '!$AC$19:$HF$19,0)) -> 00:00:00 | G30: =INDEX('[4]ГРАФИК К.П ДЕКАБРЬ '!$AC$68:$HF$68,1,MATCH(G$10,'[4]ГРАФИК К.П ДЕКАБРЬ '!$AC$19:$HF$19,0)) -> 07:00:00 | H30: =INDEX('[4]ГРАФИК К.П ДЕКАБРЬ '!$AC$68:$HF$68,1,MATCH(H$10,'[4]ГРАФИК К.П ДЕКАБРЬ '!$AC$19:$HF$19,0)) -> 07:00:00 | I30: =INDEX('[4]ГРАФИК К.П ДЕКАБРЬ '!$AC$68:$HF$68,1,MATCH(I$10,'[4]ГРАФИК К.П ДЕКАБРЬ '!$AC$19:$HF$19,0)) -> 07:00:00 | J30: =INDEX('[4]ГРАФИК К.П ДЕКАБРЬ '!$AC$68:$HF$68,1,MATCH(J$10,'[4]ГРАФИК К.П ДЕКАБРЬ '!$AC$19:$HF$19,0)) -> 07:00:00 | K30: =INDEX('[4]ГРАФИК К.П ДЕКАБРЬ '!$AC$68:$HF$68,1,MATCH(K$10,'[4]ГРАФИК К.П ДЕКАБРЬ '!$AC$19:$HF$19,0)) -> 07:00:00 | L30: =INDEX('[4]ГРАФИК К.П ДЕКАБРЬ '!$AC$68:$HF$68,1,MATCH(L$10,'[4]ГРАФИК К.П ДЕКАБРЬ '!$AC$19:$HF$19,0)) -> 05:00:00 | M30: =INDEX('[4]ГРАФИК К.П ДЕКАБРЬ '!$AC$68:$HF$68,1,MATCH(M$10,'[4]ГРАФИК К.П ДЕКАБРЬ '!$AC$19:$HF$19,0)) -> 00:00:00 | N30: =INDEX('[4]ГРАФИК К.П ДЕКАБРЬ '!$AC$68:$HF$68,1,MATCH(N$10,'[4]ГРАФИК К.П ДЕКАБРЬ '!$AC$19:$HF$19,0)) -> 07:00:00 | O30: =INDEX('[4]ГРАФИК К.П ДЕКАБРЬ '!$AC$68:$HF$68,1,MATCH(O$10,'[4]ГРАФИК К.П ДЕКАБРЬ '!$AC$19:$HF$19,0)) -> 07:00:00 | P30: =INDEX('[4]ГРАФИК К.П ДЕКАБРЬ '!$AC$68:$HF$68,1,MATCH(P$10,'[4]ГРАФИК К.П ДЕКАБРЬ '!$AC$19:$HF$19,0)) -> 07:00:00 | Q30: =INDEX('[4]ГРАФИК К.П ДЕКАБРЬ '!$AC$68:$HF$68,1,MATCH(Q$10,'[4]ГРАФИК К.П ДЕКАБРЬ '!$AC$19:$HF$19,0)) -> 07:00:00 | R30: =INDEX('[4]ГРАФИК К.П ДЕКАБРЬ '!$AC$68:$HF$68,1,MATCH(R$10,'[4]ГРАФИК К.П ДЕКАБРЬ '!$AC$19:$HF$19,0)) -> 07:00:00 | S30: =INDEX('[4]ГРАФИК К.П ДЕКАБРЬ '!$AC$68:$HF$68,1,MATCH(S$10,'[4]ГРАФИК К.П ДЕКАБРЬ '!$AC$19:$HF$19,0)) -> 05:00:00 | T30: =INDEX('[4]ГРАФИК К.П ДЕКАБРЬ '!$AC$68:$HF$68,1,MATCH(T$10,'[4]ГРАФИК К.П ДЕКАБРЬ '!$AC$19:$HF$19,0)) -> 00:00:00 | V30: =INDEX('[4]ГРАФИК К.П ДЕКАБРЬ '!$AC$68:$HF$68,1,MATCH(V$10,'[4]ГРАФИК К.П ДЕКАБРЬ '!$AC$19:$HF$19,0)) -> 07:00:00 | W30: =INDEX('[4]ГРАФИК К.П ДЕКАБРЬ '!$AC$68:$HF$68,1,MATCH(W$10,'[4]ГРАФИК К.П ДЕКАБРЬ '!$AC$19:$HF$19,0)) -> 07:00:00 | X30: =INDEX('[4]ГРАФИК К.П ДЕКАБРЬ '!$AC$68:$HF$68,1,MATCH(X$10,'[4]ГРАФИК К.П ДЕКАБРЬ '!$AC$19:$HF$19,0)) -> 07:00:00 | Y30: =INDEX('[4]ГРАФИК К.П ДЕКАБРЬ '!$AC$68:$HF$68,1,MATCH(Y$10,'[4]ГРАФИК К.П ДЕКАБРЬ '!$AC$19:$HF$19,0)) -> 07:00:00 | Z30: =INDEX('[4]ГРАФИК К.П ДЕКАБРЬ '!$AC$68:$HF$68,1,MATCH(Z$10,'[4]ГРАФИК К.П ДЕКАБРЬ '!$AC$19:$HF$19,0)) -> 07:00:00 | AA30: =INDEX('[4]ГРАФИК К.П ДЕКАБРЬ '!$AC$68:$HF$68,1,MATCH(AA$10,'[4]ГРАФИК К.П ДЕКАБРЬ '!$AC$19:$HF$19,0)) -> 05:00:00 | AB30: =INDEX('[4]ГРАФИК К.П ДЕКАБРЬ '!$AC$68:$HF$68,1,MATCH(AB$10,'[4]ГРАФИК К.П ДЕКАБРЬ '!$AC$19:$HF$19,0)) -> 00:00:00 | AC30: =INDEX('[4]ГРАФИК К.П ДЕКАБРЬ '!$AC$68:$HF$68,1,MATCH(AC$10,'[4]ГРАФИК К.П ДЕКАБРЬ '!$AC$19:$HF$19,0)) -> 07:00:00 | AD30: =INDEX('[4]ГРАФИК К.П ДЕКАБРЬ '!$AC$68:$HF$68,1,MATCH(AD$10,'[4]ГРАФИК К.П ДЕКАБРЬ '!$AC$19:$HF$19,0)) -> 08:00:00 | AE30: =INDEX('[4]ГРАФИК К.П ДЕКАБРЬ '!$AC$68:$HF$68,1,MATCH(AE$10,'[4]ГРАФИК К.П ДЕКАБРЬ '!$AC$19:$HF$19,0)) -> 08:00:00 | AF30: =INDEX('[4]ГРАФИК К.П ДЕКАБРЬ '!$AC$68:$HF$68,1,MATCH(AF$10,'[4]ГРАФИК К.П ДЕКАБРЬ '!$AC$19:$HF$19,0)) -> 08:00:00 | AG30: =INDEX('[4]ГРАФИК К.П ДЕКАБРЬ '!$AC$68:$HF$68,1,MATCH(AG$10,'[4]ГРАФИК К.П ДЕКАБРЬ '!$AC$19:$HF$19,0)) -> 08:00:00 | AH30: =INDEX('[4]ГРАФИК К.П ДЕКАБРЬ '!$AC$68:$HF$68,1,MATCH(AH$10,'[4]ГРАФИК К.П ДЕКАБРЬ '!$AC$19:$HF$19,0)) -> 08:00:00 | AI30: =INDEX('[4]ГРАФИК К.П ДЕКАБРЬ '!$AC$68:$HF$68,1,MATCH(AI$10,'[4]ГРАФИК К.П ДЕКАБРЬ '!$AC$19:$HF$19,0)) -> 08:00:00 | AJ30: =INDEX('[4]ГРАФИК К.П ДЕКАБРЬ '!$AC$68:$HF$68,1,MATCH(AJ$10,'[4]ГРАФИК К.П ДЕКАБРЬ '!$AC$19:$HF$19,0)) -> 00:00:00 | AK30: =INDEX('[4]ГРАФИК К.П ДЕКАБРЬ '!$AC$68:$HF$68,1,MATCH(AK$10,'[4]ГРАФИК К.П ДЕКАБРЬ '!$AC$19:$HF$19,0)) -> 08:00:00 | AL30: =COUNTIF($F30:$AK30,">0") -> 26 | AM30: =SUM($F$30:$AK$30) -> 7.625 | AV30: =COUNTIF($F31:$AK31,"=От") -> 0 | BE30: =COUNTIF(F31:AK31,"В") -> 5
F31: =IF('[4]ГРАФИК К.П ДЕКАБРЬ '!AC65="ОТ","ОТ",IF(F30=0,"В","Я")) -> В | G31: =IF('[4]ГРАФИК К.П ДЕКАБРЬ '!AD65="ОТ","ОТ",IF(G30=0,"В","Я")) -> Я | H31: =IF('[4]ГРАФИК К.П ДЕКАБРЬ '!AE65="ОТ","ОТ",IF(H30=0,"В","Я")) -> Я | I31: =IF('[4]ГРАФИК К.П ДЕКАБРЬ '!AF65="ОТ","ОТ",IF(I30=0,"В","Я")) -> Я | J31: =IF('[4]ГРАФИК К.П ДЕКАБРЬ '!AG65="ОТ","ОТ",IF(J30=0,"В","Я")) -> Я | K31: =IF('[4]ГРАФИК К.П ДЕКАБРЬ '!AH65="ОТ","ОТ",IF(K30=0,"В","Я")) -> Я | L31: =IF('[4]ГРАФИК К.П ДЕКАБРЬ '!AI65="ОТ","ОТ",IF(L30=0,"В","Я")) -> Я | M31: =IF('[4]ГРАФИК К.П ДЕКАБРЬ '!AJ65="ОТ","ОТ",IF(M30=0,"В","Я")) -> В | N31: =IF('[4]ГРАФИК К.П ДЕКАБРЬ '!AK65="ОТ","ОТ",IF(N30=0,"В","Я")) -> Я | O31: =IF('[4]ГРАФИК К.П ДЕКАБРЬ '!AL65="ОТ","ОТ",IF(O30=0,"В","Я")) -> Я | P31: =IF('[4]ГРАФИК К.П ДЕКАБРЬ '!AM65="ОТ","ОТ",IF(P30=0,"В","Я")) -> Я | Q31: =IF('[4]ГРАФИК К.П ДЕКАБРЬ '!AN65="ОТ","ОТ",IF(Q30=0,"В","Я")) -> Я | R31: =IF('[4]ГРАФИК К.П ДЕКАБРЬ '!AO65="ОТ","ОТ",IF(R30=0,"В","Я")) -> Я | S31: =IF('[4]ГРАФИК К.П ДЕКАБРЬ '!AP65="ОТ","ОТ",IF(S30=0,"В","Я")) -> Я | T31: =IF('[4]ГРАФИК К.П ДЕКАБРЬ '!AQ65="ОТ","ОТ",IF(T30=0,"В","Я")) -> В | V31: =IF('[4]ГРАФИК К.П ДЕКАБРЬ '!AS65="ОТ","ОТ",IF(V30=0,"В","Я")) -> Я | W31: =IF('[4]ГРАФИК К.П ДЕКАБРЬ '!AT65="ОТ","ОТ",IF(W30=0,"В","Я")) -> Я | X31: =IF('[4]ГРАФИК К.П ДЕКАБРЬ '!AU65="ОТ","ОТ",IF(X30=0,"В","Я")) -> Я | Y31: =IF('[4]ГРАФИК К.П ДЕКАБРЬ '!AV65="ОТ","ОТ",IF(Y30=0,"В","Я")) -> Я | Z31: =IF('[4]ГРАФИК К.П ДЕКАБРЬ '!AW65="ОТ","ОТ",IF(Z30=0,"В","Я")) -> Я | AA31: =IF('[4]ГРАФИК К.П ДЕКАБРЬ '!AX65="ОТ","ОТ",IF(AA30=0,"В","Я")) -> Я | AB31: =IF('[4]ГРАФИК К.П ДЕКАБРЬ '!AY65="ОТ","ОТ",IF(AB30=0,"В","Я")) -> В | AC31: =IF('[4]ГРАФИК К.П ДЕКАБРЬ '!AZ65="ОТ","ОТ",IF(AC30=0,"В","Я")) -> Я | AD31: =IF('[4]ГРАФИК К.П ДЕКАБРЬ '!BA65="ОТ","ОТ",IF(AD30=0,"В","Я")) -> Я | AE31: =IF('[4]ГРАФИК К.П ДЕКАБРЬ '!BB65="ОТ","ОТ",IF(AE30=0,"В","Я")) -> Я | AF31: =IF('[4]ГРАФИК К.П ДЕКАБРЬ '!BC65="ОТ","ОТ",IF(AF30=0,"В","Я")) -> Я | AG31: =IF('[4]ГРАФИК К.П ДЕКАБРЬ '!BD65="ОТ","ОТ",IF(AG30=0,"В","Я")) -> Я | AH31: =IF('[4]ГРАФИК К.П ДЕКАБРЬ '!BE65="ОТ","ОТ",IF(AH30=0,"В","Я")) -> Я | AI31: =IF('[4]ГРАФИК К.П ДЕКАБРЬ '!BF65="ОТ","ОТ",IF(AI30=0,"В","Я")) -> Я | AJ31: =IF('[4]ГРАФИК К.П ДЕКАБРЬ '!BG65="ОТ","ОТ",IF(AJ30=0,"В","Я")) -> В | AK31: =IF('[4]ГРАФИК К.П ДЕКАБРЬ '!BH65="ОТ","ОТ",IF(AK30=0,"В","Я")) -> Я
A32: 9 | F32: =INDEX('[4]ГРАФИК К.П ДЕКАБРЬ '!$AC$74:$HF$74,1,MATCH(F$10,'[4]ГРАФИК К.П ДЕКАБРЬ '!$AC$19:$HF$19,0)) -> 00:00:00 | G32: =INDEX('[4]ГРАФИК К.П ДЕКАБРЬ '!$AC$74:$HF$74,1,MATCH(G$10,'[4]ГРАФИК К.П ДЕКАБРЬ '!$AC$19:$HF$19,0)) -> 01:00:00 | H32: =INDEX('[4]ГРАФИК К.П ДЕКАБРЬ '!$AC$74:$HF$74,1,MATCH(H$10,'[4]ГРАФИК К.П ДЕКАБРЬ '!$AC$19:$HF$19,0)) -> 01:00:00 | I32: =INDEX('[4]ГРАФИК К.П ДЕКАБРЬ '!$AC$74:$HF$74,1,MATCH(I$10,'[4]ГРАФИК К.П ДЕКАБРЬ '!$AC$19:$HF$19,0)) -> 01:00:00 | J32: =INDEX('[4]ГРАФИК К.П ДЕКАБРЬ '!$AC$74:$HF$74,1,MATCH(J$10,'[4]ГРАФИК К.П ДЕКАБРЬ '!$AC$19:$HF$19,0)) -> 01:00:00 | K32: =INDEX('[4]ГРАФИК К.П ДЕКАБРЬ '!$AC$74:$HF$74,1,MATCH(K$10,'[4]ГРАФИК К.П ДЕКАБРЬ '!$AC$19:$HF$19,0)) -> 02:00:00 | L32: =INDEX('[4]ГРАФИК К.П ДЕКАБРЬ '!$AC$74:$HF$74,1,MATCH(L$10,'[4]ГРАФИК К.П ДЕКАБРЬ '!$AC$19:$HF$19,0)) -> 02:00:00 | M32: =INDEX('[4]ГРАФИК К.П ДЕКАБРЬ '!$AC$74:$HF$74,1,MATCH(M$10,'[4]ГРАФИК К.П ДЕКАБРЬ '!$AC$19:$HF$19,0)) -> 00:00:00 | N32: =INDEX('[4]ГРАФИК К.П ДЕКАБРЬ '!$AC$74:$HF$74,1,MATCH(N$10,'[4]ГРАФИК К.П ДЕКАБРЬ '!$AC$19:$HF$19,0)) -> 02:00:00 | O32: =INDEX('[4]ГРАФИК К.П ДЕКАБРЬ '!$AC$74:$HF$74,1,MATCH(O$10,'[4]ГРАФИК К.П ДЕКАБРЬ '!$AC$19:$HF$19,0)) -> 02:00:00 | P32: =INDEX('[4]ГРАФИК К.П ДЕКАБРЬ '!$AC$74:$HF$74,1,MATCH(P$10,'[4]ГРАФИК К.П ДЕКАБРЬ '!$AC$19:$HF$19,0)) -> 02:00:00 | Q32: =INDEX('[4]ГРАФИК К.П ДЕКАБРЬ '!$AC$74:$HF$74,1,MATCH(Q$10,'[4]ГРАФИК К.П ДЕКАБРЬ '!$AC$19:$HF$19,0)) -> 02:00:00 | R32: =INDEX('[4]ГРАФИК К.П ДЕКАБРЬ '!$AC$74:$HF$74,1,MATCH(R$10,'[4]ГРАФИК К.П ДЕКАБРЬ '!$AC$19:$HF$19,0)) -> 02:00:00 | S32: =INDEX('[4]ГРАФИК К.П ДЕКАБРЬ '!$AC$74:$HF$74,1,MATCH(S$10,'[4]ГРАФИК К.П ДЕКАБРЬ '!$AC$19:$HF$19,0)) -> 02:00:00 | T32: =INDEX('[4]ГРАФИК К.П ДЕКАБРЬ '!$AC$74:$HF$74,1,MATCH(T$10,'[4]ГРАФИК К.П ДЕКАБРЬ '!$AC$19:$HF$19,0)) -> 00:00:00 | V32: =INDEX('[4]ГРАФИК К.П ДЕКАБРЬ '!$AC$74:$HF$74,1,MATCH(V$10,'[4]ГРАФИК К.П ДЕКАБРЬ '!$AC$19:$HF$19,0)) -> 02:00:00 | W32: =INDEX('[4]ГРАФИК К.П ДЕКАБРЬ '!$AC$74:$HF$74,1,MATCH(W$10,'[4]ГРАФИК К.П ДЕКАБРЬ '!$AC$19:$HF$19,0)) -> 02:00:00 | X32: =INDEX('[4]ГРАФИК К.П ДЕКАБРЬ '!$AC$74:$HF$74,1,MATCH(X$10,'[4]ГРАФИК К.П ДЕКАБРЬ '!$AC$19:$HF$19,0)) -> 02:00:00 | Y32: =INDEX('[4]ГРАФИК К.П ДЕКАБРЬ '!$AC$74:$HF$74,1,MATCH(Y$10,'[4]ГРАФИК К.П ДЕКАБРЬ '!$AC$19:$HF$19,0)) -> 02:00:00 | Z32: =INDEX('[4]ГРАФИК К.П ДЕКАБРЬ '!$AC$74:$HF$74,1,MATCH(Z$10,'[4]ГРАФИК К.П ДЕКАБРЬ '!$AC$19:$HF$19,0)) -> 02:00:00 | AA32: =INDEX('[4]ГРАФИК К.П ДЕКАБРЬ '!$AC$74:$HF$74,1,MATCH(AA$10,'[4]ГРАФИК К.П ДЕКАБРЬ '!$AC$19:$HF$19,0)) -> 02:00:00 | AB32: =INDEX('[4]ГРАФИК К.П ДЕКАБРЬ '!$AC$74:$HF$74,1,MATCH(AB$10,'[4]ГРАФИК К.П ДЕКАБРЬ '!$AC$19:$HF$19,0)) -> 00:00:00 | AC32: =INDEX('[4]ГРАФИК К.П ДЕКАБРЬ '!$AC$74:$HF$74,1,MATCH(AC$10,'[4]ГРАФИК К.П ДЕКАБРЬ '!$AC$19:$HF$19,0)) -> 02:00:00 | AD32: =INDEX('[4]ГРАФИК К.П ДЕКАБРЬ '!$AC$74:$HF$74,1,MATCH(AD$10,'[4]ГРАФИК К.П ДЕКАБРЬ '!$AC$19:$HF$19,0)) -> 02:00:00 | AE32: =INDEX('[4]ГРАФИК К.П ДЕКАБРЬ '!$AC$74:$HF$74,1,MATCH(AE$10,'[4]ГРАФИК К.П ДЕКАБРЬ '!$AC$19:$HF$19,0)) -> 02:00:00 | AF32: =INDEX('[4]ГРАФИК К.П ДЕКАБРЬ '!$AC$74:$HF$74,1,MATCH(AF$10,'[4]ГРАФИК К.П ДЕКАБРЬ '!$AC$19:$HF$19,0)) -> 02:00:00 | AG32: =INDEX('[4]ГРАФИК К.П ДЕКАБРЬ '!$AC$74:$HF$74,1,MATCH(AG$10,'[4]ГРАФИК К.П ДЕКАБРЬ '!$AC$19:$HF$19,0)) -> 02:00:00 | AH32: =INDEX('[4]ГРАФИК К.П ДЕКАБРЬ '!$AC$74:$HF$74,1,MATCH(AH$10,'[4]ГРАФИК К.П ДЕКАБРЬ '!$AC$19:$HF$19,0)) -> 01:00:00 | AI32: =INDEX('[4]ГРАФИК К.П ДЕКАБРЬ '!$AC$74:$HF$74,1,MATCH(AI$10,'[4]ГРАФИК К.П ДЕКАБРЬ '!$AC$19:$HF$19,0)) -> 01:00:00 | AJ32: =INDEX('[4]ГРАФИК К.П ДЕКАБРЬ '!$AC$74:$HF$74,1,MATCH(AJ$10,'[4]ГРАФИК К.П ДЕКАБРЬ '!$AC$19:$HF$19,0)) -> 00:00:00 | AK32: =INDEX('[4]ГРАФИК К.П ДЕКАБРЬ '!$AC$74:$HF$74,1,MATCH(AK$10,'[4]ГРАФИК К.П ДЕКАБРЬ '!$AC$19:$HF$19,0)) -> 01:45:00 | AL32: =COUNTIF($F32:$AK32,">0") -> 26 | AM32: =SUM($F$32:$AK$32) -> 1.90625 | AV32: =COUNTIF($F33:$AK33,"=От") -> 0 | BE32: 5
F33: =IF('[4]ГРАФИК К.П ДЕКАБРЬ '!AC71="ОТ","ОТ",IF(F32=0,"В","Я")) -> В | G33: =IF('[4]ГРАФИК К.П ДЕКАБРЬ '!AD71="ОТ","ОТ",IF(G32=0,"В","Я")) -> Я | H33: =IF('[4]ГРАФИК К.П ДЕКАБРЬ '!AE71="ОТ","ОТ",IF(H32=0,"В","Я")) -> Я | I33: =IF('[4]ГРАФИК К.П ДЕКАБРЬ '!AF71="ОТ","ОТ",IF(I32=0,"В","Я")) -> Я | J33: =IF('[4]ГРАФИК К.П ДЕКАБРЬ '!AG71="ОТ","ОТ",IF(J32=0,"В","Я")) -> Я | K33: =IF('[4]ГРАФИК К.П ДЕКАБРЬ '!AH71="ОТ","ОТ",IF(K32=0,"В","Я")) -> Я | L33: =IF('[4]ГРАФИК К.П ДЕКАБРЬ '!AI71="ОТ","ОТ",IF(L32=0,"В","Я")) -> Я | M33: =IF('[4]ГРАФИК К.П ДЕКАБРЬ '!AJ71="ОТ","ОТ",IF(M32=0,"В","Я")) -> В | N33: =IF('[4]ГРАФИК К.П ДЕКАБРЬ '!AK71="ОТ","ОТ",IF(N32=0,"В","Я")) -> Я | O33: =IF('[4]ГРАФИК К.П ДЕКАБРЬ '!AL71="ОТ","ОТ",IF(O32=0,"В","Я")) -> Я | P33: =IF('[4]ГРАФИК К.П ДЕКАБРЬ '!AM71="ОТ","ОТ",IF(P32=0,"В","Я")) -> Я | Q33: =IF('[4]ГРАФИК К.П ДЕКАБРЬ '!AN71="ОТ","ОТ",IF(Q32=0,"В","Я")) -> Я | R33: =IF('[4]ГРАФИК К.П ДЕКАБРЬ '!AO71="ОТ","ОТ",IF(R32=0,"В","Я")) -> Я | S33: =IF('[4]ГРАФИК К.П ДЕКАБРЬ '!AP71="ОТ","ОТ",IF(S32=0,"В","Я")) -> Я | T33: =IF('[4]ГРАФИК К.П ДЕКАБРЬ '!AQ71="ОТ","ОТ",IF(T32=0,"В","Я")) -> В | V33: =IF('[4]ГРАФИК К.П ДЕКАБРЬ '!AS71="ОТ","ОТ",IF(V32=0,"В","Я")) -> Я | W33: =IF('[4]ГРАФИК К.П ДЕКАБРЬ '!AT71="ОТ","ОТ",IF(W32=0,"В","Я")) -> Я | X33: =IF('[4]ГРАФИК К.П ДЕКАБРЬ '!AU71="ОТ","ОТ",IF(X32=0,"В","Я")) -> Я | Y33: =IF('[4]ГРАФИК К.П ДЕКАБРЬ '!AV71="ОТ","ОТ",IF(Y32=0,"В","Я")) -> Я | Z33: =IF('[4]ГРАФИК К.П ДЕКАБРЬ '!AW71="ОТ","ОТ",IF(Z32=0,"В","Я")) -> Я | AA33: =IF('[4]ГРАФИК К.П ДЕКАБРЬ '!AX71="ОТ","ОТ",IF(AA32=0,"В","Я")) -> Я | AB33: =IF('[4]ГРАФИК К.П ДЕКАБРЬ '!AY71="ОТ","ОТ",IF(AB32=0,"В","Я")) -> В | AC33: =IF('[4]ГРАФИК К.П ДЕКАБРЬ '!AZ71="ОТ","ОТ",IF(AC32=0,"В","Я")) -> Я | AD33: =IF('[4]ГРАФИК К.П ДЕКАБРЬ '!BA71="ОТ","ОТ",IF(AD32=0,"В","Я")) -> Я | AE33: =IF('[4]ГРАФИК К.П ДЕКАБРЬ '!BB71="ОТ","ОТ",IF(AE32=0,"В","Я")) -> Я | AF33: =IF('[4]ГРАФИК К.П ДЕКАБРЬ '!BC71="ОТ","ОТ",IF(AF32=0,"В","Я")) -> Я | AG33: =IF('[4]ГРАФИК К.П ДЕКАБРЬ '!BD71="ОТ","ОТ",IF(AG32=0,"В","Я")) -> Я | AH33: =IF('[4]ГРАФИК К.П ДЕКАБРЬ '!BE71="ОТ","ОТ",IF(AH32=0,"В","Я")) -> Я | AI33: =IF('[4]ГРАФИК К.П ДЕКАБРЬ '!BF71="ОТ","ОТ",IF(AI32=0,"В","Я")) -> Я | AJ33: =IF('[4]ГРАФИК К.П ДЕКАБРЬ '!BG71="ОТ","ОТ",IF(AJ32=0,"В","Я")) -> В | AK33: =IF('[4]ГРАФИК К.П ДЕКАБРЬ '!BH71="ОТ","ОТ",IF(AK32=0,"В","Я")) -> Я
A34: 10 | F34: =INDEX('[4]ГРАФИК К.П ДЕКАБРЬ '!$AC$79:$HF$79,1,MATCH(F$10,'[4]ГРАФИК К.П ДЕКАБРЬ '!$AC$19:$HF$19,0)) -> 00:00:00 | G34: =INDEX('[4]ГРАФИК К.П ДЕКАБРЬ '!$AC$79:$HF$79,1,MATCH(G$10,'[4]ГРАФИК К.П ДЕКАБРЬ '!$AC$19:$HF$19,0)) -> 10:00:00 | H34: =INDEX('[4]ГРАФИК К.П ДЕКАБРЬ '!$AC$79:$HF$79,1,MATCH(H$10,'[4]ГРАФИК К.П ДЕКАБРЬ '!$AC$19:$HF$19,0)) -> 09:00:00 | I34: =INDEX('[4]ГРАФИК К.П ДЕКАБРЬ '!$AC$79:$HF$79,1,MATCH(I$10,'[4]ГРАФИК К.П ДЕКАБРЬ '!$AC$19:$HF$19,0)) -> 00:00:00 | J34: =INDEX('[4]ГРАФИК К.П ДЕКАБРЬ '!$AC$79:$HF$79,1,MATCH(J$10,'[4]ГРАФИК К.П ДЕКАБРЬ '!$AC$19:$HF$19,0)) -> 10:00:00 | K34: =INDEX('[4]ГРАФИК К.П ДЕКАБРЬ '!$AC$79:$HF$79,1,MATCH(K$10,'[4]ГРАФИК К.П ДЕКАБРЬ '!$AC$19:$HF$19,0)) -> 09:00:00 | L34: =INDEX('[4]ГРАФИК К.П ДЕКАБРЬ '!$AC$79:$HF$79,1,MATCH(L$10,'[4]ГРАФИК К.П ДЕКАБРЬ '!$AC$19:$HF$19,0)) -> 00:00:00 | M34: =INDEX('[4]ГРАФИК К.П ДЕКАБРЬ '!$AC$79:$HF$79,1,MATCH(M$10,'[4]ГРАФИК К.П ДЕКАБРЬ '!$AC$19:$HF$19,0)) -> 10:00:00 | N34: =INDEX('[4]ГРАФИК К.П ДЕКАБРЬ '!$AC$79:$HF$79,1,MATCH(N$10,'[4]ГРАФИК К.П ДЕКАБРЬ '!$AC$19:$HF$19,0)) -> 09:00:00 | O34: =INDEX('[4]ГРАФИК К.П ДЕКАБРЬ '!$AC$79:$HF$79,1,MATCH(O$10,'[4]ГРАФИК К.П ДЕКАБРЬ '!$AC$19:$HF$19,0)) -> 00:00:00 | P34: =INDEX('[4]ГРАФИК К.П ДЕКАБРЬ '!$AC$79:$HF$79,1,MATCH(P$10,'[4]ГРАФИК К.П ДЕКАБРЬ '!$AC$19:$HF$19,0)) -> 09:00:00 | Q34: =INDEX('[4]ГРАФИК К.П ДЕКАБРЬ '!$AC$79:$HF$79,1,MATCH(Q$10,'[4]ГРАФИК К.П ДЕКАБРЬ '!$AC$19:$HF$19,0)) -> 09:00:00 | R34: =INDEX('[4]ГРАФИК К.П ДЕКАБРЬ '!$AC$79:$HF$79,1,MATCH(R$10,'[4]ГРАФИК К.П ДЕКАБРЬ '!$AC$19:$HF$19,0)) -> 00:00:00 | S34: =INDEX('[4]ГРАФИК К.П ДЕКАБРЬ '!$AC$79:$HF$79,1,MATCH(S$10,'[4]ГРАФИК К.П ДЕКАБРЬ '!$AC$19:$HF$19,0)) -> 09:00:00 | T34: =INDEX('[4]ГРАФИК К.П ДЕКАБРЬ '!$AC$79:$HF$79,1,MATCH(T$10,'[4]ГРАФИК К.П ДЕКАБРЬ '!$AC$19:$HF$19,0)) -> 09:00:00 | V34: =INDEX('[4]ГРАФИК К.П ДЕКАБРЬ '!$AC$79:$HF$79,1,MATCH(V$10,'[4]ГРАФИК К.П ДЕКАБРЬ '!$AC$19:$HF$19,0)) -> 00:00:00 | W34: =INDEX('[4]ГРАФИК К.П ДЕКАБРЬ '!$AC$79:$HF$79,1,MATCH(W$10,'[4]ГРАФИК К.П ДЕКАБРЬ '!$AC$19:$HF$19,0)) -> 09:00:00 | X34: =INDEX('[4]ГРАФИК К.П ДЕКАБРЬ '!$AC$79:$HF$79,1,MATCH(X$10,'[4]ГРАФИК К.П ДЕКАБРЬ '!$AC$19:$HF$19,0)) -> 09:00:00 | Y34: =INDEX('[4]ГРАФИК К.П ДЕКАБРЬ '!$AC$79:$HF$79,1,MATCH(Y$10,'[4]ГРАФИК К.П ДЕКАБРЬ '!$AC$19:$HF$19,0)) -> 00:00:00 | Z34: =INDEX('[4]ГРАФИК К.П ДЕКАБРЬ '!$AC$79:$HF$79,1,MATCH(Z$10,'[4]ГРАФИК К.П ДЕКАБРЬ '!$AC$19:$HF$19,0)) -> 09:00:00 | AA34: =INDEX('[4]ГРАФИК К.П ДЕКАБРЬ '!$AC$79:$HF$79,1,MATCH(AA$10,'[4]ГРАФИК К.П ДЕКАБРЬ '!$AC$19:$HF$19,0)) -> 09:00:00 | AB34: =INDEX('[4]ГРАФИК К.П ДЕКАБРЬ '!$AC$79:$HF$79,1,MATCH(AB$10,'[4]ГРАФИК К.П ДЕКАБРЬ '!$AC$19:$HF$19,0)) -> 00:00:00 | AC34: =INDEX('[4]ГРАФИК К.П ДЕКАБРЬ '!$AC$79:$HF$79,1,MATCH(AC$10,'[4]ГРАФИК К.П ДЕКАБРЬ '!$AC$19:$HF$19,0)) -> 09:00:00 | AD34: =INDEX('[4]ГРАФИК К.П ДЕКАБРЬ '!$AC$79:$HF$79,1,MATCH(AD$10,'[4]ГРАФИК К.П ДЕКАБРЬ '!$AC$19:$HF$19,0)) -> 09:00:00 | AE34: =INDEX('[4]ГРАФИК К.П ДЕКАБРЬ '!$AC$79:$HF$79,1,MATCH(AE$10,'[4]ГРАФИК К.П ДЕКАБРЬ '!$AC$19:$HF$19,0)) -> 00:00:00 | AF34: =INDEX('[4]ГРАФИК К.П ДЕКАБРЬ '!$AC$79:$HF$79,1,MATCH(AF$10,'[4]ГРАФИК К.П ДЕКАБРЬ '!$AC$19:$HF$19,0)) -> 09:00:00 | AG34: =INDEX('[4]ГРАФИК К.П ДЕКАБРЬ '!$AC$79:$HF$79,1,MATCH(AG$10,'[4]ГРАФИК К.П ДЕКАБРЬ '!$AC$19:$HF$19,0)) -> 09:00:00 | AH34: =INDEX('[4]ГРАФИК К.П ДЕКАБРЬ '!$AC$79:$HF$79,1,MATCH(AH$10,'[4]ГРАФИК К.П ДЕКАБРЬ '!$AC$19:$HF$19,0)) -> 00:00:00 | AI34: =INDEX('[4]ГРАФИК К.П ДЕКАБРЬ '!$AC$79:$HF$79,1,MATCH(AI$10,'[4]ГРАФИК К.П ДЕКАБРЬ '!$AC$19:$HF$19,0)) -> 09:00:00 | AJ34: =INDEX('[4]ГРАФИК К.П ДЕКАБРЬ '!$AC$79:$HF$79,1,MATCH(AJ$10,'[4]ГРАФИК К.П ДЕКАБРЬ '!$AC$19:$HF$19,0)) -> 09:00:00 | AK34: =INDEX('[4]ГРАФИК К.П ДЕКАБРЬ '!$AC$79:$HF$79,1,MATCH(AK$10,'[4]ГРАФИК К.П ДЕКАБРЬ '!$AC$19:$HF$19,0)) -> 00:00:00 | AL34: =COUNTIF($F34:$AK34,">0") -> 20 | AM34: =SUM($F$34:$AK$34) -> 7.625 | AO34: ='[4]ГРАФИК К.П.СЕНТЯБРЬ 2020 '!HY79 -> 80 | AV34: =COUNTIF($F35:$AK35,"=От") -> 0 | BE34: 11
F35: =IF('[4]ГРАФИК К.П ДЕКАБРЬ '!AC77="ОТ","ОТ",IF(F34=0,"В","Я")) -> В | G35: =IF('[4]ГРАФИК К.П ДЕКАБРЬ '!AD77="ОТ","ОТ",IF(G34=0,"В","Я")) -> Я | H35: =IF('[4]ГРАФИК К.П ДЕКАБРЬ '!AE77="ОТ","ОТ",IF(H34=0,"В","Я")) -> Я | I35: =IF('[4]ГРАФИК К.П ДЕКАБРЬ '!AF77="ОТ","ОТ",IF(I34=0,"В","Я")) -> В | J35: =IF('[4]ГРАФИК К.П ДЕКАБРЬ '!AG77="ОТ","ОТ",IF(J34=0,"В","Я")) -> Я | K35: =IF('[4]ГРАФИК К.П ДЕКАБРЬ '!AH77="ОТ","ОТ",IF(K34=0,"В","Я")) -> Я | L35: =IF('[4]ГРАФИК К.П ДЕКАБРЬ '!AI77="ОТ","ОТ",IF(L34=0,"В","Я")) -> В | M35: =IF('[4]ГРАФИК К.П ДЕКАБРЬ '!AJ77="ОТ","ОТ",IF(M34=0,"В","Я")) -> Я | N35: =IF('[4]ГРАФИК К.П ДЕКАБРЬ '!AK77="ОТ","ОТ",IF(N34=0,"В","Я")) -> Я | O35: =IF('[4]ГРАФИК К.П ДЕКАБРЬ '!AL77="ОТ","ОТ",IF(O34=0,"В","Я")) -> В | P35: =IF('[4]ГРАФИК К.П ДЕКАБРЬ '!AM77="ОТ","ОТ",IF(P34=0,"В","Я")) -> Я | Q35: =IF('[4]ГРАФИК К.П ДЕКАБРЬ '!AN77="ОТ","ОТ",IF(Q34=0,"В","Я")) -> Я | R35: =IF('[4]ГРАФИК К.П ДЕКАБРЬ '!AO77="ОТ","ОТ",IF(R34=0,"В","Я")) -> В | S35: =IF('[4]ГРАФИК К.П ДЕКАБРЬ '!AP77="ОТ","ОТ",IF(S34=0,"В","Я")) -> Я | T35: =IF('[4]ГРАФИК К.П ДЕКАБРЬ '!AQ77="ОТ","ОТ",IF(T34=0,"В","Я")) -> Я | V35: =IF('[4]ГРАФИК К.П ДЕКАБРЬ '!AS77="ОТ","ОТ",IF(V34=0,"В","Я")) -> В | W35: =IF('[4]ГРАФИК К.П ДЕКАБРЬ '!AT77="ОТ","ОТ",IF(W34=0,"В","Я")) -> Я | X35: =IF('[4]ГРАФИК К.П ДЕКАБРЬ '!AU77="ОТ","ОТ",IF(X34=0,"В","Я")) -> Я | Y35: =IF('[4]ГРАФИК К.П ДЕКАБРЬ '!AV77="ОТ","ОТ",IF(Y34=0,"В","Я")) -> В | Z35: =IF('[4]ГРАФИК К.П ДЕКАБРЬ '!AW77="ОТ","ОТ",IF(Z34=0,"В","Я")) -> Я | AA35: =IF('[4]ГРАФИК К.П ДЕКАБРЬ '!AX77="ОТ","ОТ",IF(AA34=0,"В","Я")) -> Я | AB35: =IF('[4]ГРАФИК К.П ДЕКАБРЬ '!AY77="ОТ","ОТ",IF(AB34=0,"В","Я")) -> В | AC35: =IF('[4]ГРАФИК К.П ДЕКАБРЬ '!AZ77="ОТ","ОТ",IF(AC34=0,"В","Я")) -> Я | AD35: =IF('[4]ГРАФИК К.П ДЕКАБРЬ '!BA77="ОТ","ОТ",IF(AD34=0,"В","Я")) -> Я | AE35: =IF('[4]ГРАФИК К.П ДЕКАБРЬ '!BB77="ОТ","ОТ",IF(AE34=0,"В","Я")) -> В | AF35: =IF('[4]ГРАФИК К.П ДЕКАБРЬ '!BC77="ОТ","ОТ",IF(AF34=0,"В","Я")) -> Я | AG35: =IF('[4]ГРАФИК К.П ДЕКАБРЬ '!BD77="ОТ","ОТ",IF(AG34=0,"В","Я")) -> Я | AH35: =IF('[4]ГРАФИК К.П ДЕКАБРЬ '!BE77="ОТ","ОТ",IF(AH34=0,"В","Я")) -> В | AI35: =IF('[4]ГРАФИК К.П ДЕКАБРЬ '!BF77="ОТ","ОТ",IF(AI34=0,"В","Я")) -> Я | AJ35: =IF('[4]ГРАФИК К.П ДЕКАБРЬ '!BG77="ОТ","ОТ",IF(AJ34=0,"В","Я")) -> Я | AK35: =IF('[4]ГРАФИК К.П ДЕКАБРЬ '!BH77="ОТ","ОТ",IF(AK34=0,"В","Я")) -> В
A36: 11 | F36: =INDEX('[4]ГРАФИК К.П ДЕКАБРЬ '!$AC$84:$HF$84,1,MATCH(F$10,'[4]ГРАФИК К.П ДЕКАБРЬ '!$AC$19:$HF$19,0)) -> 0 | G36: =INDEX('[4]ГРАФИК К.П ДЕКАБРЬ '!$AC$84:$HF$84,1,MATCH(G$10,'[4]ГРАФИК К.П ДЕКАБРЬ '!$AC$19:$HF$19,0)) -> 4 | H36: =INDEX('[4]ГРАФИК К.П ДЕКАБРЬ '!$AC$84:$HF$84,1,MATCH(H$10,'[4]ГРАФИК К.П ДЕКАБРЬ '!$AC$19:$HF$19,0)) -> 0 | I36: =INDEX('[4]ГРАФИК К.П ДЕКАБРЬ '!$AC$84:$HF$84,1,MATCH(I$10,'[4]ГРАФИК К.П ДЕКАБРЬ '!$AC$19:$HF$19,0)) -> 0 | J36: =INDEX('[4]ГРАФИК К.П ДЕКАБРЬ '!$AC$84:$HF$84,1,MATCH(J$10,'[4]ГРАФИК К.П ДЕКАБРЬ '!$AC$19:$HF$19,0)) -> 4 | K36: =INDEX('[4]ГРАФИК К.П ДЕКАБРЬ '!$AC$84:$HF$84,1,MATCH(K$10,'[4]ГРАФИК К.П ДЕКАБРЬ '!$AC$19:$HF$19,0)) -> 0 | L36: =INDEX('[4]ГРАФИК К.П ДЕКАБРЬ '!$AC$84:$HF$84,1,MATCH(L$10,'[4]ГРАФИК К.П ДЕКАБРЬ '!$AC$19:$HF$19,0)) -> 0 | M36: =INDEX('[4]ГРАФИК К.П ДЕКАБРЬ '!$AC$84:$HF$84,1,MATCH(M$10,'[4]ГРАФИК К.П ДЕКАБРЬ '!$AC$19:$HF$19,0)) -> 4 | N36: =INDEX('[4]ГРАФИК К.П ДЕКАБРЬ '!$AC$84:$HF$84,1,MATCH(N$10,'[4]ГРАФИК К.П ДЕКАБРЬ '!$AC$19:$HF$19,0)) -> 0 | O36: =INDEX('[4]ГРАФИК К.П ДЕКАБРЬ '!$AC$84:$HF$84,1,MATCH(O$10,'[4]ГРАФИК К.П ДЕКАБРЬ '!$AC$19:$HF$19,0)) -> 0 | P36: =INDEX('[4]ГРАФИК К.П ДЕКАБРЬ '!$AC$84:$HF$84,1,MATCH(P$10,'[4]ГРАФИК К.П ДЕКАБРЬ '!$AC$19:$HF$19,0)) -> 4 | Q36: =INDEX('[4]ГРАФИК К.П ДЕКАБРЬ '!$AC$84:$HF$84,1,MATCH(Q$10,'[4]ГРАФИК К.П ДЕКАБРЬ '!$AC$19:$HF$19,0)) -> 0 | R36: =INDEX('[4]ГРАФИК К.П ДЕКАБРЬ '!$AC$84:$HF$84,1,MATCH(R$10,'[4]ГРАФИК К.П ДЕКАБРЬ '!$AC$19:$HF$19,0)) -> 0 | S36: =INDEX('[4]ГРАФИК К.П ДЕКАБРЬ '!$AC$84:$HF$84,1,MATCH(S$10,'[4]ГРАФИК К.П ДЕКАБРЬ '!$AC$19:$HF$19,0)) -> 4 | T36: =INDEX('[4]ГРАФИК К.П ДЕКАБРЬ '!$AC$84:$HF$84,1,MATCH(T$10,'[4]ГРАФИК К.П ДЕКАБРЬ '!$AC$19:$HF$19,0)) -> 0 | V36: =INDEX('[4]ГРАФИК К.П ДЕКАБРЬ '!$AC$84:$HF$84,1,MATCH(V$10,'[4]ГРАФИК К.П ДЕКАБРЬ '!$AC$19:$HF$19,0)) -> 0 | W36: =INDEX('[4]ГРАФИК К.П ДЕКАБРЬ '!$AC$84:$HF$84,1,MATCH(W$10,'[4]ГРАФИК К.П ДЕКАБРЬ '!$AC$19:$HF$19,0)) -> 4.45 | X36: =INDEX('[4]ГРАФИК К.П ДЕКАБРЬ '!$AC$84:$HF$84,1,MATCH(X$10,'[4]ГРАФИК К.П ДЕКАБРЬ '!$AC$19:$HF$19,0)) -> 0 | Y36: =INDEX('[4]ГРАФИК К.П ДЕКАБРЬ '!$AC$84:$HF$84,1,MATCH(Y$10,'[4]ГРАФИК К.П ДЕКАБРЬ '!$AC$19:$HF$19,0)) -> 0 | Z36: =INDEX('[4]ГРАФИК К.П ДЕКАБРЬ '!$AC$84:$HF$84,1,MATCH(Z$10,'[4]ГРАФИК К.П ДЕКАБРЬ '!$AC$19:$HF$19,0)) -> 5 | AA36: =INDEX('[4]ГРАФИК К.П ДЕКАБРЬ '!$AC$84:$HF$84,1,MATCH(AA$10,'[4]ГРАФИК К.П ДЕКАБРЬ '!$AC$19:$HF$19,0)) -> 0 | AB36: =INDEX('[4]ГРАФИК К.П ДЕКАБРЬ '!$AC$84:$HF$84,1,MATCH(AB$10,'[4]ГРАФИК К.П ДЕКАБРЬ '!$AC$19:$HF$19,0)) -> 0 | AC36: =INDEX('[4]ГРАФИК К.П ДЕКАБРЬ '!$AC$84:$HF$84,1,MATCH(AC$10,'[4]ГРАФИК К.П ДЕКАБРЬ '!$AC$19:$HF$19,0)) -> 5 | AD36: =INDEX('[4]ГРАФИК К.П ДЕКАБРЬ '!$AC$84:$HF$84,1,MATCH(AD$10,'[4]ГРАФИК К.П ДЕКАБРЬ '!$AC$19:$HF$19,0)) -> 0 | AE36: =INDEX('[4]ГРАФИК К.П ДЕКАБРЬ '!$AC$84:$HF$84,1,MATCH(AE$10,'[4]ГРАФИК К.П ДЕКАБРЬ '!$AC$19:$HF$19,0)) -> 0 | AF36: =INDEX('[4]ГРАФИК К.П ДЕКАБРЬ '!$AC$84:$HF$84,1,MATCH(AF$10,'[4]ГРАФИК К.П ДЕКАБРЬ '!$AC$19:$HF$19,0)) -> 5 | AG36: =INDEX('[4]ГРАФИК К.П ДЕКАБРЬ '!$AC$84:$HF$84,1,MATCH(AG$10,'[4]ГРАФИК К.П ДЕКАБРЬ '!$AC$19:$HF$19,0)) -> 0 | AH36: =INDEX('[4]ГРАФИК К.П ДЕКАБРЬ '!$AC$84:$HF$84,1,MATCH(AH$10,'[4]ГРАФИК К.П ДЕКАБРЬ '!$AC$19:$HF$19,0)) -> 0 | AI36: =INDEX('[4]ГРАФИК К.П ДЕКАБРЬ '!$AC$84:$HF$84,1,MATCH(AI$10,'[4]ГРАФИК К.П ДЕКАБРЬ '!$AC$19:$HF$19,0)) -> 5 | AJ36: =INDEX('[4]ГРАФИК К.П ДЕКАБРЬ '!$AC$84:$HF$84,1,MATCH(AJ$10,'[4]ГРАФИК К.П ДЕКАБРЬ '!$AC$19:$HF$19,0)) -> 0 | AK36: =INDEX('[4]ГРАФИК К.П ДЕКАБРЬ '!$AC$84:$HF$84,1,MATCH(AK$10,'[4]ГРАФИК К.П ДЕКАБРЬ '!$AC$19:$HF$19,0)) -> 0 | AL36: 10 | AM36: =SUM($F$36:$AK$36) -> 44.45
F37: =IF('[4]ГРАФИК К.П ДЕКАБРЬ '!AC84="ОТ","ОТ",IF(F36=0,"В","Я")) -> В | G37: =IF('[4]ГРАФИК К.П ДЕКАБРЬ '!AD84="ОТ","ОТ",IF(G36=0,"В","Я")) -> Я | H37: =IF('[4]ГРАФИК К.П ДЕКАБРЬ '!AE84="ОТ","ОТ",IF(H36=0,"В","Я")) -> В | I37: =IF('[4]ГРАФИК К.П ДЕКАБРЬ '!AF84="ОТ","ОТ",IF(I36=0,"В","Я")) -> В | J37: =IF('[4]ГРАФИК К.П ДЕКАБРЬ '!AG84="ОТ","ОТ",IF(J36=0,"В","Я")) -> Я | K37: =IF('[4]ГРАФИК К.П ДЕКАБРЬ '!AH84="ОТ","ОТ",IF(K36=0,"В","Я")) -> В | L37: =IF('[4]ГРАФИК К.П ДЕКАБРЬ '!AI84="ОТ","ОТ",IF(L36=0,"В","Я")) -> В | M37: =IF('[4]ГРАФИК К.П ДЕКАБРЬ '!AJ84="ОТ","ОТ",IF(M36=0,"В","Я")) -> Я | N37: =IF('[4]ГРАФИК К.П ДЕКАБРЬ '!AK84="ОТ","ОТ",IF(N36=0,"В","Я")) -> В | O37: =IF('[4]ГРАФИК К.П ДЕКАБРЬ '!AL84="ОТ","ОТ",IF(O36=0,"В","Я")) -> В | P37: =IF('[4]ГРАФИК К.П ДЕКАБРЬ '!AM84="ОТ","ОТ",IF(P36=0,"В","Я")) -> Я | Q37: =IF('[4]ГРАФИК К.П ДЕКАБРЬ '!AN84="ОТ","ОТ",IF(Q36=0,"В","Я")) -> В | R37: =IF('[4]ГРАФИК К.П ДЕКАБРЬ '!AO84="ОТ","ОТ",IF(R36=0,"В","Я")) -> В | S37: =IF('[4]ГРАФИК К.П ДЕКАБРЬ '!AP84="ОТ","ОТ",IF(S36=0,"В","Я")) -> Я | T37: =IF('[4]ГРАФИК К.П ДЕКАБРЬ '!AQ84="ОТ","ОТ",IF(T36=0,"В","Я")) -> В | V37: =IF('[4]ГРАФИК К.П ДЕКАБРЬ '!AS84="ОТ","ОТ",IF(V36=0,"В","Я")) -> В | W37: =IF('[4]ГРАФИК К.П ДЕКАБРЬ '!AT84="ОТ","ОТ",IF(W36=0,"В","Я")) -> Я | X37: =IF('[4]ГРАФИК К.П ДЕКАБРЬ '!AU84="ОТ","ОТ",IF(X36=0,"В","Я")) -> В | Y37: =IF('[4]ГРАФИК К.П ДЕКАБРЬ '!AV84="ОТ","ОТ",IF(Y36=0,"В","Я")) -> В | Z37: =IF('[4]ГРАФИК К.П ДЕКАБРЬ '!AW84="ОТ","ОТ",IF(Z36=0,"В","Я")) -> Я | AA37: =IF('[4]ГРАФИК К.П ДЕКАБРЬ '!AX84="ОТ","ОТ",IF(AA36=0,"В","Я")) -> В | AB37: =IF('[4]ГРАФИК К.П ДЕКАБРЬ '!AY84="ОТ","ОТ",IF(AB36=0,"В","Я")) -> В | AC37: =IF('[4]ГРАФИК К.П ДЕКАБРЬ '!AZ84="ОТ","ОТ",IF(AC36=0,"В","Я")) -> Я | AD37: =IF('[4]ГРАФИК К.П ДЕКАБРЬ '!BA84="ОТ","ОТ",IF(AD36=0,"В","Я")) -> В | AE37: =IF('[4]ГРАФИК К.П ДЕКАБРЬ '!BB84="ОТ","ОТ",IF(AE36=0,"В","Я")) -> В | AF37: =IF('[4]ГРАФИК К.П ДЕКАБРЬ '!BC84="ОТ","ОТ",IF(AF36=0,"В","Я")) -> Я | AG37: =IF('[4]ГРАФИК К.П ДЕКАБРЬ '!BD84="ОТ","ОТ",IF(AG36=0,"В","Я")) -> В | AH37: =IF('[4]ГРАФИК К.П ДЕКАБРЬ '!BE84="ОТ","ОТ",IF(AH36=0,"В","Я")) -> В | AI37: =IF('[4]ГРАФИК К.П ДЕКАБРЬ '!BF84="ОТ","ОТ",IF(AI36=0,"В","Я")) -> Я | AJ37: =IF('[4]ГРАФИК К.П ДЕКАБРЬ '!BG84="ОТ","ОТ",IF(AJ36=0,"В","Я")) -> В | AK37: =IF('[4]ГРАФИК К.П ДЕКАБРЬ '!BH84="ОТ","ОТ",IF(AK36=0,"В","Я")) -> В
A38: 12 | B38: 101 | F38: =INDEX('[4]ГРАФИК К.П ДЕКАБРЬ '!$AC$92:$HF$92,1,MATCH(F$10,'[4]ГРАФИК К.П ДЕКАБРЬ '!$AC$19:$HF$19,0)) -> 00:00:00 | G38: =INDEX('[4]ГРАФИК К.П ДЕКАБРЬ '!$AC$92:$HF$92,1,MATCH(G$10,'[4]ГРАФИК К.П ДЕКАБРЬ '!$AC$19:$HF$19,0)) -> 00:00:00 | H38: =INDEX('[4]ГРАФИК К.П ДЕКАБРЬ '!$AC$92:$HF$92,1,MATCH(H$10,'[4]ГРАФИК К.П ДЕКАБРЬ '!$AC$19:$HF$19,0)) -> 00:00:00 | I38: =INDEX('[4]ГРАФИК К.П ДЕКАБРЬ '!$AC$92:$HF$92,1,MATCH(I$10,'[4]ГРАФИК К.П ДЕКАБРЬ '!$AC$19:$HF$19,0)) -> 00:00:00 | J38: =INDEX('[4]ГРАФИК К.П ДЕКАБРЬ '!$AC$92:$HF$92,1,MATCH(J$10,'[4]ГРАФИК К.П ДЕКАБРЬ '!$AC$19:$HF$19,0)) -> 00:00:00 | K38: =INDEX('[4]ГРАФИК К.П ДЕКАБРЬ '!$AC$92:$HF$92,1,MATCH(K$10,'[4]ГРАФИК К.П ДЕКАБРЬ '!$AC$19:$HF$19,0)) -> 00:00:00 | L38: =INDEX('[4]ГРАФИК К.П ДЕКАБРЬ '!$AC$92:$HF$92,1,MATCH(L$10,'[4]ГРАФИК К.П ДЕКАБРЬ '!$AC$19:$HF$19,0)) -> 00:00:00 | M38: =INDEX('[4]ГРАФИК К.П ДЕКАБРЬ '!$AC$92:$HF$92,1,MATCH(M$10,'[4]ГРАФИК К.П ДЕКАБРЬ '!$AC$19:$HF$19,0)) -> 00:00:00 | N38: =INDEX('[4]ГРАФИК К.П ДЕКАБРЬ '!$AC$92:$HF$92,1,MATCH(N$10,'[4]ГРАФИК К.П ДЕКАБРЬ '!$AC$19:$HF$19,0)) -> 00:00:00 | O38: =INDEX('[4]ГРАФИК К.П ДЕКАБРЬ '!$AC$92:$HF$92,1,MATCH(O$10,'[4]ГРАФИК К.П ДЕКАБРЬ '!$AC$19:$HF$19,0)) -> 00:00:00 | P38: =INDEX('[4]ГРАФИК К.П ДЕКАБРЬ '!$AC$92:$HF$92,1,MATCH(P$10,'[4]ГРАФИК К.П ДЕКАБРЬ '!$AC$19:$HF$19,0)) -> 00:00:00 | Q38: =INDEX('[4]ГРАФИК К.П ДЕКАБРЬ '!$AC$92:$HF$92,1,MATCH(Q$10,'[4]ГРАФИК К.П ДЕКАБРЬ '!$AC$19:$HF$19,0)) -> 00:00:00 | R38: =INDEX('[4]ГРАФИК К.П ДЕКАБРЬ '!$AC$92:$HF$92,1,MATCH(R$10,'[4]ГРАФИК К.П ДЕКАБРЬ '!$AC$19:$HF$19,0)) -> 00:00:00 | S38: =INDEX('[4]ГРАФИК К.П ДЕКАБРЬ '!$AC$92:$HF$92,1,MATCH(S$10,'[4]ГРАФИК К.П ДЕКАБРЬ '!$AC$19:$HF$19,0)) -> 02:00:00 | T38: =INDEX('[4]ГРАФИК К.П ДЕКАБРЬ '!$AC$92:$HF$92,1,MATCH(T$10,'[4]ГРАФИК К.П ДЕКАБРЬ '!$AC$19:$HF$19,0)) -> 07:30:00 | V38: =INDEX('[4]ГРАФИК К.П ДЕКАБРЬ '!$AC$92:$HF$92,1,MATCH(V$10,'[4]ГРАФИК К.П ДЕКАБРЬ '!$AC$19:$HF$19,0)) -> 00:00:00 | W38: =INDEX('[4]ГРАФИК К.П ДЕКАБРЬ '!$AC$92:$HF$92,1,MATCH(W$10,'[4]ГРАФИК К.П ДЕКАБРЬ '!$AC$19:$HF$19,0)) -> 02:00:00 | X38: =INDEX('[4]ГРАФИК К.П ДЕКАБРЬ '!$AC$92:$HF$92,1,MATCH(X$10,'[4]ГРАФИК К.П ДЕКАБРЬ '!$AC$19:$HF$19,0)) -> 07:30:00 | Y38: =INDEX('[4]ГРАФИК К.П ДЕКАБРЬ '!$AC$92:$HF$92,1,MATCH(Y$10,'[4]ГРАФИК К.П ДЕКАБРЬ '!$AC$19:$HF$19,0)) -> 00:00:00 | Z38: =INDEX('[4]ГРАФИК К.П ДЕКАБРЬ '!$AC$92:$HF$92,1,MATCH(Z$10,'[4]ГРАФИК К.П ДЕКАБРЬ '!$AC$19:$HF$19,0)) -> 01:00:00 | AA38: =INDEX('[4]ГРАФИК К.П ДЕКАБРЬ '!$AC$92:$HF$92,1,MATCH(AA$10,'[4]ГРАФИК К.П ДЕКАБРЬ '!$AC$19:$HF$19,0)) -> 07:30:00 | AB38: =INDEX('[4]ГРАФИК К.П ДЕКАБРЬ '!$AC$92:$HF$92,1,MATCH(AB$10,'[4]ГРАФИК К.П ДЕКАБРЬ '!$AC$19:$HF$19,0)) -> 00:00:00 | AC38: =INDEX('[4]ГРАФИК К.П ДЕКАБРЬ '!$AC$92:$HF$92,1,MATCH(AC$10,'[4]ГРАФИК К.П ДЕКАБРЬ '!$AC$19:$HF$19,0)) -> 01:00:00 | AD38: =INDEX('[4]ГРАФИК К.П ДЕКАБРЬ '!$AC$92:$HF$92,1,MATCH(AD$10,'[4]ГРАФИК К.П ДЕКАБРЬ '!$AC$19:$HF$19,0)) -> 07:30:00 | AE38: =INDEX('[4]ГРАФИК К.П ДЕКАБРЬ '!$AC$92:$HF$92,1,MATCH(AE$10,'[4]ГРАФИК К.П ДЕКАБРЬ '!$AC$19:$HF$19,0)) -> 00:00:00 | AF38: =INDEX('[4]ГРАФИК К.П ДЕКАБРЬ '!$AC$92:$HF$92,1,MATCH(AF$10,'[4]ГРАФИК К.П ДЕКАБРЬ '!$AC$19:$HF$19,0)) -> 01:00:00 | AG38: =INDEX('[4]ГРАФИК К.П ДЕКАБРЬ '!$AC$92:$HF$92,1,MATCH(AG$10,'[4]ГРАФИК К.П ДЕКАБРЬ '!$AC$19:$HF$19,0)) -> 07:30:00 | AH38: =INDEX('[4]ГРАФИК К.П ДЕКАБРЬ '!$AC$92:$HF$92,1,MATCH(AH$10,'[4]ГРАФИК К.П ДЕКАБРЬ '!$AC$19:$HF$19,0)) -> 00:00:00 | AI38: =INDEX('[4]ГРАФИК К.П ДЕКАБРЬ '!$AC$92:$HF$92,1,MATCH(AI$10,'[4]ГРАФИК К.П ДЕКАБРЬ '!$AC$19:$HF$19,0)) -> 01:30:00 | AJ38: =INDEX('[4]ГРАФИК К.П ДЕКАБРЬ '!$AC$92:$HF$92,1,MATCH(AJ$10,'[4]ГРАФИК К.П ДЕКАБРЬ '!$AC$19:$HF$19,0)) -> 07:30:00 | AK38: =INDEX('[4]ГРАФИК К.П ДЕКАБРЬ '!$AC$92:$HF$92,1,MATCH(AK$10,'[4]ГРАФИК К.П ДЕКАБРЬ '!$AC$19:$HF$19,0)) -> 00:00:00 | AL38: =COUNTIF($F38:$AK38,">0") -> 12 | AM38: =SUM($F$38:$AK$38) -> 2.229166667 | AO38: ='[4]ГРАФИК К.П.СЕНТЯБРЬ 2020 '!HY91 -> 73 | AP38: =COUNTIF($F38:$AK38,"=12")+COUNTIF($F39:$AK39,"=8")*2 -> 0 | AQ38: =SUMIF($F$12:$AK$12,"ЧП",$F38:$AK38) -> 0 | AR38: =SUMPRODUCT(IF(ISNUMBER(F38:AK38),(F38:AK38>8)*(F38:AK38-8),0)) -> 0 | AS38: =SUMIF($F$39:$AK$39,"в",$F38:$AK38) -> 0 | AT38: =IF($AN38>$BF$7,$AN38-$BF$7,"–") -> – | AV38: =COUNTIF($F38:$AK38,"=От") -> 0 | AW38: =COUNTIF($F38:$AK38,"=Б") -> 0 | AX38: =COUNTIF($F38:$AK38,"=А") -> 0 | AY38: =COUNTIF($F38:$AK38,"=Ор") -> 0 | AZ38: =COUNTIF($F38:$AK38,"=У") -> 0 | BA38: =COUNTIF($F38:$AK38,"=Ч") -> 0 | BB38: =COUNTIF($F38:$AK38,"=Пр") -> 0 | BC38: =COUNTIF($F38:$AK38,"=Ож") -> 0 | BD38: =COUNTIF($F38:$AK38,"=К") -> 0 | BE38: 31
F39: =IF('[4]ГРАФИК К.П ДЕКАБРЬ '!AC90="ОТ","ОТ",IF(F38=0,"В","Я")) -> ОТ | G39: =IF('[4]ГРАФИК К.П ДЕКАБРЬ '!AD90="ОТ","ОТ",IF(G38=0,"В","Я")) -> В | H39: =IF('[4]ГРАФИК К.П ДЕКАБРЬ '!AE90="ОТ","ОТ",IF(H38=0,"В","Я")) -> В | I39: =IF('[4]ГРАФИК К.П ДЕКАБРЬ '!AF90="ОТ","ОТ",IF(I38=0,"В","Я")) -> В | J39: =IF('[4]ГРАФИК К.П ДЕКАБРЬ '!AG90="ОТ","ОТ",IF(J38=0,"В","Я")) -> В | K39: =IF('[4]ГРАФИК К.П ДЕКАБРЬ '!AH90="ОТ","ОТ",IF(K38=0,"В","Я")) -> В | L39: =IF('[4]ГРАФИК К.П ДЕКАБРЬ '!AI90="ОТ","ОТ",IF(L38=0,"В","Я")) -> ОТ | M39: =IF('[4]ГРАФИК К.П ДЕКАБРЬ '!AJ90="ОТ","ОТ",IF(M38=0,"В","Я")) -> В | N39: =IF('[4]ГРАФИК К.П ДЕКАБРЬ '!AK90="ОТ","ОТ",IF(N38=0,"В","Я")) -> В | O39: =IF('[4]ГРАФИК К.П ДЕКАБРЬ '!AL90="ОТ","ОТ",IF(O38=0,"В","Я")) -> В | P39: =IF('[4]ГРАФИК К.П ДЕКАБРЬ '!AM90="ОТ","ОТ",IF(P38=0,"В","Я")) -> В | Q39: =IF('[4]ГРАФИК К.П ДЕКАБРЬ '!AN90="ОТ","ОТ",IF(Q38=0,"В","Я")) -> В | R39: =IF('[4]ГРАФИК К.П ДЕКАБРЬ '!AO90="ОТ","ОТ",IF(R38=0,"В","Я")) -> ОТ | S39: =IF('[4]ГРАФИК К.П ДЕКАБРЬ '!AP90="ОТ","ОТ",IF(S38=0,"В","Я")) -> Я | T39: =IF('[4]ГРАФИК К.П ДЕКАБРЬ '!AQ90="ОТ","ОТ",IF(T38=0,"В","Я")) -> Я | V39: =IF('[4]ГРАФИК К.П ДЕКАБРЬ '!AS90="ОТ","ОТ",IF(V38=0,"В","Я")) -> В | W39: =IF('[4]ГРАФИК К.П ДЕКАБРЬ '!AT90="ОТ","ОТ",IF(W38=0,"В","Я")) -> Я | X39: =IF('[4]ГРАФИК К.П ДЕКАБРЬ '!AU90="ОТ","ОТ",IF(X38=0,"В","Я")) -> ОТ | Y39: =IF('[4]ГРАФИК К.П ДЕКАБРЬ '!AV90="ОТ","ОТ",IF(Y38=0,"В","Я")) -> В | Z39: =IF('[4]ГРАФИК К.П ДЕКАБРЬ '!AW90="ОТ","ОТ",IF(Z38=0,"В","Я")) -> Я | AA39: =IF('[4]ГРАФИК К.П ДЕКАБРЬ '!AX90="ОТ","ОТ",IF(AA38=0,"В","Я")) -> Я | AB39: =IF('[4]ГРАФИК К.П ДЕКАБРЬ '!AY90="ОТ","ОТ",IF(AB38=0,"В","Я")) -> В | AC39: =IF('[4]ГРАФИК К.П ДЕКАБРЬ '!AZ90="ОТ","ОТ",IF(AC38=0,"В","Я")) -> Я | AD39: =IF('[4]ГРАФИК К.П ДЕКАБРЬ '!BA90="ОТ","ОТ",IF(AD38=0,"В","Я")) -> ОТ | AE39: =IF('[4]ГРАФИК К.П ДЕКАБРЬ '!BB90="ОТ","ОТ",IF(AE38=0,"В","Я")) -> В | AF39: =IF('[4]ГРАФИК К.П ДЕКАБРЬ '!BC90="ОТ","ОТ",IF(AF38=0,"В","Я")) -> Я | AG39: =IF('[4]ГРАФИК К.П ДЕКАБРЬ '!BD90="ОТ","ОТ",IF(AG38=0,"В","Я")) -> Я | AH39: =IF('[4]ГРАФИК К.П ДЕКАБРЬ '!BE90="ОТ","ОТ",IF(AH38=0,"В","Я")) -> В | AI39: =IF('[4]ГРАФИК К.П ДЕКАБРЬ '!BF90="ОТ","ОТ",IF(AI38=0,"В","Я")) -> Я | AJ39: =IF('[4]ГРАФИК К.П ДЕКАБРЬ '!BG90="ОТ","ОТ",IF(AJ38=0,"В","Я")) -> ОТ | AK39: =IF('[4]ГРАФИК К.П ДЕКАБРЬ '!BH90="ОТ","ОТ",IF(AK38=0,"В","Я")) -> В
F40: =COUNTIF(F$16:F$31,"Я")+COUNTIF(F$34:F$39,"Я") -> 3 | G40: =COUNTIF(G$16:G$31,"Я")+COUNTIF(G$34:G$39,"Я") -> 6 | H40: =COUNTIF(H$16:H$31,"Я")+COUNTIF(H$34:H$39,"Я") -> 6 | I40: 5 | J40: 7 | K40: 6 | L40: 4 | M40: 5 | N40: 5 | O40: 5 | P40: 7 | Q40: 6 | R40: 5 | S40: 7 | T40: 5 | V40: 4 | W40: 8 | X40: 6 | Y40: 5 | Z40: 8 | AA40: 6 | AB40: 3 | AC40: 7 | AD40: 6 | AE40: 5 | AF40: 8 | AG40: 7 | AH40: 4 | AI40: 7 | AJ40: 4 | AK40: 5 | AL40: =SUM(F40:AK40) -> 175
F41: =SUM(F16,F18,F20,F22,F24,F26,F28,F30)+SUM(F34,F37,F38) -> 1.125 | G41: =SUM(G16,G18,G20,G22,G24,G26,G28,G30)+SUM(G34,G37,G38) -> 2.083333333 | H41: 2.25 | I41: 1.958333333 | J41: 2.416666667 | K41: 2.375 | L41: 1.416666667 | M41: 1.625 | N41: 1.958333333 | O41: 1.958333333 | P41: 2.208333333 | Q41: 2.416666667 | R41: 1.958333333 | S41: 1.958333333 | T41: 1.8125 | V41: =SUM(V16,V18,V20,V22,V24,V26,V28,V30)+SUM(V34,V37,V38) -> 1.625 | W41: =SUM(W16,W18,W20,W22,W24,W26,W28,W30)+SUM(W34,W37,W38) -> 2.291666667 | X41: 2.604166667 | Y41: 1.958333333 | Z41: 2.458333333 | AA41: 2.104166667 | AB41: 1.208333333 | AC41: 1.958333333 | AD41: 2.645833333 | AE41: 2 | AF41: 2.5 | AG41: 2.6875 | AH41: 1.666666667 | AI41: 1.979166667 | AJ41: 2.020833333 | AK41: 2 | AL41: =SUM(F41:AK41) -> 63.22916667
D42: 2020-12-01
D43: 2020
D44: 12
D45: 1 | E45: 2 | F45: 3 | G45: 4 | H45: 5 | I45: 6 | J45: 7 | K45: 8 | L45: 9 | M45: 10 | N45: 11 | O45: 12 | P45: 13 | Q45: 14 | R45: 15 | S45: 16 | T45: 17 | U45: 18 | V45: 19 | W45: 20 | X45: 21 | Y45: 22 | Z45: 23 | AA45: 24 | AB45: 25 | AC45: 26 | AD45: 27 | AE45: 28 | AF45: 29 | AG45: 30 | AH45: 31
AM47: 2020-01-01
AM48: 2020-01-02
AM49: 2020-01-03
I50: помогите пожалуйста сделать так, чтобы формула при протягивании не выдавала Н/Д | AM50: 2020-01-04
AM51: 2020-01-05
AM52: 2020-01-06
AM53: 2020-01-07
AM54: 2020-01-08
I55: ячейки должны быть пустыми при протягивании формулы | AM55: 2020-02-23
AM56: 2020-03-08
AM57: 2020-05-01
AM58: 2020-06-12
AM60: 2020-05-09
AM63: 2020-11-04
